Directorate,Department,Expenditure Type,Ref.Doc.1,Vendor Name,Expenditure Amount (exc VAT),Payment Date
Assurance,Assurance,Consultants Fees,0060113044,PRICEWATERHOUSE COOPERS,"20,000.00",04/10/2018
Assurance,Assurance,Consultants Fees,0080020127,REDACTED - PERSONAL DATA,775.00,05/10/2018
Assurance,Assurance,Equipment and Materials Purcha,0060115131,CONFABULATE LTD,"3,900.00",17/10/2018
Assurance,Assurance,General Office Expenses,0040003082,OFFICE DEPOT UK LTD,3.36,25/10/2018
Assurance,Assurance,General Office Expenses,0040003103,OFFICE DEPOT UK LTD,1.34,25/10/2018
Assurance,Assurance,Other Indirect Employee Expens,0080020255,LONDON BOROUGH OF CAMDEN,25.00,19/10/2018
Assurance,Assurance,Other Indirect Employee Expens,0080020115,MACMILLAN CANCER SUPPORT,100.00,09/10/2018
Assurance,Assurance,Other Indirect Employee Expens,0080020257,MAYOR LONDON BOROUGH ENFIELD,100.00,22/10/2018
Assurance,Assurance,Other Indirect Employee Expens,0080020511,ST JOHN'S URC,200.00,26/10/2018
Assurance,Assurance,Other Indirect Employee Expens,0080020258,THE LONDON BOROUGH OF HAVERING,65.00,22/10/2018
Assurance,Assurance,Other Services,0060115105,DEMOCRACY COUNTS LIMITED,883.00,17/10/2018
Assurance,Assurance,Other Services,0060115213,DEMOCRACY COUNTS LIMITED,"7,788.20",17/10/2018
Assurance,Assurance,Other Services,0010014286,ROYAL MAIL GROUP LIMITED,"7,804.51",22/10/2018
Assurance,Assurance,Other Services,0060114278,ROYAL MAIL GROUP LIMITED,"1,413.65",11/10/2018
Assurance,Assurance,Other Services,0060114302,ROYAL MAIL GROUP LIMITED,"1,627.50",22/10/2018
Assurance,Assurance,Other Services,0060115211,ROYAL MAIL GROUP LIMITED,"2,805.95",19/10/2018
Assurance,Assurance,Pool Transport Charges,0060112387,S W BRUCE & CO LTD,"9,620.11",24/10/2018
Assurance,Assurance,Printing-Contract,0060114325,BARNARD &  WESTWOOD LTD,115.80,10/10/2018
Assurance,Assurance,Printing-Contract,0040003062,OFFICE DEPOT UK LTD,36.21,25/10/2018
Assurance,Assurance,Printing-Contract,0040003095,OFFICE DEPOT UK LTD,3.42,25/10/2018
Assurance,Assurance,Professional Services,0080020050,REDACTED - PERSONAL DATA,186.25,05/10/2018
Assurance,Assurance,Stationery,0040003058,OFFICE DEPOT UK LTD,6.58,25/10/2018
Assurance,Assurance,Stationery,0040003101,OFFICE DEPOT UK LTD,108.27,25/10/2018
Assurance,Assurance,Stationery,0040003110,OFFICE DEPOT UK LTD,39.09,25/10/2018
Assurance,Assurance,Subscriptions,60115716,ASSOCIATION OF ELECTORAL ADMINISTRA,332.50,24/10/2018
Assurance,Assurance,Subscriptions,0060115185,THOMSON REUTERS (PROFESSIONAL)UK LT,223.00,17/10/2018
Assurance,Assurance,Training,0060114837,MEDIA FIRST LTD,"1,760.00",19/10/2018
Assurance,Assurance,Training,0080020233,TENANCY FRAUD FORUM,298.00,10/10/2018
Assurance,Assurance,Translation Exp / Interpret,0060114437,PRIME PRODUCTION LTD,137.00,11/10/2018
Central Expenses,Central Expenses,Grant Payments,0060110047,CITY OF LONDON,"73,238.00",25/10/2018
Central Expenses,Central Expenses,Grant Payments,0060114458,TRANSPORT FOR LONDON,"114,966.69",18/10/2018
Central Expenses,Central Expenses,Grant Payments,0060114463,TRANSPORT FOR LONDON,"114,966.69",18/10/2018
Central Expenses,Central Expenses,Grant Payments,0060114768,TRANSPORT FOR LONDON,"114,966.69",26/10/2018
Central Expenses,Central Expenses,Insurance Claims,0080020409,ADMIRAL INSURANCE,951.66,22/10/2018
Central Expenses,Central Expenses,Insurance Claims,0080020531,ADMIRAL LAW LIMITED,984.47,26/10/2018
Central Expenses,Central Expenses,Insurance Claims,0080020146,AUXILLIS SERVICES LIMITED,471.79,08/10/2018
Central Expenses,Central Expenses,Insurance Claims,0080020200,AUXILLIS SERVICES LIMITED,850.00,09/10/2018
Central Expenses,Central Expenses,Insurance Claims,0060115016,BROWNE JACOBSON SOLS.,"1,891.50",17/10/2018
Central Expenses,Central Expenses,Insurance Claims,0080020390,CHARLES DUKES ASSESSORS,510.00,19/10/2018
Central Expenses,Central Expenses,Insurance Claims,0080020570,CHARLES DUKES ASSESSORS,240.00,26/10/2018
Central Expenses,Central Expenses,Insurance Claims,0060102176,CLYDE & CO LLP,480.00,19/10/2018
Central Expenses,Central Expenses,Insurance Claims,0060114312,CLYDE & CO LLP,"2,328.00",04/10/2018
Central Expenses,Central Expenses,Insurance Claims,0080020399,DAS LAW,"2,604.72",19/10/2018
Central Expenses,Central Expenses,Insurance Claims,0080020019,DWP COMPENSATION RECOVERY UNIT,"8,951.00",01/10/2018
Central Expenses,Central Expenses,Insurance Claims,0080020152,DWP COMPENSATION RECOVERY UNIT,"1,057.70",08/10/2018
Central Expenses,Central Expenses,Insurance Claims,0080020201,DWP COMPENSATION RECOVERY UNIT,665.00,09/10/2018
Central Expenses,Central Expenses,Insurance Claims,0080020017,HAVEN INSURANCE COMPANY,"1,401.80",01/10/2018
Central Expenses,Central Expenses,Insurance Claims,0060113995,IMCS (UK) PLC,60.00,18/10/2018
Central Expenses,Central Expenses,Insurance Claims,0060113996,IMCS (UK) PLC,60.00,16/10/2018
Central Expenses,Central Expenses,Insurance Claims,0060114796,IMCS (UK) PLC,60.00,25/10/2018
Central Expenses,Central Expenses,Insurance Claims,0060114802,IMCS (UK) PLC,60.00,22/10/2018
Central Expenses,Central Expenses,Insurance Claims,0080020324,LUPTON FAWCETT LLP,"7,728.50",19/10/2018
Central Expenses,Central Expenses,Insurance Claims,0080020174,METROLINE TRAVEL LTD,203.04,09/10/2018
Central Expenses,Central Expenses,Insurance Claims,0080020018,OGR STOCK DENTON LLP,"50,000.00",04/10/2018
Central Expenses,Central Expenses,Insurance Claims,0080020470,PRINCIPIA LAW LTD,114.00,26/10/2018
Central Expenses,Central Expenses,Insurance Claims,0080020023,REDACTED - PERSONAL DATA,875.00,01/10/2018
Central Expenses,Central Expenses,Insurance Claims,0080020025,REDACTED - PERSONAL DATA,157.00,01/10/2018
Central Expenses,Central Expenses,Insurance Claims,0080020028,REDACTED - PERSONAL DATA,340.80,05/10/2018
Central Expenses,Central Expenses,Insurance Claims,0080020055,REDACTED - PERSONAL DATA,200.00,05/10/2018
Central Expenses,Central Expenses,Insurance Claims,0080020107,REDACTED - PERSONAL DATA,189.60,05/10/2018
Central Expenses,Central Expenses,Insurance Claims,0080020108,REDACTED - PERSONAL DATA,"2,000.00",05/10/2018
Central Expenses,Central Expenses,Insurance Claims,0080020151,REDACTED - PERSONAL DATA,"2,300.00",08/10/2018
Central Expenses,Central Expenses,Insurance Claims,0080020153,REDACTED - PERSONAL DATA,263.00,08/10/2018
Central Expenses,Central Expenses,Insurance Claims,0080020154,REDACTED - PERSONAL DATA,230.00,08/10/2018
Central Expenses,Central Expenses,Insurance Claims,0080020161,REDACTED - PERSONAL DATA,300.00,09/10/2018
Central Expenses,Central Expenses,Insurance Claims,0080020202,REDACTED - PERSONAL DATA,"3,714.90",09/10/2018
Central Expenses,Central Expenses,Insurance Claims,0080020203,REDACTED - PERSONAL DATA,"1,026.56",10/10/2018
Central Expenses,Central Expenses,Insurance Claims,0080020287,REDACTED - PERSONAL DATA,957.39,16/10/2018
Central Expenses,Central Expenses,Insurance Claims,0080020305,REDACTED - PERSONAL DATA,235.49,16/10/2018
Central Expenses,Central Expenses,Insurance Claims,0080020322,REDACTED - PERSONAL DATA,"1,264.51",16/10/2018
Central Expenses,Central Expenses,Insurance Claims,0080020345,REDACTED - PERSONAL DATA,"1,500.00",19/10/2018
Central Expenses,Central Expenses,Insurance Claims,0080020347,REDACTED - PERSONAL DATA,945.00,19/10/2018
Central Expenses,Central Expenses,Insurance Claims,0080020378,REDACTED - PERSONAL DATA,249.95,19/10/2018
Central Expenses,Central Expenses,Insurance Claims,0080020421,REDACTED - PERSONAL DATA,570.00,23/10/2018
Central Expenses,Central Expenses,Insurance Claims,0080020469,REDACTED - PERSONAL DATA,300.00,26/10/2018
Central Expenses,Central Expenses,Insurance Claims,0080020478,REDACTED - PERSONAL DATA,78.00,26/10/2018
Central Expenses,Central Expenses,Insurance Claims,0080020563,REDACTED - PERSONAL DATA,547.20,26/10/2018
Central Expenses,Central Expenses,Insurance Claims,0080020323,RSA MOTABILITY,958.47,19/10/2018
Central Expenses,Central Expenses,Insurance Claims,0080020172,SCOTT REES & CO. SOLICITORS,"7,240.00",09/10/2018
Central Expenses,Central Expenses,Insurance Claims,0080020295,TURNER & WHITE CLIENT ACCOUNT,120.00,16/10/2018
Central Expenses,Central Expenses,Insurance Claims,0080020483,W S COACHWORKS,512.59,26/10/2018
Central Expenses,Central Expenses,Insurance Claims,0060109018,WEIGHTMANS LLP,600.00,09/10/2018
Central Expenses,Central Expenses,Insurance Claims,0060112854,WEIGHTMANS LLP,600.00,09/10/2018
Central Expenses,Central Expenses,Insurance Claims,0060112926,WEIGHTMANS LLP,950.00,19/10/2018
Central Expenses,Central Expenses,Insurance Claims,0060113981,WEIGHTMANS LLP,600.00,19/10/2018
Central Expenses,Central Expenses,Insurance Claims,0060114005,WEIGHTMANS LLP,"1,000.00",18/10/2018
Central Expenses,Central Expenses,Insurance Claims,0060114007,WEIGHTMANS LLP,"1,150.00",19/10/2018
Central Expenses,Central Expenses,Insurance Claims,0060114008,WEIGHTMANS LLP,253.00,19/10/2018
Central Expenses,Central Expenses,Insurance Claims,0060114011,WEIGHTMANS LLP,356.50,19/10/2018
Central Expenses,Central Expenses,Joint Authorities - Third Part,0060113340,LONDON BOROUGH OF HARINGEY,"72,653.09",29/10/2018
Central Expenses,Central Expenses,Joint Authorities - Third Part,0060113366,LONDON BOROUGH OF HARINGEY,"72,653.09",29/10/2018
Central Expenses,Central Expenses,Other Establishments - Third P,EBX0248641,GREATER LONDON AUTHORITY,"4,363,157.80",10/10/2018
Central Expenses,Central Expenses,Other Establishments - Third P,EBX0250143,GREATER LONDON AUTHORITY,"3,396,343.00",12/10/2018
Central Expenses,Central Expenses,Other Establishments - Third P,EBX0249140,LEE VALLEY REGIONAL PARK AUTH.,"28,597.64",11.10.2018
Central Expenses,Central Expenses,Professional Services,0060114366,LINK TREASURY SERVICES T/AS,485.00,12/10/2018
Commercial,Customer Support Group,Advertising,0060114907,GOOD IMPRESSIONS (LONDON) LIMITED,240.00,25/10/2018
Commercial,Customer Support Group,Building Repairs & Maintenance,0060113487,AJS LTD,"6,474.19",03/10/2018
Commercial,Customer Support Group,Building Repairs & Maintenance,0060115072,AJS LTD,264.00,17/10/2018
Commercial,Customer Support Group,Building Repairs & Maintenance,0060114824,FOSTER REFRIGERATOR (UK) LTD,249.84,12/10/2018
Commercial,Customer Support Group,Building Repairs & Maintenance,0060113571,HIGH VOLTAGE ELECTRICAL SERVICES LTD,"5,085.00",16/10/2018
Commercial,Customer Support Group,Building Repairs & Maintenance,0060112186,LEE SECURITY LONDON LIMITED,121.92,22/10/2018
Commercial,Customer Support Group,Building Repairs & Maintenance,0060095328,LIFT & ENGINEERING SERVICES LTD,49.58,09/10/2018
Commercial,Customer Support Group,Building Repairs & Maintenance,0060097980,LIFT & ENGINEERING SERVICES LTD,71.69,26/10/2018
Commercial,Customer Support Group,Building Repairs & Maintenance,0060098029,LIFT & ENGINEERING SERVICES LTD,71.69,26/10/2018
Commercial,Customer Support Group,Building Repairs & Maintenance,0060099356,LIFT & ENGINEERING SERVICES LTD,66.94,10/10/2018
Commercial,Customer Support Group,Building Repairs & Maintenance,0060099482,LIFT & ENGINEERING SERVICES LTD,66.94,09/10/2018
Commercial,Customer Support Group,Building Repairs & Maintenance,0060099487,LIFT & ENGINEERING SERVICES LTD,89.25,09/10/2018
Commercial,Customer Support Group,Building Repairs & Maintenance,0060099488,LIFT & ENGINEERING SERVICES LTD,89.25,09/10/2018
Commercial,Customer Support Group,Building Repairs & Maintenance,0060104227,LIFT & ENGINEERING SERVICES LTD,89.25,09/10/2018
Commercial,Customer Support Group,Building Repairs & Maintenance,0060106268,LIFT & ENGINEERING SERVICES LTD,89.25,09/10/2018
Commercial,Customer Support Group,Building Repairs & Maintenance,0060106292,LIFT & ENGINEERING SERVICES LTD,66.94,09/10/2018
Commercial,Customer Support Group,Building Repairs & Maintenance,0060115498,LIFT & ENGINEERING SERVICES LTD,71.69,26/10/2018
Commercial,Customer Support Group,Building Repairs & Maintenance,0010014327,NORTH LONDON CATERING EQUIPMENT,"1,055.50",24/10/2018
Commercial,Customer Support Group,Building Repairs & Maintenance,0060099355,OAKRAY LIMITED,293.63,11/10/2018
Commercial,Customer Support Group,Building Repairs & Maintenance,0060099390,OAKRAY LIMITED,278.20,11/10/2018
Commercial,Customer Support Group,Building Repairs & Maintenance,0060099397,OAKRAY LIMITED,273.90,11/10/2018
Commercial,Customer Support Group,Building Repairs & Maintenance,0060099409,OAKRAY LIMITED,773.90,15/10/2018
Commercial,Customer Support Group,Building Repairs & Maintenance,0060099410,OAKRAY LIMITED,270.00,18/10/2018
Commercial,Customer Support Group,Building Repairs & Maintenance,0060099430,OAKRAY LIMITED,652.36,11/10/2018
Commercial,Customer Support Group,Building Repairs & Maintenance,0060099485,OAKRAY LIMITED,471.85,29/10/2018
Commercial,Customer Support Group,Building Repairs & Maintenance,0060099914,OAKRAY LIMITED,108.00,19/10/2018
Commercial,Customer Support Group,Building Repairs & Maintenance,0060099955,OAKRAY LIMITED,128.00,15/10/2018
Commercial,Customer Support Group,Building Repairs & Maintenance,0060099964,OAKRAY LIMITED,70.25,15/10/2018
Commercial,Customer Support Group,Building Repairs & Maintenance,0060103428,OAKRAY LIMITED,270.00,19/10/2018
Commercial,Customer Support Group,Building Repairs & Maintenance,0060103497,OAKRAY LIMITED,80.00,18/10/2018
Commercial,Customer Support Group,Building Repairs & Maintenance,0060106423,OAKRAY LIMITED,162.00,18/10/2018
Commercial,Customer Support Group,Building Repairs & Maintenance,0060106430,OAKRAY LIMITED,320.00,18/10/2018
Commercial,Customer Support Group,Building Repairs & Maintenance,0060106434,OAKRAY LIMITED,80.00,22/10/2018
Commercial,Customer Support Group,Building Repairs & Maintenance,0060106467,OAKRAY LIMITED,442.95,29/10/2018
Commercial,Customer Support Group,Building Repairs & Maintenance,0060108672,OAKRAY LIMITED,31.00,16/10/2018
Commercial,Customer Support Group,Building Repairs & Maintenance,0060108707,OAKRAY LIMITED,"4,654.40",19/10/2018
Commercial,Customer Support Group,Building Repairs & Maintenance,0060111191,OAKRAY LIMITED,238.68,15/10/2018
Commercial,Customer Support Group,Building Repairs & Maintenance,0060111973,OAKRAY LIMITED,352.48,11/10/2018
Commercial,Customer Support Group,Building Repairs & Maintenance,0060111974,OAKRAY LIMITED,733.46,11/10/2018
Commercial,Customer Support Group,Building Repairs & Maintenance,0060112015,OAKRAY LIMITED,378.54,11/10/2018
Commercial,Customer Support Group,Building Repairs & Maintenance,0060112017,OAKRAY LIMITED,80.00,11/10/2018
Commercial,Customer Support Group,Building Repairs & Maintenance,0060112034,OAKRAY LIMITED,96.00,01/10/2018
Commercial,Customer Support Group,Building Repairs & Maintenance,0060112043,OAKRAY LIMITED,"2,332.20",15/10/2018
Commercial,Customer Support Group,Building Repairs & Maintenance,0060112091,OAKRAY LIMITED,108.00,15/10/2018
Commercial,Customer Support Group,Building Repairs & Maintenance,0060113680,OAKRAY LIMITED,"4,647.38",11/10/2018
Commercial,Customer Support Group,Building Repairs & Maintenance,0060113796,OAKRAY LIMITED,232.88,11/10/2018
Commercial,Customer Support Group,Building Repairs & Maintenance,0060114443,OAKRAY LIMITED,189.00,11/10/2018
Commercial,Customer Support Group,Building Repairs & Maintenance,0060114499,OAKRAY LIMITED,108.00,11/10/2018
Commercial,Customer Support Group,Building Repairs & Maintenance,0060114500,OAKRAY LIMITED,80.00,11/10/2018
Commercial,Customer Support Group,Building Repairs & Maintenance,0060114514,OAKRAY LIMITED,108.00,11/10/2018
Commercial,Customer Support Group,Building Repairs & Maintenance,0060114560,OAKRAY LIMITED,313.20,09/10/2018
Commercial,Customer Support Group,Building Repairs & Maintenance,0060114574,OAKRAY LIMITED,80.00,11/10/2018
Commercial,Customer Support Group,Building Repairs & Maintenance,0060114577,OAKRAY LIMITED,112.00,11/10/2018
Commercial,Customer Support Group,Building Repairs & Maintenance,0060114740,OAKRAY LIMITED,136.00,25/10/2018
Commercial,Customer Support Group,Building Repairs & Maintenance,0060114741,OAKRAY LIMITED,80.00,25/10/2018
Commercial,Customer Support Group,Building Repairs & Maintenance,0060114749,OAKRAY LIMITED,80.00,25/10/2018
Commercial,Customer Support Group,Building Repairs & Maintenance,0060114750,OAKRAY LIMITED,80.00,25/10/2018
Commercial,Customer Support Group,Building Repairs & Maintenance,0060114751,OAKRAY LIMITED,102.00,25/10/2018
Commercial,Customer Support Group,Building Repairs & Maintenance,0060114753,OAKRAY LIMITED,476.73,25/10/2018
Commercial,Customer Support Group,Building Repairs & Maintenance,0060114758,OAKRAY LIMITED,112.00,25/10/2018
Commercial,Customer Support Group,Building Repairs & Maintenance,0060114759,OAKRAY LIMITED,85.00,25/10/2018
Commercial,Customer Support Group,Building Repairs & Maintenance,0060114760,OAKRAY LIMITED,410.16,25/10/2018
Commercial,Customer Support Group,Building Repairs & Maintenance,0060114761,OAKRAY LIMITED,192.00,25/10/2018
Commercial,Customer Support Group,Building Repairs & Maintenance,0060114771,OAKRAY LIMITED,96.00,25/10/2018
Commercial,Customer Support Group,Building Repairs & Maintenance,0060114773,OAKRAY LIMITED,96.00,25/10/2018
Commercial,Customer Support Group,Building Repairs & Maintenance,0060114783,OAKRAY LIMITED,85.00,25/10/2018
Commercial,Customer Support Group,Building Repairs & Maintenance,0060114787,OAKRAY LIMITED,136.00,25/10/2018
Commercial,Customer Support Group,Building Repairs & Maintenance,0060114789,OAKRAY LIMITED,160.00,25/10/2018
Commercial,Customer Support Group,Building Repairs & Maintenance,0060114793,OAKRAY LIMITED,80.00,25/10/2018
Commercial,Customer Support Group,Building Repairs & Maintenance,0060114794,OAKRAY LIMITED,96.00,25/10/2018
Commercial,Customer Support Group,Building Repairs & Maintenance,0060114797,OAKRAY LIMITED,658.75,25/10/2018
Commercial,Customer Support Group,Building Repairs & Maintenance,0060114800,OAKRAY LIMITED,216.00,25/10/2018
Commercial,Customer Support Group,Building Repairs & Maintenance,0060114801,OAKRAY LIMITED,242.49,31/10/2018
Commercial,Customer Support Group,Building Repairs & Maintenance,0060114811,OAKRAY LIMITED,112.34,25/10/2018
Commercial,Customer Support Group,Building Repairs & Maintenance,0060114812,OAKRAY LIMITED,143.57,25/10/2018
Commercial,Customer Support Group,Building Repairs & Maintenance,0060114814,OAKRAY LIMITED,170.00,25/10/2018
Commercial,Customer Support Group,Building Repairs & Maintenance,0060114816,OAKRAY LIMITED,208.02,25/10/2018
Commercial,Customer Support Group,Building Repairs & Maintenance,0060114822,OAKRAY LIMITED,160.00,25/10/2018
Commercial,Customer Support Group,Building Repairs & Maintenance,0060115274,OAKRAY LIMITED,128.00,25/10/2018
Commercial,Customer Support Group,Building Repairs & Maintenance,0060115494,OAKRAY LIMITED,216.00,25/10/2018
Commercial,Customer Support Group,Building Repairs & Maintenance,0060115535,OAKRAY LIMITED,211.00,25/10/2018
Commercial,Customer Support Group,Building Repairs & Maintenance,0060115568,OAKRAY LIMITED,92.00,25/10/2018
Commercial,Customer Support Group,Building Repairs & Maintenance,0060115991,OAKRAY LIMITED,144.00,31/10/2018
Commercial,Customer Support Group,Building Repairs & Maintenance,0060116003,OAKRAY LIMITED,88.00,31/10/2018
Commercial,Customer Support Group,Building Repairs & Maintenance,0060099008,S W BRUCE & CO LTD,132.00,19/10/2018
Commercial,Customer Support Group,Building Repairs & Maintenance,0060099032,S W BRUCE & CO LTD,182.80,19/10/2018
Commercial,Customer Support Group,Building Repairs & Maintenance,0060099061,S W BRUCE & CO LTD,60.00,19/10/2018
Commercial,Customer Support Group,Building Repairs & Maintenance,0060099108,S W BRUCE & CO LTD,181.76,19/10/2018
Commercial,Customer Support Group,Building Repairs & Maintenance,0060102878,S W BRUCE & CO LTD,"1,173.00",24/10/2018
Commercial,Customer Support Group,Building Repairs & Maintenance,0060102950,S W BRUCE & CO LTD,287.50,19/10/2018
Commercial,Customer Support Group,Building Repairs & Maintenance,0060102962,S W BRUCE & CO LTD,286.00,19/10/2018
Commercial,Customer Support Group,Building Repairs & Maintenance,0060103024,S W BRUCE & CO LTD,127.65,19/10/2018
Commercial,Customer Support Group,Building Repairs & Maintenance,0060103253,S W BRUCE & CO LTD,363.38,19/10/2018
Commercial,Customer Support Group,Building Repairs & Maintenance,0060103272,S W BRUCE & CO LTD,872.10,22/10/2018
Commercial,Customer Support Group,Building Repairs & Maintenance,0060103712,S W BRUCE & CO LTD,169.00,29/10/2018
Commercial,Customer Support Group,Building Repairs & Maintenance,0060104086,S W BRUCE & CO LTD,32.00,19/10/2018
Commercial,Customer Support Group,Building Repairs & Maintenance,0060104481,S W BRUCE & CO LTD,307.05,19/10/2018
Commercial,Customer Support Group,Building Repairs & Maintenance,0060106188,S W BRUCE & CO LTD,301.28,19/10/2018
Commercial,Customer Support Group,Building Repairs & Maintenance,0060113052,S W BRUCE & CO LTD,"6,008.62",04/10/2018
Commercial,Customer Support Group,Building Repairs & Maintenance,0060113207,S W BRUCE & CO LTD,142.81,09/10/2018
Commercial,Customer Support Group,Building Repairs & Maintenance,0060115017,S W BRUCE & CO LTD,130.15,19/10/2018
Commercial,Customer Support Group,Building Repairs & Maintenance,0060115051,S W BRUCE & CO LTD,927.28,19/10/2018
Commercial,Customer Support Group,Building Repairs & Maintenance,0060114306,ST ANDREWS PAROCHIAL CHURCH COUNCIL,"3,069.00",18/10/2018
Commercial,Customer Support Group,Building Repairs & Maintenance,0060113155,T.&.D.BARRS,153.00,04/10/2018
Commercial,Customer Support Group,Building Repairs & Maintenance,0060113168,T.&.D.BARRS,85.00,04/10/2018
Commercial,Customer Support Group,Building Repairs & Maintenance,0060113189,T.&.D.BARRS,136.00,04/10/2018
Commercial,Customer Support Group,Building Repairs & Maintenance,0060113193,T.&.D.BARRS,275.40,04/10/2018
Commercial,Customer Support Group,Building Repairs & Maintenance,0060113202,T.&.D.BARRS,280.50,04/10/2018
Commercial,Customer Support Group,Building Repairs & Maintenance,0060113205,T.&.D.BARRS,95.20,04/10/2018
Commercial,Customer Support Group,Building Repairs & Maintenance,0060113349,T.&.D.BARRS,335.75,09/10/2018
Commercial,Customer Support Group,Building Repairs & Maintenance,0060114779,T.&.D.BARRS,76.50,31/10/2018
Commercial,Customer Support Group,Building Repairs & Maintenance,0060114788,T.&.D.BARRS,369.75,31/10/2018
Commercial,Customer Support Group,Building Repairs & Maintenance,0060114790,T.&.D.BARRS,59.50,31/10/2018
Commercial,Customer Support Group,Building Repairs & Maintenance,0060114804,T.&.D.BARRS,34.00,31/10/2018
Commercial,Customer Support Group,Building Repairs & Maintenance,0060114807,T.&.D.BARRS,357.00,31/10/2018
Commercial,Customer Support Group,Building Repairs & Maintenance,0060114820,T.&.D.BARRS,127.50,31/10/2018
Commercial,Customer Support Group,Building Repairs & Maintenance,0060105396,TANN SYNCHRONOME LTD,"1,357.00",01/10/2018
Commercial,Customer Support Group,Building Repairs & Maintenance,0060111192,TANN SYNCHRONOME LTD,"3,889.79",01/10/2018
Commercial,Customer Support Group,Building Repairs & Maintenance,0060102192,THAMES LABORATORIES,215.00,24/10/2018
Commercial,Customer Support Group,Building Repairs & Maintenance,0060115407,THAMES LABORATORIES,90.00,25/10/2018
Commercial,Customer Support Group,Building Repairs & Maintenance,0060115546,THAMES LABORATORIES,195.00,24/10/2018
Commercial,Customer Support Group,Building Repairs & Maintenance,0060115633,THAMES LABORATORIES,545.00,24/10/2018
Commercial,Customer Support Group,Building Repairs & Maintenance,0060115704,THAMES LABORATORIES,"2,685.00",24/10/2018
Commercial,Customer Support Group,Building Repairs & Maintenance,0060115792,THAMES LABORATORIES,195.00,29/10/2018
Commercial,Customer Support Group,Building Repairs & Maintenance,0060115848,THAMES LABORATORIES,625.00,30/10/2018
Commercial,Customer Support Group,Building Repairs & Maintenance,0060116038,THAMES LABORATORIES,195.00,31/10/2018
Commercial,Customer Support Group,Building Repairs & Maintenance,0060112367,WATES LIVING SPACE,734.16,22/10/2018
Commercial,Customer Support Group,Building Repairs & Maintenance,0060113678,WATES LIVING SPACE,71.25,17/10/2018
Commercial,Customer Support Group,Building Repairs & Maintenance,0060114529,WATES LIVING SPACE,438.55,25/10/2018
Commercial,Customer Support Group,Building Repairs & Maintenance,0060114582,WATES LIVING SPACE,106.88,18/10/2018
Commercial,Customer Support Group,Building Repairs & Maintenance,0060115508,WOODS BUILDING SERVICES,"5,775.00",24/10/2018
Commercial,Customer Support Group,Cleaning and domestic material,0060108044,CHURCHILL CONTRACT SERVICES,661.80,25/10/2018
Commercial,Customer Support Group,Cleaning and domestic material,0060110687,CHURCHILL CONTRACT SERVICES,119.70,22/10/2018
Commercial,Customer Support Group,Cleaning and domestic material,0060110864,CHURCHILL CONTRACT SERVICES,661.80,25/10/2018
Commercial,Customer Support Group,Cleaning and domestic material,0060112793,CHURCHILL CONTRACT SERVICES,"1,032.37",24/10/2018
Commercial,Customer Support Group,Cleaning and domestic material,0060112802,CHURCHILL CONTRACT SERVICES,294.16,24/10/2018
Commercial,Customer Support Group,Cleaning and domestic material,0060113002,CHURCHILL CONTRACT SERVICES,39.90,22/10/2018
Commercial,Customer Support Group,Cleaning and domestic material,0060111224,HERTFORDSHIRE COUNTY COUNCIL,211.38,29/10/2018
Commercial,Customer Support Group,Cleaning and domestic material,0060114656,HERTFORDSHIRE SUPPLIES   COUNTY CO,"2,780.02",11/10/2018
Commercial,Customer Support Group,Cleaning and domestic material,0060114669,HERTFORDSHIRE SUPPLIES   COUNTY CO,"2,344.42",11/10/2018
Commercial,Customer Support Group,Cleaning and domestic material,0060114699,HERTFORDSHIRE SUPPLIES   COUNTY CO,197.34,11/10/2018
Commercial,Customer Support Group,Cleaning and domestic material,0060114700,HERTFORDSHIRE SUPPLIES   COUNTY CO,191.42,11/10/2018
Commercial,Customer Support Group,Consultants Fees,0080020248,YMCA LONDON,"3,750.00",11/10/2018
Commercial,Customer Support Group,CSG Services Contract Payment,0060113212,CAPITA BUSINESS SERVICES LTD,"5,216.85",29/10/2018
Commercial,Customer Support Group,CSG Services Contract Payment,0060113818,CAPITA BUSINESS SERVICES LTD,"-60,379.00",29/10/2018
Commercial,Customer Support Group,CSG Services Contract Payment,0060113823,CAPITA BUSINESS SERVICES LTD,"-360,185.00",29/10/2018
Commercial,Customer Support Group,CSG Services Contract Payment,0060115048,CAPITA BUSINESS SERVICES LTD,"35,661.45",29/10/2018
Commercial,Customer Support Group,CSG Services Contract Payment,0060115054,CAPITA BUSINESS SERVICES LTD,"8,175.91",29/10/2018
Commercial,Customer Support Group,CSG Services Contract Payment,0060115069,CAPITA BUSINESS SERVICES LTD,"35,889.26",29/10/2018
Commercial,Customer Support Group,CSG Services Contract Payment,0060115083,CAPITA BUSINESS SERVICES LTD,"5,057.63",29/10/2018
Commercial,Customer Support Group,CSG Services Contract Payment,0060115410,CAPITA BUSINESS SERVICES LTD,"1,768,294.00",29/10/2018
Commercial,Customer Support Group,CSG Services Contract Payment,0060115446,CAPITA BUSINESS SERVICES LTD,"15,225.00",29/10/2018
Commercial,Customer Support Group,Electricity,0060114713,BRITISH GAS BUSINESS,"4,101.49",11/10/2018
Commercial,Customer Support Group,Electricity,0060115851,BRITISH GAS BUSINESS,39.67,30/10/2018
Commercial,Customer Support Group,Electricity,0060115942,BRITISH GAS BUSINESS,39.67,30/10/2018
Commercial,Customer Support Group,Electricity,0010014297,E-ON ENERGY,19.45,24/10/2018
Commercial,Customer Support Group,Electricity,0010014299,E-ON ENERGY,19.45,24/10/2018
Commercial,Customer Support Group,Electricity,0010014300,E-ON ENERGY,19.45,24/10/2018
Commercial,Customer Support Group,Electricity,0010014301,E-ON ENERGY,19.45,24/10/2018
Commercial,Customer Support Group,Electricity,0010014303,E-ON ENERGY,19.45,24/10/2018
Commercial,Customer Support Group,Electricity,0010014304,E-ON ENERGY,19.45,24/10/2018
Commercial,Customer Support Group,Electricity,0010014305,E-ON ENERGY,19.45,24/10/2018
Commercial,Customer Support Group,Electricity,0010014307,E-ON ENERGY,19.45,24/10/2018
Commercial,Customer Support Group,Electricity,0010014308,E-ON ENERGY,19.45,24/10/2018
Commercial,Customer Support Group,Electricity,0010014350,E-ON ENERGY,126.18,29/10/2018
Commercial,Customer Support Group,Electricity,0060113333,E-ON ENERGY,146.26,25/10/2018
Commercial,Customer Support Group,Electricity,0060101598,KENT COUNTY COUNCIL (KCS),191.61,10/10/2018
Commercial,Customer Support Group,Electricity,0060101614,KENT COUNTY COUNCIL (KCS),185.47,10/10/2018
Commercial,Customer Support Group,Electricity,0060103162,KENT COUNTY COUNCIL (KCS),269.10,25/10/2018
Commercial,Customer Support Group,Electricity,0060105650,KENT COUNTY COUNCIL (KCS),150.70,11/10/2018
Commercial,Customer Support Group,Electricity,0060105657,KENT COUNTY COUNCIL (KCS),39.74,11/10/2018
Commercial,Customer Support Group,Electricity,0060105688,KENT COUNTY COUNCIL (KCS),62.22,11/10/2018
Commercial,Customer Support Group,Electricity,0060105694,KENT COUNTY COUNCIL (KCS),47.41,11/10/2018
Commercial,Customer Support Group,Electricity,0060105711,KENT COUNTY COUNCIL (KCS),380.95,11/10/2018
Commercial,Customer Support Group,Electricity,0060105726,KENT COUNTY COUNCIL (KCS),54.30,11/10/2018
Commercial,Customer Support Group,Electricity,0060105727,KENT COUNTY COUNCIL (KCS),36.23,11/10/2018
Commercial,Customer Support Group,Electricity,0060105734,KENT COUNTY COUNCIL (KCS),37.98,11/10/2018
Commercial,Customer Support Group,Electricity,0060108828,KENT COUNTY COUNCIL (KCS),"-3,784.83",03/10/2018
Commercial,Customer Support Group,Electricity,0060113406,KENT COUNTY COUNCIL (KCS),"1,271.62",03/10/2018
Commercial,Customer Support Group,Electricity,0060113675,KENT COUNTY COUNCIL (KCS),212.88,03/10/2018
Commercial,Customer Support Group,Electricity,0060113752,KENT COUNTY COUNCIL (KCS),"1,518.29",08/10/2018
Commercial,Customer Support Group,Electricity,0060113805,KENT COUNTY COUNCIL (KCS),"4,925.19",03/10/2018
Commercial,Customer Support Group,Electricity,0060113894,KENT COUNTY COUNCIL (KCS),"1,729.89",03/10/2018
Commercial,Customer Support Group,Electricity,0060114153,KENT COUNTY COUNCIL (KCS),"1,412.80",10/10/2018
Commercial,Customer Support Group,Electricity,0060114164,KENT COUNTY COUNCIL (KCS),"3,049.59",04/10/2018
Commercial,Customer Support Group,Electricity,0060114204,KENT COUNTY COUNCIL (KCS),853.35,10/10/2018
Commercial,Customer Support Group,Electricity,0060115405,KENT COUNTY COUNCIL (KCS),208.55,24/10/2018
Commercial,Customer Support Group,Electricity,0060115922,KENT COUNTY COUNCIL (KCS),620.15,30/10/2018
Commercial,Customer Support Group,Electricity,0060115918,SCOTTISH POWER GROUP,"1,078.40",30/10/2018
Commercial,Customer Support Group,Equipment and Materials Purcha,0060113404,AUDITEL SYSTEMS,792.50,10/10/2018
Commercial,Customer Support Group,Fees and Charges,0080020137,REDACTED - PERSONAL DATA,205.00,08/10/2018
Commercial,Customer Support Group,Furniture-Purchase-Repair,0060113566,LYCO DIRECT LTD,79.59,17/10/2018
Commercial,Customer Support Group,Furniture-Purchase-Repair,0060113969,LYCO DIRECT LTD,41.79,22/10/2018
Commercial,Customer Support Group,Furniture-Purchase-Repair,0060115780,SCREWFIX DIRECT LTD,133.25,26/10/2018
Commercial,Customer Support Group,Furniture-Purchase-Repair,0060115805,SCREWFIX DIRECT LTD,46.61,30/10/2018
Commercial,Customer Support Group,Gas,0060095825,KENT COUNTY COUNCIL (KCS),120.07,18/10/2018
Commercial,Customer Support Group,Gas,0060095913,KENT COUNTY COUNCIL (KCS),125.34,18/10/2018
Commercial,Customer Support Group,Gas,0060096002,KENT COUNTY COUNCIL (KCS),180.31,18/10/2018
Commercial,Customer Support Group,Gas,0060096016,KENT COUNTY COUNCIL (KCS),126.85,18/10/2018
Commercial,Customer Support Group,Gas,0060101541,KENT COUNTY COUNCIL (KCS),184.29,10/10/2018
Commercial,Customer Support Group,Gas,0060101557,KENT COUNTY COUNCIL (KCS),150.71,10/10/2018
Commercial,Customer Support Group,Gas,0060106772,KENT COUNTY COUNCIL (KCS),115.34,11/10/2018
Commercial,Customer Support Group,Gas,0060107414,KENT COUNTY COUNCIL (KCS),13.46,25/10/2018
Commercial,Customer Support Group,Gas,0060109011,KENT COUNTY COUNCIL (KCS),155.71,10/10/2018
Commercial,Customer Support Group,Gas,0060109023,KENT COUNTY COUNCIL (KCS),49.71,25/10/2018
Commercial,Customer Support Group,Gas,0060111916,KENT COUNTY COUNCIL (KCS),144.62,10/10/2018
Commercial,Customer Support Group,Gas,0060113332,KENT COUNTY COUNCIL (KCS),74.76,11/10/2018
Commercial,Customer Support Group,Gas,0060113409,KENT COUNTY COUNCIL (KCS),"-2,340.03",03/10/2018
Commercial,Customer Support Group,Gas,0060113424,KENT COUNTY COUNCIL (KCS),"-2,228.55",03/10/2018
Commercial,Customer Support Group,Gas,0060113500,KENT COUNTY COUNCIL (KCS),105.32,03/10/2018
Commercial,Customer Support Group,Gas,0060113521,KENT COUNTY COUNCIL (KCS),186.03,25/10/2018
Commercial,Customer Support Group,Gas,0060113524,KENT COUNTY COUNCIL (KCS),142.72,03/10/2018
Commercial,Customer Support Group,Gas,0060113532,KENT COUNTY COUNCIL (KCS),165.38,03/10/2018
Commercial,Customer Support Group,Gas,0060113758,KENT COUNTY COUNCIL (KCS),"1,158.12",04/10/2018
Commercial,Customer Support Group,Gas,0060113975,KENT COUNTY COUNCIL (KCS),68.53,11/10/2018
Commercial,Customer Support Group,Gas,0060114021,KENT COUNTY COUNCIL (KCS),272.91,11/10/2018
Commercial,Customer Support Group,Gas,0060114108,KENT COUNTY COUNCIL (KCS),192.21,04/10/2018
Commercial,Customer Support Group,Gas,0060114142,KENT COUNTY COUNCIL (KCS),143.21,10/10/2018
Commercial,Customer Support Group,Gas,0060115381,KENT COUNTY COUNCIL (KCS),8.35,24/10/2018
Commercial,Customer Support Group,Gas,0060115409,KENT COUNTY COUNCIL (KCS),121.83,24/10/2018
Commercial,Customer Support Group,Gas,0060115881,KENT COUNTY COUNCIL (KCS),164.19,31/10/2018
Commercial,Customer Support Group,Gas,0060115893,OPUS ENERGY LTD,89.70,30/10/2018
Commercial,Customer Support Group,Gas,0010014351,TOTAL GAS & POWER LTD,655.63,29/10/2018
Commercial,Customer Support Group,Other Services,0010014269,BLUE 9 SECURITY LIMITED,"22,990.50",17/10/2018
Commercial,Customer Support Group,Other Services,0010014270,BLUE 9 SECURITY LIMITED,"5,566.01",17/10/2018
Commercial,Customer Support Group,Other Services,0010014271,BLUE 9 SECURITY LIMITED,15.57,17/10/2018
Commercial,Customer Support Group,Other Services,0010014274,BLUE 9 SECURITY LIMITED,13.43,17/10/2018
Commercial,Customer Support Group,Other Services,0010014275,BLUE 9 SECURITY LIMITED,"11,210.40",17/10/2018
Commercial,Customer Support Group,Other Services,0010014276,BLUE 9 SECURITY LIMITED,920.00,17/10/2018
Commercial,Customer Support Group,Other Services,0010014277,BLUE 9 SECURITY LIMITED,108.80,17/10/2018
Commercial,Customer Support Group,Other Services,0060114119,BLUE 9 SECURITY LIMITED,"2,041.98",16/10/2018
Commercial,Customer Support Group,Other Services,0060114139,BLUE 9 SECURITY LIMITED,"1,977.12",16/10/2018
Commercial,Customer Support Group,Other Services,0060114442,BLUE 9 SECURITY LIMITED,53.72,10/10/2018
Commercial,Customer Support Group,Other Services,0060114508,BLUE 9 SECURITY LIMITED,15.57,10/10/2018
Commercial,Customer Support Group,Other Services,0060114531,BLUE 9 SECURITY LIMITED,201.45,10/10/2018
Commercial,Customer Support Group,Other Services,0060114559,BLUE 9 SECURITY LIMITED,"11,210.40",10/10/2018
Commercial,Customer Support Group,Other Services,0060114575,BLUE 9 SECURITY LIMITED,"22,039.20",10/10/2018
Commercial,Customer Support Group,Other Services,0060103685,ECOLAB SERVICES LTD,47.15,22/10/2018
Commercial,Customer Support Group,Other Services,0060103686,ECOLAB SERVICES LTD,47.15,22/10/2018
Commercial,Customer Support Group,Other Services,0060103688,ECOLAB SERVICES LTD,47.15,22/10/2018
Commercial,Customer Support Group,Other Services,0060103713,ECOLAB SERVICES LTD,47.15,22/10/2018
Commercial,Customer Support Group,Other Services,0060103724,ECOLAB SERVICES LTD,47.15,22/10/2018
Commercial,Customer Support Group,Other Services,0060103743,ECOLAB SERVICES LTD,47.15,22/10/2018
Commercial,Customer Support Group,Other Services,0060103753,ECOLAB SERVICES LTD,47.15,22/10/2018
Commercial,Customer Support Group,Other Services,0060115271,ECOLAB SERVICES LTD,47.15,22/10/2018
Commercial,Customer Support Group,Other Services,0060115278,ECOLAB SERVICES LTD,47.15,22/10/2018
Commercial,Customer Support Group,Other Services,0060114542,LONDON CARETAKERS,280.00,29/10/2018
Commercial,Customer Support Group,Postage,0060109266,ASPENLINK LIMITED,"14,202.60",29/10/2018
Commercial,Customer Support Group,Postage,0060113178,ENVOPRINT,525.00,04/10/2018
Commercial,Customer Support Group,Postage,0060113980,ENVOPRINT,627.00,18/10/2018
Commercial,Customer Support Group,Postage,0060103871,KAS PAPER SYSTEMS LTD,736.80,19/10/2018
Commercial,Customer Support Group,Postage,0060115647,OFF THE WALL MARKETING LTD,"1,102.00",29/10/2018
Commercial,Customer Support Group,Rents,0060114861,NETWORK RAIL ACCOUNTS RECEIVABLE,"56,600.00",12/10/2018
Commercial,Customer Support Group,Rubbish Collection,0060114780,G.B.HOLDINGS LTD,331.60,25/10/2018
Commercial,Customer Support Group,Rubbish Collection,0060114810,G.B.HOLDINGS LTD,33.60,11/10/2018
Commercial,Customer Support Group,Rubbish Collection,0060111308,PEARCE RECYCLING CO. LTD,126.00,16/10/2018
Commercial,Customer Support Group,Rubbish Collection,0060114948,PREMIER SHREDDING,50.00,15/10/2018
Commercial,Customer Support Group,Ttl IT & Comms,0060115196,VODAFONE LTD (BILLS ONLY),385.78,18/10/2018
Commercial,Customer Support Group,Ttl IT & Comms,0060115209,VODAFONE LTD (BILLS ONLY),338.27,18/10/2018
Commercial,Customer Support Group,Water Services,0010014379,AFFINITY WATER LIMITED,108.71,31/10/2018
Commercial,Customer Support Group,Water Services,0060112759,AFFINITY WATER LIMITED,450.87,17/10/2018
Commercial,Customer Support Group,Water Services,0060114136,AFFINITY WATER LIMITED,244.04,26/10/2018
Commercial,Customer Support Group,Water Services,0060114672,AFFINITY WATER LIMITED,561.16,31/10/2018
Commercial,Customer Support Group,Water Services,0060114714,AFFINITY WATER LIMITED,177.76,11/10/2018
Commercial,Customer Support Group,Water Services,0060111614,CASTLE WATER LTD,22.87,16/10/2018
Commercial,Customer Support Group,Water Services,0060114215,CASTLE WATER LTD,27.21,05/10/2018
Commercial,Customer Support Group,Water Services,0060114239,CASTLE WATER LTD,42.34,05/10/2018
Commercial,Customer Support Group,Water Services,0060114256,CASTLE WATER LTD,529.47,16/10/2018
Commercial,Customer Support Group,Water Services,0060114635,CASTLE WATER LTD,27.44,23/10/2018
Commercial,Customer Support Group,Water Services,0060114653,CASTLE WATER LTD,32.94,11/10/2018
Commercial,Green Spaces,Building Repairs & Maintenance,0060114901,BARNET LOCK CENTRE LTD.,115.78,16/10/2018
Commercial,Green Spaces,Building Repairs & Maintenance,0060114910,BARNET LOCK CENTRE LTD.,53.36,16/10/2018
Commercial,Green Spaces,Building Repairs & Maintenance,0060114921,BARNET LOCK CENTRE LTD.,62.00,16/10/2018
Commercial,Green Spaces,Building Repairs & Maintenance,0060114928,BARNET LOCK CENTRE LTD.,152.56,16/10/2018
Commercial,Green Spaces,Building Repairs & Maintenance,0060114931,BARNET LOCK CENTRE LTD.,172.74,16/10/2018
Commercial,Green Spaces,Building Repairs & Maintenance,0060114950,BARNET LOCK CENTRE LTD.,152.56,16/10/2018
Commercial,Green Spaces,Building Repairs & Maintenance,0060114957,BARNET LOCK CENTRE LTD.,200.24,16/10/2018
Commercial,Green Spaces,Building Repairs & Maintenance,0060114973,BARNET LOCK CENTRE LTD.,273.54,16/10/2018
Commercial,Green Spaces,Building Repairs & Maintenance,0060114975,BARNET LOCK CENTRE LTD.,147.32,16/10/2018
Commercial,Green Spaces,Building Repairs & Maintenance,0060115794,BARNET LOCK CENTRE LTD.,62.00,30/10/2018
Commercial,Green Spaces,Building Repairs & Maintenance,0060115799,BARNET LOCK CENTRE LTD.,62.00,30/10/2018
Commercial,Green Spaces,Building Repairs & Maintenance,0060115801,BARNET LOCK CENTRE LTD.,160.51,30/10/2018
Commercial,Green Spaces,Building Repairs & Maintenance,0060115802,BARNET LOCK CENTRE LTD.,121.84,30/10/2018
Commercial,Green Spaces,Building Repairs & Maintenance,0060115806,BARNET LOCK CENTRE LTD.,80.20,30/10/2018
Commercial,Green Spaces,Building Repairs & Maintenance,0060115812,BARNET LOCK CENTRE LTD.,259.98,30/10/2018
Commercial,Green Spaces,Building Repairs & Maintenance,0060115813,BARNET LOCK CENTRE LTD.,104.66,30/10/2018
Commercial,Green Spaces,Building Repairs & Maintenance,0060115817,BARNET LOCK CENTRE LTD.,165.50,30/10/2018
Commercial,Green Spaces,Building Repairs & Maintenance,0060115822,BARNET LOCK CENTRE LTD.,227.22,30/10/2018
Commercial,Green Spaces,Building Repairs & Maintenance,0060115828,BARNET LOCK CENTRE LTD.,62.00,30/10/2018
Commercial,Green Spaces,Building Repairs & Maintenance,0060115831,BARNET LOCK CENTRE LTD.,62.00,30/10/2018
Commercial,Green Spaces,Building Repairs & Maintenance,0060115832,BARNET LOCK CENTRE LTD.,121.84,30/10/2018
Commercial,Green Spaces,Building Repairs & Maintenance,0060115836,BARNET LOCK CENTRE LTD.,152.56,30/10/2018
Commercial,Green Spaces,Building Repairs & Maintenance,0060115847,BARNET LOCK CENTRE LTD.,74.50,30/10/2018
Commercial,Green Spaces,Building Repairs & Maintenance,0060113414,CONTACT ROLLER SHUTTERS LTD,640.00,11/10/2018
Commercial,Green Spaces,Building Repairs & Maintenance,0060113243,S W BRUCE & CO LTD,95.00,29/10/2018
Commercial,Green Spaces,Building Repairs & Maintenance,0010014309,THAMES LABORATORIES,90.00,24/10/2018
Commercial,Green Spaces,Building Repairs & Maintenance,0010014375,THAMES LABORATORIES,365.00,31/10/2018
Commercial,Green Spaces,Building Repairs & Maintenance,0060115471,THAMES LABORATORIES,90.00,31/10/2018
Commercial,Green Spaces,Building Repairs & Maintenance,0060115479,THAMES LABORATORIES,120.00,31/10/2018
Commercial,Green Spaces,Building Repairs & Maintenance,0060115532,THAMES LABORATORIES,339.00,31/10/2018
Commercial,Green Spaces,Building Repairs & Maintenance,0060115549,THAMES LABORATORIES,90.00,31/10/2018
Commercial,Green Spaces,Building Repairs & Maintenance,0060115567,THAMES LABORATORIES,120.00,31/10/2018
Commercial,Green Spaces,Building Repairs & Maintenance,0060114634,WATES LIVING SPACE,71.25,26/10/2018
Commercial,Green Spaces,Building Repairs & Maintenance,0060114817,WATES LIVING SPACE,168.11,25/10/2018
Commercial,Green Spaces,Electricity,0010014264,KENT COUNTY COUNCIL (KCS),133.06,12/10/2018
Commercial,Green Spaces,Electricity,0060094561,KENT COUNTY COUNCIL (KCS),57.52,24/10/2018
Commercial,Green Spaces,Electricity,0060101492,KENT COUNTY COUNCIL (KCS),170.66,24/10/2018
Commercial,Green Spaces,Electricity,0060101495,KENT COUNTY COUNCIL (KCS),141.30,25/10/2018
Commercial,Green Spaces,Electricity,0060101498,KENT COUNTY COUNCIL (KCS),70.20,11/10/2018
Commercial,Green Spaces,Electricity,0060101500,KENT COUNTY COUNCIL (KCS),172.25,25/10/2018
Commercial,Green Spaces,Electricity,0060101510,KENT COUNTY COUNCIL (KCS),53.73,11/10/2018
Commercial,Green Spaces,Electricity,0060101523,KENT COUNTY COUNCIL (KCS),165.75,18/10/2018
Commercial,Green Spaces,Electricity,0060101534,KENT COUNTY COUNCIL (KCS),508.19,11/10/2018
Commercial,Green Spaces,Electricity,0060101547,KENT COUNTY COUNCIL (KCS),37.84,18/10/2018
Commercial,Green Spaces,Electricity,0060101553,KENT COUNTY COUNCIL (KCS),133.16,10/10/2018
Commercial,Green Spaces,Electricity,0060101567,KENT COUNTY COUNCIL (KCS),252.47,18/10/2018
Commercial,Green Spaces,Electricity,0060101573,KENT COUNTY COUNCIL (KCS),9.19,10/10/2018
Commercial,Green Spaces,Electricity,0060101575,KENT COUNTY COUNCIL (KCS),120.84,10/10/2018
Commercial,Green Spaces,Electricity,0060101581,KENT COUNTY COUNCIL (KCS),90.11,10/10/2018
Commercial,Green Spaces,Electricity,0060101583,KENT COUNTY COUNCIL (KCS),8.91,10/10/2018
Commercial,Green Spaces,Electricity,0060101596,KENT COUNTY COUNCIL (KCS),18.08,10/10/2018
Commercial,Green Spaces,Electricity,0060101600,KENT COUNTY COUNCIL (KCS),27.45,10/10/2018
Commercial,Green Spaces,Electricity,0060101606,KENT COUNTY COUNCIL (KCS),21.38,25/10/2018
Commercial,Green Spaces,Electricity,0060101610,KENT COUNTY COUNCIL (KCS),954.53,24/10/2018
Commercial,Green Spaces,Electricity,0060101611,KENT COUNTY COUNCIL (KCS),27.34,10/10/2018
Commercial,Green Spaces,Electricity,0060101619,KENT COUNTY COUNCIL (KCS),135.89,25/10/2018
Commercial,Green Spaces,Electricity,0060101634,KENT COUNTY COUNCIL (KCS),420.27,25/10/2018
Commercial,Green Spaces,Electricity,0060108339,KENT COUNTY COUNCIL (KCS),44.32,11/10/2018
Commercial,Green Spaces,Electricity,0060108377,KENT COUNTY COUNCIL (KCS),163.68,11/10/2018
Commercial,Green Spaces,Electricity,0060108380,KENT COUNTY COUNCIL (KCS),21.51,11/10/2018
Commercial,Green Spaces,Electricity,0060108389,KENT COUNTY COUNCIL (KCS),137.70,31/10/2018
Commercial,Green Spaces,Electricity,0060108395,KENT COUNTY COUNCIL (KCS),20.91,11/10/2018
Commercial,Green Spaces,Electricity,0060108407,KENT COUNTY COUNCIL (KCS),23.32,11/10/2018
Commercial,Green Spaces,Electricity,0060108419,KENT COUNTY COUNCIL (KCS),22.76,11/10/2018
Commercial,Green Spaces,Electricity,0060108425,KENT COUNTY COUNCIL (KCS),117.95,11/10/2018
Commercial,Green Spaces,Electricity,0060108427,KENT COUNTY COUNCIL (KCS),40.22,25/10/2018
Commercial,Green Spaces,Electricity,0060108429,KENT COUNTY COUNCIL (KCS),489.23,11/10/2018
Commercial,Green Spaces,Electricity,0060108436,KENT COUNTY COUNCIL (KCS),64.75,11/10/2018
Commercial,Green Spaces,Electricity,0060108441,KENT COUNTY COUNCIL (KCS),90.97,11/10/2018
Commercial,Green Spaces,Electricity,0060108442,KENT COUNTY COUNCIL (KCS),67.54,11/10/2018
Commercial,Green Spaces,Electricity,0060108488,KENT COUNTY COUNCIL (KCS),45.67,11/10/2018
Commercial,Green Spaces,Electricity,0060108490,KENT COUNTY COUNCIL (KCS),26.52,25/10/2018
Commercial,Green Spaces,Electricity,0060108499,KENT COUNTY COUNCIL (KCS),155.25,11/10/2018
Commercial,Green Spaces,Electricity,0060108518,KENT COUNTY COUNCIL (KCS),199.33,11/10/2018
Commercial,Green Spaces,Electricity,0060108519,KENT COUNTY COUNCIL (KCS),167.77,11/10/2018
Commercial,Green Spaces,Electricity,0060108524,KENT COUNTY COUNCIL (KCS),220.33,11/10/2018
Commercial,Green Spaces,Electricity,0060110340,KENT COUNTY COUNCIL (KCS),40.31,11/10/2018
Commercial,Green Spaces,Electricity,0060110345,KENT COUNTY COUNCIL (KCS),90.40,11/10/2018
Commercial,Green Spaces,Electricity,0060110367,KENT COUNTY COUNCIL (KCS),137.22,31/10/2018
Commercial,Green Spaces,Electricity,0060110382,KENT COUNTY COUNCIL (KCS),170.38,11/10/2018
Commercial,Green Spaces,Electricity,0060110383,KENT COUNTY COUNCIL (KCS),21.15,11/10/2018
Commercial,Green Spaces,Electricity,0060110385,KENT COUNTY COUNCIL (KCS),119.55,11/10/2018
Commercial,Green Spaces,Electricity,0060110395,KENT COUNTY COUNCIL (KCS),248.83,11/10/2018
Commercial,Green Spaces,Electricity,0060110407,KENT COUNTY COUNCIL (KCS),109.07,11/10/2018
Commercial,Green Spaces,Electricity,0060110428,KENT COUNTY COUNCIL (KCS),23.02,11/10/2018
Commercial,Green Spaces,Electricity,0060112337,KENT COUNTY COUNCIL (KCS),54.52,18/10/2018
Commercial,Green Spaces,Electricity,0060112355,KENT COUNTY COUNCIL (KCS),81.99,18/10/2018
Commercial,Green Spaces,Electricity,0060112694,KENT COUNTY COUNCIL (KCS),420.27,23/10/2018
Commercial,Green Spaces,Electricity,0060112699,KENT COUNTY COUNCIL (KCS),74.63,11/10/2018
Commercial,Green Spaces,Electricity,0060112701,KENT COUNTY COUNCIL (KCS),377.18,11/10/2018
Commercial,Green Spaces,Electricity,0060112718,KENT COUNTY COUNCIL (KCS),251.30,11/10/2018
Commercial,Green Spaces,Electricity,0060112723,KENT COUNTY COUNCIL (KCS),21.38,11/10/2018
Commercial,Green Spaces,Electricity,0060112731,KENT COUNTY COUNCIL (KCS),119.10,11/10/2018
Commercial,Green Spaces,Electricity,0060112745,KENT COUNTY COUNCIL (KCS),170.41,11/10/2018
Commercial,Green Spaces,Electricity,0060114175,KENT COUNTY COUNCIL (KCS),38.19,11/10/2018
Commercial,Green Spaces,Electricity,0060114234,KENT COUNTY COUNCIL (KCS),"1,444.26",24/10/2018
Commercial,Green Spaces,Electricity,0060114493,KENT COUNTY COUNCIL (KCS),"1,568.61",09/10/2018
Commercial,Green Spaces,Equipment and Materials Purcha,0010014331,EARTH ANCHORS LTD,"5,227.00",24/10/2018
Commercial,Green Spaces,Equipment and Materials Purcha,0060111479,HAGS PLAY LTD,157.50,18/10/2018
Commercial,Green Spaces,Equipment and Materials Purcha,0060111665,HAGS PLAY LTD,206.20,18/10/2018
Commercial,Green Spaces,Equipment and Materials Purcha,0060114053,HAGS PLAY LTD,"1,712.00",18/10/2018
Commercial,Green Spaces,Equipment and Materials Purcha,0060109683,TREVOR ILES LTD,"6,950.00",22/10/2018
Commercial,Green Spaces,Gas,0010014298,KENT COUNTY COUNCIL (KCS),68.45,24/10/2018
Commercial,Green Spaces,Gas,0010014311,KENT COUNTY COUNCIL (KCS),78.50,24/10/2018
Commercial,Green Spaces,Gas,0060101506,KENT COUNTY COUNCIL (KCS),96.84,18/10/2018
Commercial,Green Spaces,Gas,0060101507,KENT COUNTY COUNCIL (KCS),96.55,18/10/2018
Commercial,Green Spaces,Gas,0060101558,KENT COUNTY COUNCIL (KCS),76.67,18/10/2018
Commercial,Green Spaces,Gas,0060101570,KENT COUNTY COUNCIL (KCS),72.99,18/10/2018
Commercial,Green Spaces,Gas,0060108334,KENT COUNTY COUNCIL (KCS),50.70,18/10/2018
Commercial,Green Spaces,Gas,0060108376,KENT COUNTY COUNCIL (KCS),42.27,18/10/2018
Commercial,Green Spaces,Gas,0060108387,KENT COUNTY COUNCIL (KCS),37.02,18/10/2018
Commercial,Green Spaces,Gas,0060108451,KENT COUNTY COUNCIL (KCS),42.29,18/10/2018
Commercial,Green Spaces,Gas,0060110156,KENT COUNTY COUNCIL (KCS),101.73,11/10/2018
Commercial,Green Spaces,Gas,0060110162,KENT COUNTY COUNCIL (KCS),106.08,11/10/2018
Commercial,Green Spaces,Gas,0060110174,KENT COUNTY COUNCIL (KCS),83.82,11/10/2018
Commercial,Green Spaces,Gas,0060110180,KENT COUNTY COUNCIL (KCS),45.39,18/10/2018
Commercial,Green Spaces,Gas,0060110267,KENT COUNTY COUNCIL (KCS),72.09,23/10/2018
Commercial,Green Spaces,Gas,0060110355,KENT COUNTY COUNCIL (KCS),39.54,18/10/2018
Commercial,Green Spaces,Gas,0060112194,KENT COUNTY COUNCIL (KCS),152.00,11/10/2018
Commercial,Green Spaces,Gas,0060112716,KENT COUNTY COUNCIL (KCS),77.90,11/10/2018
Commercial,Green Spaces,Gas,0060112725,KENT COUNTY COUNCIL (KCS),30.94,24/10/2018
Commercial,Green Spaces,Gas,0060113702,KENT COUNTY COUNCIL (KCS),"3,673.73",11/10/2018
Commercial,Green Spaces,Gas,0060113807,KENT COUNTY COUNCIL (KCS),112.34,11/10/2018
Commercial,Green Spaces,Gas,0060114110,KENT COUNTY COUNCIL (KCS),153.77,11/10/2018
Commercial,Green Spaces,Gas,0060114157,KENT COUNTY COUNCIL (KCS),42.16,25/10/2018
Commercial,Green Spaces,Gas,0060114170,KENT COUNTY COUNCIL (KCS),30.95,24/10/2018
Commercial,Green Spaces,Gas,0060114253,KENT COUNTY COUNCIL (KCS),67.95,11/10/2018
Commercial,Green Spaces,Gas,0060114266,KENT COUNTY COUNCIL (KCS),333.06,18/10/2018
Commercial,Green Spaces,Grounds maintenance,0060112462,BLAISE NURSERY,"16,893.56",04/10/2018
Commercial,Green Spaces,Grounds maintenance,0010014335,BLUE 9 SECURITY LIMITED,"3,767.94",25/10/2018
Commercial,Green Spaces,Grounds maintenance,0010014336,BLUE 9 SECURITY LIMITED,"2,896.02",25/10/2018
Commercial,Green Spaces,Grounds maintenance,0060113038,BLUE 9 SECURITY LIMITED,"3,830.22",25/10/2018
Commercial,Green Spaces,Grounds maintenance,0060114012,BLUE 9 SECURITY LIMITED,"1,536.00",25/10/2018
Commercial,Green Spaces,Grounds maintenance,0060114833,BUSH WHEELER SERVICES LIMITED,"1,722.00",23/10/2018
Commercial,Green Spaces,Grounds maintenance,0060114867,BUSH WHEELER SERVICES LIMITED,"13,073.00",18/10/2018
Commercial,Green Spaces,Grounds maintenance,0060115796,COUNTRYSIDE CONTRACTS,750.00,29/10/2018
Commercial,Green Spaces,Grounds maintenance,0060114009,GLENDALE COUNTRYSIDE LTD,"19,700.00",11/10/2018
Commercial,Green Spaces,Grounds maintenance,0060114593,GLENDALE COUNTRYSIDE LTD,227.38,25/10/2018
Commercial,Green Spaces,Grounds maintenance,0060114610,GLENDALE COUNTRYSIDE LTD,379.72,25/10/2018
Commercial,Green Spaces,Grounds maintenance,0060113162,MAIN MAN SUPPLIES LIMITED,"1,527.00",02/10/2018
Commercial,Green Spaces,Other Services,0060115360,LONDON SURFACING CO LTD,"24,990.00",24/10/2018
Commercial,Green Spaces,Other Services,0060114524,RM COUNTRYSIDE SERVICES LTD,"1,245.00",11/10/2018
Commercial,Green Spaces,Other Services,0060114832,RM COUNTRYSIDE SERVICES LTD,70.00,12/10/2018
Commercial,Green Spaces,Other Services,0060114850,RM COUNTRYSIDE SERVICES LTD,350.50,19/10/2018
Commercial,Green Spaces,Other Services,0060114851,RM COUNTRYSIDE SERVICES LTD,360.00,19/10/2018
Commercial,Green Spaces,Other Services,0060114858,RM COUNTRYSIDE SERVICES LTD,270.00,19/10/2018
Commercial,Green Spaces,Other Services,0060115152,RM COUNTRYSIDE SERVICES LTD,235.75,18/10/2018
Commercial,Green Spaces,Other Services,0060115184,RM COUNTRYSIDE SERVICES LTD,323.00,18/10/2018
Commercial,Green Spaces,Other Services,0060115376,RM COUNTRYSIDE SERVICES LTD,"1,266.00",26/10/2018
Commercial,Green Spaces,Other Services,0060115379,RM COUNTRYSIDE SERVICES LTD,"3,300.00",26/10/2018
Commercial,Green Spaces,Water Services,0010014288,AFFINITY WATER LIMITED,323.15,23/10/2018
Commercial,Green Spaces,Water Services,0060092600,AFFINITY WATER LIMITED,11.78,24/10/2018
Commercial,Green Spaces,Water Services,0060092648,AFFINITY WATER LIMITED,79.70,24/10/2018
Commercial,Green Spaces,Water Services,0060101536,AFFINITY WATER LIMITED,20.28,24/10/2018
Commercial,Green Spaces,Water Services,0060101551,AFFINITY WATER LIMITED,96.89,24/10/2018
Commercial,Green Spaces,Water Services,0060101563,AFFINITY WATER LIMITED,187.41,24/10/2018
Commercial,Green Spaces,Water Services,0060101636,AFFINITY WATER LIMITED,332.73,24/10/2018
Commercial,Green Spaces,Water Services,0060108365,AFFINITY WATER LIMITED,"3,396.08",24/10/2018
Commercial,Green Spaces,Water Services,0060108406,AFFINITY WATER LIMITED,898.63,31/10/2018
Commercial,Green Spaces,Water Services,0060110335,AFFINITY WATER LIMITED,20.22,24/10/2018
Commercial,Green Spaces,Water Services,0060110351,AFFINITY WATER LIMITED,634.96,31/10/2018
Commercial,Green Spaces,Water Services,0060115384,AFFINITY WATER LIMITED,506.18,25/10/2018
Commercial,Green Spaces,Water Services,0060115428,AFFINITY WATER LIMITED,49.37,25/10/2018
Commercial,Green Spaces,Water Services,0010014294,CASTLE WATER LTD,45.18,23/10/2018
Commercial,Green Spaces,Water Services,0010014295,CASTLE WATER LTD,61.47,23/10/2018
Commercial,Green Spaces,Water Services,0010014302,CASTLE WATER LTD,348.18,24/10/2018
Commercial,Green Spaces,Water Services,0010014306,CASTLE WATER LTD,63.47,24/10/2018
Commercial,Green Spaces,Water Services,0010014346,CASTLE WATER LTD,87.51,29/10/2018
Commercial,Green Spaces,Water Services,0010014347,CASTLE WATER LTD,41.07,29/10/2018
Commercial,Green Spaces,Water Services,0060112687,CASTLE WATER LTD,108.62,11/10/2018
Commercial,Green Spaces,Water Services,0060112704,CASTLE WATER LTD,228.58,11/10/2018
Commercial,Green Spaces,Water Services,0060112728,CASTLE WATER LTD,194.38,11/10/2018
Commercial,Green Spaces,Water Services,0060113084,CASTLE WATER LTD,167.42,16/10/2018
Commercial,Green Spaces,Water Services,0060113092,CASTLE WATER LTD,136.82,26/10/2018
Commercial,Green Spaces,Water Services,0060113527,CASTLE WATER LTD,65.60,18/10/2018
Commercial,Green Spaces,Water Services,0060113539,CASTLE WATER LTD,31.38,17/10/2018
Commercial,Green Spaces,Water Services,0060113816,CASTLE WATER LTD,564.09,24/10/2018
Commercial,HB LAW,Legal and Court Fees,0060106045,LONDON BOROUGH OF HARROW,"324,841.85",10/10/2018
Commercial,HB LAW,Professional Services,0010014266,GOWLING WLG,"4,474.90",15/10/2018
Commercial,HB LAW,Professional Services,0060114721,GOWLING WLG,"6,800.40",11/10/2018
Commercial,HB LAW,Professional Services,0010014244,LONDON BOROUGH OF HARROW,"354,603.78",10/10/2018
Commercial,HB LAW,Professional Services,0060113674,LONDON BOROUGH OF HARROW,"459,512.63",10/10/2018
Commercial,HB LAW,Professional Services,0060114709,LONDON BOROUGH OF HARROW,"386,262.74",12/10/2018
Commercial,HB LAW,Professional Services,0060114722,LONDON BOROUGH OF HARROW,"300,659.43",10/10/2018
Commercial,HB LAW,Professional Services,0060114734,LONDON BOROUGH OF HARROW,"305,903.53",10/10/2018
COMMERCIAL,HOUSING NEEDS RESOURCES,Grant Payments,0080020556,CARBERRY INVESTMENTS LTD,"12,916.04",26/10/2018
COMMERCIAL,HOUSING NEEDS RESOURCES,Grant Payments,0080020271,REDACTED - PERSONAL DATA,"3,978.00",26/10/2018
COMMERCIAL,HOUSING NEEDS RESOURCES,Grant Payments,0080020274,REDACTED - PERSONAL DATA,"3,978.00",26/10/2018
Commercial,Housing Needs Resources,Other Services,0060113567,THE BARNETGROUP LIMITED,"278,222.92",04/10/2018
Commercial,Housing Needs Resources,Other Services,0060115750,THE BARNETGROUP LIMITED,"278,222.92",31/10/2018
Commercial,Housing Needs Resources,Private Contractors - Third Pa,0060113610,THE BARNETGROUP LIMITED,"2,280,000.00",04/10/2018
Commercial,Housing Needs Resources,Private Contractors - Third Pa,0060115765,THE BARNETGROUP LIMITED,"2,280,000.00",31/10/2018
Commercial,HRA,Agency/Interim Non Hays,0060113443,CHILD'S HILL BAPTIST CHURCH,368.00,25/10/2018
Commercial,HRA,Building Repairs & Maintenance,0060114737,OAKRAY LIMITED,204.00,25/10/2018
Commercial,HRA,Building Repairs & Maintenance,0060113605,THE BARNETGROUP LIMITED,"629,166.67",04/10/2018
Commercial,HRA,Building Repairs & Maintenance,0060115784,THE BARNETGROUP LIMITED,"629,166.67",31/10/2018
Commercial,HRA,Consultants Fees,0010014338,TROWERS & HAMLINS,258.00,26/10/2018
Commercial,HRA,Consultants Fees,0060115793,TROWERS & HAMLINS,825.00,29/10/2018
Commercial,HRA,Consultants Fees,0060115879,TROWERS & HAMLINS,"2,386.50",30/10/2018
Commercial,HRA,Electricity,0060109433,E-ON ENERGY,26.86,25/10/2018
Commercial,HRA,Electricity,0060114946,E-ON ENERGY,18.72,29/10/2018
Commercial,HRA,Other Services,0010014376,THE BARNETGROUP LIMITED,"953,444.00",31/10/2018
Commercial,HRA,Other Services,0060113555,THE BARNETGROUP LIMITED,"470,140.42",04/10/2018
Commercial,HRA,Other Services,0060113585,THE BARNETGROUP LIMITED,"953,444.00",04/10/2018
Commercial,HRA,Other Services,0060115725,THE BARNETGROUP LIMITED,"470,140.42",31/10/2018
Commercial,HRA,Rents,0060107632,THE PALM HOTEL LTD,387.08,22/10/2018
Commercial,Parking & Infrastructure,Electricity,0060114322,BARNET LIGHTING SERVICES LTD,"4,357.42",11/10/2018
Commercial,Parking & Infrastructure,Electricity,0060114332,BARNET LIGHTING SERVICES LTD,"381,004.91",05/10/2018
Commercial,Parking & Infrastructure,Equipment and Materials Purcha,0060115455,AMARI PLASTICS LTD,122.14,24/10/2018
Commercial,Parking & Infrastructure,Equipment and Materials Purcha,0060113077,GREENHAM TRADING LIMITED,153.00,04/10/2018
Commercial,Parking & Infrastructure,Equipment and Materials Purcha,0060113206,GREENHAM TRADING LIMITED,119.20,04/10/2018
Commercial,Parking & Infrastructure,Equipment and Materials Purcha,0060113392,GREENHAM TRADING LIMITED,97.62,11/10/2018
Commercial,Parking & Infrastructure,Equipment and Materials Purcha,0060113658,GREENHAM TRADING LIMITED,43.36,17/10/2018
Commercial,Parking & Infrastructure,Equipment and Materials Purcha,0060113667,GREENHAM TRADING LIMITED,60.52,17/10/2018
Commercial,Parking & Infrastructure,Equipment and Materials Purcha,0060113848,GREENHAM TRADING LIMITED,768.40,18/10/2018
Commercial,Parking & Infrastructure,Equipment and Materials Purcha,0060114988,INSTARMAC GROUP PLC,"1,851.72",17/10/2018
Commercial,Parking & Infrastructure,Equipment and Materials Purcha,0060113267,KB INDUSTRIES UK LTD,"4,400.00",09/10/2018
Commercial,Parking & Infrastructure,Equipment and Materials Purcha,0060113175,LAFARGE TARMAC TRADING LIMITED,185.58,04/10/2018
Commercial,Parking & Infrastructure,Equipment and Materials Purcha,0060113194,LAFARGE TARMAC TRADING LIMITED,111.35,02/10/2018
Commercial,Parking & Infrastructure,Equipment and Materials Purcha,0060113263,LAFARGE TARMAC TRADING LIMITED,162.90,04/10/2018
Commercial,Parking & Infrastructure,Equipment and Materials Purcha,0060113411,LAFARGE TARMAC TRADING LIMITED,103.10,09/10/2018
Commercial,Parking & Infrastructure,Equipment and Materials Purcha,0060114091,LAFARGE TARMAC TRADING LIMITED,204.14,18/10/2018
Commercial,Parking & Infrastructure,Equipment and Materials Purcha,0060114289,LAFARGE TARMAC TRADING LIMITED,113.41,23/10/2018
Commercial,Parking & Infrastructure,Equipment and Materials Purcha,0060114354,LAFARGE TARMAC TRADING LIMITED,117.53,25/10/2018
Commercial,Parking & Infrastructure,Equipment and Materials Purcha,0060113850,RENNICK UK LTD,628.86,17/10/2018
Commercial,Parking & Infrastructure,Equipment and Materials Purcha,0060114214,W. FAYERS & SONS,291.92,05/10/2018
Commercial,Parking & Infrastructure,General Sales,0060114271,BARNET LIGHTING SERVICES LTD,46.35,05/10/2018
Commercial,Parking & Infrastructure,Other Services,0060111173,LONDON COUNCILS,"43,038.53",02/10/2018
Commercial,Parking & Infrastructure,Other Services,0060111333,LONDON COUNCILS,"19,832.00",02/10/2018
Commercial,Parking & Infrastructure,Other Services,0060113253,LONDON COUNCILS,"15,320.00",18/10/2018
Commercial,Parking & Infrastructure,Software Licences & Support,0060115987,NSL LTD,"36,177.37",31/10/2018
Commercial,Parking & Infrastructure,,60111946,BARNET LIGHTING SERVICES LTD,"4,959.83",17/10/2018
Commercial,Public Health,Food Costs,0080020021,AVENUE HOUSE SERVICES LTD,314.17,17/10/2018
Commercial,Public Health,Health authorities - Third Par,0060113998,BARTS HEALTH NHS TRUST,"2,475.18",11/10/2018
Commercial,Public Health,Health authorities - Third Par,0060114990,CAMBRIDGESHIRE COMMUNITY SERVICES,243.00,31/10/2018
Commercial,Public Health,Health authorities - Third Par,0060112084,CENTRAL & NORTH WEST LONDON NHS FT,"-34,500.00",16/10/2018
Commercial,Public Health,Health authorities - Third Par,0060114069,CENTRAL & NORTH WEST LONDON NHS FT,"139,575.95",17/10/2018
Commercial,Public Health,Health authorities - Third Par,0060114080,CENTRAL & NORTH WEST LONDON NHS FT,"3,482.74",17/10/2018
Commercial,Public Health,Health authorities - Third Par,0060114605,CENTRAL & NORTH WEST LONDON NHS FT,"135,447.53",16/10/2018
Commercial,Public Health,Health authorities - Third Par,0060114609,CENTRAL & NORTH WEST LONDON NHS FT,51.23,16/10/2018
Commercial,Public Health,Health authorities - Third Par,0060114639,CENTRAL & NORTH WEST LONDON NHS FT,"1,271.92",16/10/2018
Commercial,Public Health,Health authorities - Third Par,0060114772,CENTRAL & NORTH WEST LONDON NHS FT,"11,500.00",16/10/2018
Commercial,Public Health,Health authorities - Third Par,0060113472,CENTRAL LONDONCOMMUNITY HEALTHCARE,"394,750.00",09/10/2018
Commercial,Public Health,Health authorities - Third Par,0060113974,CHELSEA & WESTMINSTER HOSPITAL NHS,113.60,17/10/2018
Commercial,Public Health,Health authorities - Third Par,0060113979,CHELSEA & WESTMINSTER HOSPITAL NHS,"41,528.71",17/10/2018
Commercial,Public Health,Health authorities - Third Par,0060114075,CHELSEA & WESTMINSTER HOSPITAL NHS,"41,528.71",17/10/2018
Commercial,Public Health,Health authorities - Third Par,0060114094,COVENTRY & WARWICKSHIRE PARTNERSHIP,325.84,05/10/2018
Commercial,Public Health,Health authorities - Third Par,0060113358,GUY'S AND ST THOMAS' NHS FT,"5,105.94",29/10/2018
Commercial,Public Health,Health authorities - Third Par,0060114739,GUY'S AND ST THOMAS' NHS FT,"4,804.38",30/10/2018
Commercial,Public Health,Health authorities - Third Par,0060114819,GUY'S AND ST THOMAS' NHS FT,"5,100.89",30/10/2018
Commercial,Public Health,Health authorities - Third Par,0060106486,KENT COMMUNITY HEALTH NHS FT,142.29,19/10/2018
Commercial,Public Health,Health authorities - Third Par,0060113740,LEWISHAM AND GREENWICH NHS TRUST,123.50,18/10/2018
Commercial,Public Health,Health authorities - Third Par,0060113810,LEWISHAM AND GREENWICH NHS TRUST,161.42,18/10/2018
Commercial,Public Health,Health authorities - Third Par,0060113997,LEWISHAM AND GREENWICH NHS TRUST,165.28,18/10/2018
Commercial,Public Health,Health authorities - Third Par,0060114264,LONDON NORTH WEST HEALTHCARE NHS TRUST,"9,420.10",24/10/2018
Commercial,Public Health,Health authorities - Third Par,0060114258,PROVIDE,264.00,18/10/2018
Commercial,Public Health,Health authorities - Third Par,0060115701,PROVIDE,396.00,26/10/2018
Commercial,Public Health,Health authorities - Third Par,0060113384,UNIVERSITY HOSPITALS BIRMINGHAM,135.00,11/10/2018
Commercial,Public Health,Health authorities - Third Par,0060114272,UNIVERSITY HOSPITALS BIRMINGHAM,280.00,19/10/2018
Commercial,Public Health,Health authorities - Third Par,0060114334,UNIVERSITY HOSPITALS BIRMINGHAM,220.00,19/10/2018
Commercial,Public Health,Health authorities - Third Par,0060114592,UNIVERSITY HOSPITALS BIRMINGHAM,140.00,19/10/2018
Commercial,Public Health,Health authorities - Third Par,0060114337,WESTERN SUSSEX HOSPITALS NHS FT,228.97,25/10/2018
Commercial,Public Health,Health authorities - Third Par,0060112735,WESTMINSTER DRUG PROJECT,"52,440.00",10/10/2018
Commercial,Public Health,Health authorities - Third Par,0060114270,WESTMINSTER DRUG PROJECT,"684,405.20",09/10/2018
Commercial,Public Health,Other Establishments - Third P,0060114488,DEBIGNO LTD T/A PATHWAY ANALYTICS,500.00,31/10/2018
Commercial,Public Health,Other Establishments - Third P,0060113460,GOOD IMPRESSIONS (LONDON) LIMITED,120.00,16/10/2018
Commercial,Public Health,Other Establishments - Third P,0060114684,LONDON BOROUGH OF HARINGEY,"24,800.00",25/10/2018
Commercial,Public Health,Other Establishments - Third P,0060113968,REDACTED - PERSONAL DATA,300.00,09/10/2018
Commercial,Public Health,Other Establishments - Third P,0060114449,SOAR BEYOND LIMITED,"11,880.00",11/10/2018
Commercial,Regional Enterprise,Advertising,0060108781,TMP (UK) LTD,90.00,24/10/2018
Commercial,Regional Enterprise,Advertising,0060113215,TMP (UK) LTD,278.00,09/10/2018
Commercial,Regional Enterprise,Advertising,0060113242,TMP (UK) LTD,170.00,09/10/2018
Commercial,Regional Enterprise,Advertising,0060113262,TMP (UK) LTD,108.00,09/10/2018
Commercial,Regional Enterprise,Advertising,0060113451,TMP (UK) LTD,170.00,12/10/2018
Commercial,Regional Enterprise,Advertising,0060113475,TMP (UK) LTD,90.00,12/10/2018
Commercial,Regional Enterprise,Advertising,0060113479,TMP (UK) LTD,278.00,12/10/2018
Commercial,Regional Enterprise,Advertising,0060113494,TMP (UK) LTD,170.00,19/10/2018
Commercial,Regional Enterprise,Advertising,0060114035,TMP (UK) LTD,179.00,19/10/2018
Commercial,Regional Enterprise,Advertising,0060114037,TMP (UK) LTD,90.00,15/10/2018
Commercial,Regional Enterprise,Advertising,0060114041,TMP (UK) LTD,90.00,19/10/2018
Commercial,Regional Enterprise,Advertising,0060114056,TMP (UK) LTD,170.00,19/10/2018
Commercial,Regional Enterprise,Advertising,0060114319,TMP (UK) LTD,90.00,19/10/2018
Commercial,Regional Enterprise,Advertising,0060114328,TMP (UK) LTD,99.00,19/10/2018
Commercial,Regional Enterprise,Advertising,0060114401,TMP (UK) LTD,170.00,12/10/2018
Commercial,Regional Enterprise,Advertising,0060114762,TMP (UK) LTD,90.00,24/10/2018
Commercial,Regional Enterprise,Advertising,0060114777,TMP (UK) LTD,179.00,25/10/2018
Commercial,Regional Enterprise,Advertising,0060115461,TMP (UK) LTD,278.00,24/10/2018
Commercial,Regional Enterprise,Advertising,0060115581,TMP (UK) LTD,99.00,25/10/2018
Commercial,Regional Enterprise,Consultants Fees,0010014354,GOWLING WLG,"3,432.79",31/10/2018
Commercial,Regional Enterprise,Consultants Fees,0010014355,GOWLING WLG,"2,072.30",30/10/2018
Commercial,Regional Enterprise,Consultants Fees,0010014359,GOWLING WLG,"3,064.12",31/10/2018
Commercial,Regional Enterprise,Consultants Fees,0010014360,GOWLING WLG,"4,966.58",31/10/2018
COMMERCIAL,REGIONAL ENTERPRISE,Consultants Fees,0060113984,GOWLING WLG,"3,457.13",04/10/2018
COMMERCIAL,REGIONAL ENTERPRISE,Consultants Fees,0060114016,GOWLING WLG,"3,524.62",04/10/2018
COMMERCIAL,REGIONAL ENTERPRISE,Consultants Fees,0060114058,GOWLING WLG,"1,491.07",04/10/2018
COMMERCIAL,REGIONAL ENTERPRISE,Consultants Fees,0060114060,GOWLING WLG,"2,138.97",04/10/2018
COMMERCIAL,REGIONAL ENTERPRISE,Consultants Fees,0060114081,GOWLING WLG,"6,767.81",04/10/2018
COMMERCIAL,REGIONAL ENTERPRISE,Consultants Fees,0060114083,GOWLING WLG,"1,900.60",04/10/2018
COMMERCIAL,REGIONAL ENTERPRISE,Consultants Fees,0060114087,GOWLING WLG,"10,259.53",04/10/2018
COMMERCIAL,REGIONAL ENTERPRISE,Consultants Fees,0060114093,GOWLING WLG,"1,001.66",04/10/2018
COMMERCIAL,REGIONAL ENTERPRISE,Consultants Fees,0060115882,GOWLING WLG,"5,340.33",30/10/2018
COMMERCIAL,REGIONAL ENTERPRISE,Consultants Fees,0060114875,LINK TREASURY SERVICES T/AS,"10,000.00",12/10/2018
COMMERCIAL,REGIONAL ENTERPRISE,Consultants Fees,0060113185,NETWORK RAIL INFRASTRUCTURE LTD,"618,732.82",18/10/2018
COMMERCIAL,REGIONAL ENTERPRISE,Consultants Fees,0060113199,NETWORK RAIL INFRASTRUCTURE LTD,"54,558.81",18/10/2018
COMMERCIAL,REGIONAL ENTERPRISE,Equipment and Materials Purcha,0060114874,TRAFFIC DATA CENTRE,"9,967.50",12/10/2018
COMMERCIAL,REGIONAL ENTERPRISE,Equipment and Materials Purcha,0010014361,UK POWER NETWORKS,"80,883.35",30/10/2018
Commercial,Regional Enterprise,General Sales,0080020098,HIGHLANDS SERVICE LTD,"106,593.10",18/10/2018
Commercial,Regional Enterprise,General Sales,0080020097,HIGHLANDS SERVICES LTD,"27,627.49",18/10/2018
COMMERCIAL,REGIONAL ENTERPRISE,Grant Payments,0080020074,AMWELL CONSTRUCTION LTD,"5,508.00",23/10/2018
COMMERCIAL,REGIONAL ENTERPRISE,Grant Payments,0080020130,AMWELL CONSTRUCTION LTD,"6,226.00",23/10/2018
COMMERCIAL,REGIONAL ENTERPRISE,Grant Payments,0080020353,AMWELL CONSTRUCTION LTD,"5,843.00",24/10/2018
COMMERCIAL,REGIONAL ENTERPRISE,Grant Payments,0080020477,AMWELL CONSTRUCTION LTD,"13,151.00",24/10/2018
COMMERCIAL,REGIONAL ENTERPRISE,Grant Payments,0080020119,ARTHUR J. FERRYMAN ASSOCIATES,921.72,23/10/2018
COMMERCIAL,REGIONAL ENTERPRISE,Grant Payments,0080020350,ARTHUR J. FERRYMAN ASSOCIATES,"1,700.08",24/10/2018
COMMERCIAL,REGIONAL ENTERPRISE,Grant Payments,0080020423,ARTHUR J. FERRYMAN ASSOCIATES,"4,623.72",23/10/2018
COMMERCIAL,REGIONAL ENTERPRISE,Grant Payments,0080020509,ARTHUR J. FERRYMAN ASSOCIATES,"2,050.80",24/10/2018
COMMERCIAL,REGIONAL ENTERPRISE,Grant Payments,0080020586,ARTHUR J. FERRYMAN ASSOCIATES,"1,440.00",29/10/2018
COMMERCIAL,REGIONAL ENTERPRISE,Grant Payments,0080020624,ARTHUR J. FERRYMAN ASSOCIATES,451.26,30/10/2018
Commercial,Regional Enterprise,Grant Payments,0080020431,CLOUDS END SERVICES LTD,"2,880.00",23/10/2018
COMMERCIAL,REGIONAL ENTERPRISE,Grant Payments,0080020117,DOLPHIN MOBILITY LTD.,"9,276.00",23/10/2018
COMMERCIAL,REGIONAL ENTERPRISE,Grant Payments,0080020591,DOLPHIN MOBILITY LTD.,"3,582.00",29/10/2018
COMMERCIAL,REGIONAL ENTERPRISE,Grant Payments,0080020164,DP BUILDERS DISABLED ADAPTATIONS,"22,170.00",23/10/2018
COMMERCIAL,REGIONAL ENTERPRISE,Grant Payments,0080020296,DP BUILDERS DISABLED ADAPTATIONS,"5,571.00",23/10/2018
COMMERCIAL,REGIONAL ENTERPRISE,Grant Payments,0080020507,DP BUILDERS DISABLED ADAPTATIONS,"20,982.50",31/10/2018
COMMERCIAL,REGIONAL ENTERPRISE,Grant Payments,0080020500,EMS LIFTS LTD,"5,595.00",24/10/2018
Commercial,Regional Enterprise,Grant Payments,0080020075,H D PROPERTY SERVICES LTD,725.00,23/10/2018
COMMERCIAL,REGIONAL ENTERPRISE,Grant Payments,0080020321,H D PROPERTY SERVICES LTD,"4,305.00",23/10/2018
COMMERCIAL,REGIONAL ENTERPRISE,Grant Payments,0080020354,H D PROPERTY SERVICES LTD,"5,107.16",26/10/2018
COMMERCIAL,REGIONAL ENTERPRISE,Grant Payments,0080020573,H D PROPERTY SERVICES LTD,"5,043.09",26/10/2018
COMMERCIAL,REGIONAL ENTERPRISE,Grant Payments,0080020346,REDACTED - PERSONAL DATA,"7,512.00",24/10/2018
Commercial,Regional Enterprise,Grant Payments,0080020580,REDACTED - PERSONAL DATA,"2,629.00",29/10/2018
Commercial,Regional Enterprise,Grant Payments,0080020581,REDACTED - PERSONAL DATA,"4,320.00",29/10/2018
Commercial,Regional Enterprise,Grant Payments,0080020582,REDACTED - PERSONAL DATA,500.00,29/10/2018
COMMERCIAL,REGIONAL ENTERPRISE,Grant Payments,0080020608,REDACTED - PERSONAL DATA,"8,852.00",30/10/2018
COMMERCIAL,REGIONAL ENTERPRISE,Grant Payments,0080020135,SOUTH HERTFORDSHIRE,"5,651.00",23/10/2018
COMMERCIAL,REGIONAL ENTERPRISE,Grant Payments,0080020141,SOUTH HERTFORDSHIRE,"5,943.00",26/10/2018
COMMERCIAL,REGIONAL ENTERPRISE,Grant Payments,0080020162,SOUTH HERTFORDSHIRE,"3,105.00",23/10/2018
COMMERCIAL,REGIONAL ENTERPRISE,Grant Payments,0080020192,SOUTH HERTFORDSHIRE,"4,696.00",23/10/2018
COMMERCIAL,REGIONAL ENTERPRISE,Grant Payments,0080020195,SOUTH HERTFORDSHIRE,"4,700.00",23/10/2018
COMMERCIAL,REGIONAL ENTERPRISE,Grant Payments,0080020349,SOUTH HERTFORDSHIRE,"8,000.00",24/10/2018
COMMERCIAL,REGIONAL ENTERPRISE,Grant Payments,0080020351,SOUTH HERTFORDSHIRE,"8,705.08",24/10/2018
COMMERCIAL,REGIONAL ENTERPRISE,Grant Payments,0080020395,SOUTH HERTFORDSHIRE,"9,577.00",23/10/2018
COMMERCIAL,REGIONAL ENTERPRISE,Grant Payments,0080020557,SOUTH HERTFORDSHIRE,"5,727.32",26/10/2018
COMMERCIAL,REGIONAL ENTERPRISE,Grant Payments,0080020567,SOUTH HERTFORDSHIRE,"6,059.00",29/10/2018
COMMERCIAL,REGIONAL ENTERPRISE,Grant Payments,0080020585,SOUTH HERTFORDSHIRE,"12,000.00",29/10/2018
COMMERCIAL,REGIONAL ENTERPRISE,Grant Payments,0080020163,STANNAH STAIRLIFTS LTD,"4,665.00",23/10/2018
COMMERCIAL,REGIONAL ENTERPRISE,Grant Payments,0080020583,STANNAH STAIRLIFTS LTD,"5,557.00",29/10/2018
COMMERCIAL,REGIONAL ENTERPRISE,Other Agencies - Third Party P,0080020561,ENVIRONMENT AGENCY,"1,955.75",26/10/2018
Commercial,Regional Enterprise,Other Establishments - Third P,0080020389,TRANSPORT FOR LONDON,"1,291,929.55",26/10/2018
Commercial,Regional Enterprise,Other Services,0060111021,CASTLE WATER LTD,30.45,17/10/2018
Commercial,Regional Enterprise,Other Services,0060111834,CASTLE WATER LTD,33.79,17/10/2018
Commercial,Regional Enterprise,Other Services,0060112173,CASTLE WATER LTD,137.67,17/10/2018
Commercial,Regional Enterprise,Other Services,0060112482,CASTLE WATER LTD,36.00,17/10/2018
Commercial,Regional Enterprise,Other Services,0060113542,CASTLE WATER LTD,33.07,17/10/2018
Commercial,Regional Enterprise,Other Services,0060114885,CASTLE WATER LTD,29.24,17/10/2018
Commercial,Regional Enterprise,Other Services,0060052271,CONWAY AECOM LTD,40.20,01/10/2018
Commercial,Regional Enterprise,Other Services,0060098466,CONWAY AECOM LTD,72.80,01/10/2018
Commercial,Regional Enterprise,Other Services,0060106336,CONWAY AECOM LTD,85.05,29/10/2018
Commercial,Regional Enterprise,Other Services,0060106364,CONWAY AECOM LTD,504.00,29/10/2018
Commercial,Regional Enterprise,Other Services,0060109610,CONWAY AECOM LTD,"2,583.00",24/10/2018
Commercial,Regional Enterprise,Other Services,0060109638,CONWAY AECOM LTD,630.00,01/10/2018
Commercial,Regional Enterprise,Other Services,0060111978,CONWAY AECOM LTD,781.20,29/10/2018
Commercial,Regional Enterprise,Other Services,0060111985,CONWAY AECOM LTD,453.60,29/10/2018
Commercial,Regional Enterprise,Other Services,0060111988,CONWAY AECOM LTD,201.60,29/10/2018
Commercial,Regional Enterprise,Other Services,0060112079,CONWAY AECOM LTD,330.75,29/10/2018
Commercial,Regional Enterprise,Other Services,0060113701,CONWAY AECOM LTD,17.03,17/10/2018
Commercial,Regional Enterprise,Other Services,0060113737,CONWAY AECOM LTD,33.54,17/10/2018
Commercial,Regional Enterprise,Other Services,0060113815,CONWAY AECOM LTD,"2,100.00",29/10/2018
Commercial,Regional Enterprise,Other Services,0060113827,CONWAY AECOM LTD,25.68,17/10/2018
Commercial,Regional Enterprise,Other Services,0060113860,CONWAY AECOM LTD,17.82,17/10/2018
Commercial,Regional Enterprise,Other Services,0060113865,CONWAY AECOM LTD,18.86,17/10/2018
COMMERCIAL,REGIONAL ENTERPRISE,Other Services,0060113880,CONWAY AECOM LTD,"18,591.00",03/10/2018
Commercial,Regional Enterprise,Other Services,0060113904,CONWAY AECOM LTD,15.20,01/10/2018
Commercial,Regional Enterprise,Other Services,0060114036,CONWAY AECOM LTD,390.60,11/10/2018
Commercial,Regional Enterprise,Other Services,0060114042,CONWAY AECOM LTD,198.45,11/10/2018
Commercial,Regional Enterprise,Other Services,0060114045,CONWAY AECOM LTD,907.20,11/10/2018
Commercial,Regional Enterprise,Other Services,0060114050,CONWAY AECOM LTD,396.90,11/10/2018
Commercial,Regional Enterprise,Other Services,0060114051,CONWAY AECOM LTD,680.40,11/10/2018
Commercial,Regional Enterprise,Other Services,0060114057,CONWAY AECOM LTD,434.70,11/10/2018
Commercial,Regional Enterprise,Other Services,0060114066,CONWAY AECOM LTD,478.80,11/10/2018
Commercial,Regional Enterprise,Other Services,0060114067,CONWAY AECOM LTD,"1,058.40",11/10/2018
Commercial,Regional Enterprise,Other Services,0060114070,CONWAY AECOM LTD,642.60,11/10/2018
Commercial,Regional Enterprise,Other Services,0060114077,CONWAY AECOM LTD,945.00,11/10/2018
Commercial,Regional Enterprise,Other Services,0060114079,CONWAY AECOM LTD,617.40,11/10/2018
Commercial,Regional Enterprise,Other Services,0060114089,CONWAY AECOM LTD,"1,310.40",11/10/2018
Commercial,Regional Enterprise,Other Services,0060114096,CONWAY AECOM LTD,642.60,11/10/2018
Commercial,Regional Enterprise,Other Services,0060114097,CONWAY AECOM LTD,"1,102.50",11/10/2018
Commercial,Regional Enterprise,Other Services,0060114098,CONWAY AECOM LTD,814.28,11/10/2018
Commercial,Regional Enterprise,Other Services,0060114099,CONWAY AECOM LTD,"2,368.00",11/10/2018
COMMERCIAL,REGIONAL ENTERPRISE,Other Services,0060114589,CONWAY AECOM LTD,"42,694.08",22/10/2018
COMMERCIAL,REGIONAL ENTERPRISE,Other Services,0060114649,CONWAY AECOM LTD,"15,346.80",22/10/2018
COMMERCIAL,REGIONAL ENTERPRISE,Other Services,0060114664,CONWAY AECOM LTD,"34,653.12",22/10/2018
COMMERCIAL,REGIONAL ENTERPRISE,Other Services,0060114668,CONWAY AECOM LTD,"61,051.62",22/10/2018
Commercial,Regional Enterprise,Other Services,0060115406,CONWAY AECOM LTD,56.70,24/10/2018
Commercial,Regional Enterprise,Other Services,0060115458,CONWAY AECOM LTD,604.80,31/10/2018
Commercial,Regional Enterprise,Other Services,0060115464,CONWAY AECOM LTD,"1,512.00",24/10/2018
Commercial,Regional Enterprise,Other Services,0060115467,CONWAY AECOM LTD,850.50,24/10/2018
Commercial,Regional Enterprise,Other Services,0060115475,CONWAY AECOM LTD,189.00,24/10/2018
Commercial,Regional Enterprise,Other Services,0060115480,CONWAY AECOM LTD,"2,646.00",24/10/2018
Commercial,Regional Enterprise,Other Services,0060115487,CONWAY AECOM LTD,103.95,24/10/2018
Commercial,Regional Enterprise,Other Services,0060115495,CONWAY AECOM LTD,302.40,24/10/2018
Commercial,Regional Enterprise,Other Services,0060115496,CONWAY AECOM LTD,340.20,31/10/2018
Commercial,Regional Enterprise,Other Services,0060115506,CONWAY AECOM LTD,239.40,24/10/2018
Commercial,Regional Enterprise,Other Services,0060115511,CONWAY AECOM LTD,510.30,31/10/2018
Commercial,Regional Enterprise,Other Services,0060115530,CONWAY AECOM LTD,756.00,24/10/2018
Commercial,Regional Enterprise,Other Services,0060115537,CONWAY AECOM LTD,806.40,24/10/2018
Commercial,Regional Enterprise,Other Services,0060115539,CONWAY AECOM LTD,604.80,31/10/2018
Commercial,Regional Enterprise,Other Services,0060115555,CONWAY AECOM LTD,"2,520.00",25/10/2018
Commercial,Regional Enterprise,Other Services,0060115556,CONWAY AECOM LTD,"1,134.00",24/10/2018
Commercial,Regional Enterprise,Other Services,0060115573,CONWAY AECOM LTD,"1,134.00",24/10/2018
Commercial,Regional Enterprise,Other Services,0060115577,CONWAY AECOM LTD,277.20,24/10/2018
Commercial,Regional Enterprise,Other Services,0060115592,CONWAY AECOM LTD,982.80,31/10/2018
Commercial,Regional Enterprise,Other Services,0060115602,CONWAY AECOM LTD,434.70,24/10/2018
Commercial,Regional Enterprise,Other Services,0060115607,CONWAY AECOM LTD,103.95,24/10/2018
Commercial,Regional Enterprise,Other Services,0060115613,CONWAY AECOM LTD,327.60,24/10/2018
Commercial,Regional Enterprise,Other Services,0060115615,CONWAY AECOM LTD,462.00,24/10/2018
Commercial,Regional Enterprise,Other Services,0060115620,CONWAY AECOM LTD,367.50,24/10/2018
Commercial,Regional Enterprise,Other Services,0060115626,CONWAY AECOM LTD,705.60,24/10/2018
Commercial,Regional Enterprise,Other Services,0060115632,CONWAY AECOM LTD,"1,020.60",24/10/2018
Commercial,Regional Enterprise,Other Services,0060115643,CONWAY AECOM LTD,"1,020.60",24/10/2018
Commercial,Regional Enterprise,Other Services,0060115651,CONWAY AECOM LTD,529.20,24/10/2018
Commercial,Regional Enterprise,Other Services,0060115664,CONWAY AECOM LTD,840.00,24/10/2018
Commercial,Regional Enterprise,Other Services,0060115681,CONWAY AECOM LTD,"1,142.40",24/10/2018
Commercial,Regional Enterprise,Other Services,0060115684,CONWAY AECOM LTD,37.80,24/10/2018
Commercial,Regional Enterprise,Other Services,0060115706,CONWAY AECOM LTD,132.30,24/10/2018
COMMERCIAL,REGIONAL ENTERPRISE,Other Services,0080020576,GOWLING WLG,"50,000.00",30/10/2018
Commercial,Regional Enterprise,Other Services,0060097596,KENT COUNTY COUNCIL (KCS),64.35,11/10/2018
Commercial,Regional Enterprise,Other Services,0060097610,KENT COUNTY COUNCIL (KCS),61.55,11/10/2018
Commercial,Regional Enterprise,Other Services,0060097632,KENT COUNTY COUNCIL (KCS),47.07,11/10/2018
Commercial,Regional Enterprise,Other Services,0060100133,KENT COUNTY COUNCIL (KCS),54.43,11/10/2018
Commercial,Regional Enterprise,Other Services,0060105970,KENT COUNTY COUNCIL (KCS),83.32,11/10/2018
Commercial,Regional Enterprise,Other Services,0060106005,KENT COUNTY COUNCIL (KCS),46.86,11/10/2018
Commercial,Regional Enterprise,Other Services,0060111055,KENT COUNTY COUNCIL (KCS),32.57,11/10/2018
Commercial,Regional Enterprise,Other Services,0060111079,KENT COUNTY COUNCIL (KCS),60.01,11/10/2018
Commercial,Regional Enterprise,Other Services,0060111135,KENT COUNTY COUNCIL (KCS),56.06,11/10/2018
Commercial,Regional Enterprise,Other Services,0060111141,KENT COUNTY COUNCIL (KCS),47.42,11/10/2018
Commercial,Regional Enterprise,Other Services,0010014245,RM COUNTRYSIDE SERVICES LTD,"7,188.00",11/10/2018
COMMERCIAL,REGIONAL ENTERPRISE,Professional Services,0010014343,APPLEYARD & TREW LLP,"4,292.06",26/10/2018
COMMERCIAL,REGIONAL ENTERPRISE,Professional Services,0060113538,APPLEYARD & TREW LLP,"1,950.00",26/10/2018
COMMERCIAL,REGIONAL ENTERPRISE,Professional Services,0010014366,PENNA PLC,"5,893.87",31/10/2018
COMMERCIAL,REGIONAL ENTERPRISE,Professional Services,0010014367,PENNA PLC,"10,076.62",31/10/2018
Commercial,Regional Enterprise,Professional Services,0060114281,RE (REGIONAL ENTERPRISE) LIMITED,"3,056.12",17/10/2018
Commercial,Regional Enterprise,Professional Services,0060114282,RE (REGIONAL ENTERPRISE) LIMITED,"5,735.25",17/10/2018
Commercial,Regional Enterprise,Professional Services,0060114336,RE (REGIONAL ENTERPRISE) LIMITED,"3,441.15",17/10/2018
Commercial,Regional Enterprise,Professional Services,0060113513,TBG OPEN DOOR LIMITED,"2,819,999.00",17/10/2018
Commercial,Regional Enterprise,Professional Services,0060113187,WATES LIVING SPACE,"1,989.45",04/10/2018
Commercial,Regional Enterprise,Professional Services,0060113229,WATES LIVING SPACE,"5,173.19",09/10/2018
Commercial,Regional Enterprise,Professional Services,0060114250,WATES LIVING SPACE,941.75,05/10/2018
Commercial,Regional Enterprise,RE Services Contract Payment,0060113444,RE (REGIONAL ENTERPRISE) LIMITED,"1,561,118.00",30/10/2018
Commercial,Regional Enterprise,RE Services Contract Payment,0060113486,RE (REGIONAL ENTERPRISE) LIMITED,"814,660.00",30/10/2018
Commercial,Regional Enterprise,,60113240,TMP (UK) LTD,332.00,09/10/2018
Commercial,Regional Enterprise,,60113265,TMP (UK) LTD,332.00,09/10/2018
Commercial,Regional Enterprise,,60115088,TMP (UK) LTD,475.50,24/10/2018
Commercial,Regional Enterprise,,60115092,TMP (UK) LTD,359.00,24/10/2018
Commercial,Regional Enterprise,,60115114,TMP (UK) LTD,305.00,24/10/2018
Commercial,Regional Enterprise,,60115548,TMP (UK) LTD,215.00,24/10/2018
Commissioning,Commissioning,Consultants Fees,0060113136,GATENBY SANDERSON,"3,031.68",04/10/2018
Commissioning,Commissioning,Consultants Fees,0060110482,LONDON BOROUGH OF EALING,"35,454.00",08/10/2018
Commissioning,Commissioning,Consultants Fees,0060113480,REGENERIS CONSULTING LIMITED,"9,888.00",29/10/2018
Commissioning,Commissioning,Employee Expenses,0060106555,GOLDSMITH CONSULTING & MEDIATION LTD,80.00,25/10/2018
Commissioning,Commissioning,Equipment and Materials Purcha,0060114892,OCS GROUP UK LIMITED,"47,269.00",12/10/2018
Commissioning,Commissioning,Equipment and Materials Purcha,0060115259,OCS GROUP UK LIMITED,"2,778.00",19/10/2018
Commissioning,Commissioning,Fees and Charges,0080020319,STOPFORD INFORMATION SYSTEMS LTD,"1,590.00",19/10/2018
Commissioning,Commissioning,Other Local Authorities - Thir,EBX0252144,NORTH LONDON WASTE AUTHORITY,"1,014,603.00",26/10/2018
Commissioning,Commissioning,Other Services,0060107465,GREENWICH LEISURE LTD,"5,500.00",25/10/2018
Commissioning,Commissioning,Other Services,0080020298,REDACTED - PERSONAL DATA,50.00,15/10/2018
Commissioning,Commissioning,Other Services,0080020299,REDACTED - PERSONAL DATA,150.00,15/10/2018
Commissioning,Commissioning,Other Services,0080020300,REDACTED - PERSONAL DATA,50.00,15/10/2018
Commissioning,Commissioning,Other Services,0080020302,REDACTED - PERSONAL DATA,50.00,15/10/2018
Commissioning,Commissioning,Other Services,0060114249,SHREDALL LTD,180.00,19/10/2018
Commissioning,Commissioning,Other Services,0060115210,SHREDALL LTD,180.00,25/10/2018
Commissioning,Commissioning,Other Transfer Payments to Soc,0060113847,BOUYGUES E&S INFRASTRUCTURE UK LTD,555.58,18/10/2018
Commissioning,Commissioning,Other Transfer Payments to Soc,0060113893,BOUYGUES E&S INFRASTRUCTURE UK LTD,795.90,18/10/2018
Commissioning,Commissioning,Other Transfer Payments to Soc,0060114301,DOD'S PARLIAMENTARY,245.00,04/10/2018
Commissioning,Commissioning,Other Transfer Payments to Soc,0060114891,SIGNET SIGNS LTD,105.00,18/10/2018
Commissioning,Commissioning,Private Contractors - Third Pa,0060114911,HESTIA,"14,270.00",25/10/2018
Commissioning,Commissioning,Private Contractors - Third Pa,0060114952,HESTIA,"14,270.00",15/10/2018
Commissioning,Commissioning,Private Contractors - Third Pa,0060105139,RISE MUTUAL CIC,"22,300.00",17/10/2018
Commissioning,Commissioning,Private Contractors - Third Pa,0060111855,SOLACE WOMEN'S AID,"51,571.25",17/10/2018
Commissioning,Commissioning,Private Contractors - Third Pa,0060114459,SOLACE WOMEN'S AID,"51,571.25",17/10/2018
Commissioning,Commissioning,Private Contractors - Third Pa,0060114523,SOLACE WOMEN'S AID,"74,552.50",17/10/2018
Commissioning,Commissioning,Private Contractors - Third Pa,0060114947,SOLACE WOMEN'S AID,"74,552.50",17/10/2018
Commissioning,Commissioning,Professional Services,0010014225,BANG THE TABLE UK PTY LTD,"8,000.00",03/10/2018
Commissioning,Commissioning,Professional Services,0060109956,COMMUNITY BARNET,"15,000.00",22/10/2018
Commissioning,Commissioning,Professional Services,0010014267,GENERAL DYNAMICS INFORMATION TECHNOLOGY,"6,643.52",17/10/2018
Commissioning,Commissioning,Professional Services,0010014268,GENERAL DYNAMICS INFORMATION TECHNOLOGY,"6,133.04",17/10/2018
Commissioning,Commissioning,Professional Services,0060114782,GRANT THORNTON UK LLP,"48,000.00",25/10/2018
Commissioning,Commissioning,Professional Services,0060115241,GROUNDWORK LONDON,"19,205.51",19/10/2018
Commissioning,Commissioning,Professional Services,0060114331,KPMG FEES ACCOUNT,875.00,05/10/2018
Commissioning,Commissioning,Professional Services,0060111703,MOTT MACDONALD LTD,"18,000.00",29/10/2018
Commissioning,Commissioning,Professional Services,0060111723,MOTT MACDONALD LTD,"19,406.41",29/10/2018
Commissioning,Commissioning,Professional Services,0060113830,MYSTERY SHOPPERS LTD,523.60,18/10/2018
Commissioning,Commissioning,Professional Services,0010014369,PENNA PLC,"7,020.00",31/10/2018
Commissioning,Commissioning,Publications,0060113446,GOOD IMPRESSIONS (LONDON) LIMITED,560.00,16/10/2018
Commissioning,Commissioning,Publications,0060113859,GOOD IMPRESSIONS (LONDON) LIMITED,240.00,18/10/2018
Commissioning,Commissioning,Publications,0060113890,GOOD IMPRESSIONS (LONDON) LIMITED,90.00,18/10/2018
Commissioning,Commissioning,Publications,0060114090,GOOD IMPRESSIONS (LONDON) LIMITED,"2,400.00",24/10/2018
Commissioning,Commissioning,Publications,0060112740,MOTT MACDONALD LTD/CAMBRIDGE EDUCATION,38.00,25/10/2018
Commissioning,Commissioning,Software Licences & Support,0060114590,J.C.APPLICATIONS DEVELOPMENT,"7,615.00",11/10/2018
Commissioning,Commissioning,Subscriptions,0080020026,MOTOR INSURER'S BUREAU,220.83,04/10/2018
Commissioning,Commissioning,Training,0060113396,ACAS,835.00,11/10/2018
Commissioning,Commissioning,Training,0060113398,ACAS,835.00,11/10/2018
Commissioning,Commissioning,Training,0060113297,JUDELINE NICOLAS ASSOCIATES,"1,285.20",09/10/2018
Commissioning,Commissioning,Training,0060109629,MOTT MACDONALD LTD/CAMBRIDGE EDUCATION,324.00,22/10/2018
Commissioning,Commissioning,Training,0060112866,RESOLVEX PEOPLE SOLUTIONS LIMITED,797.10,02/10/2018
Commissioning,Commissioning,Training,0060113255,RESOLVEX PEOPLE SOLUTIONS LIMITED,547.10,09/10/2018
Commissioning,Commissioning,Ttl IT & Comms,0080020128,GOVNET COMMUNICATIONS,395.00,05/10/2018
Commissioning,Commissioning,,60114826,BOUYGUES E&S INFRASTRUCTURE UK LTD,891.25,12/10/2018
COMMISSIONING,COMMISSIONING GROUP,Advertising,0060113248,TMP (UK) LTD,350.00,09/10/2018
COMMISSIONING,COMMISSIONING GROUP,Advertising,0060115097,TMP (UK) LTD,287.00,24/10/2018
COMMISSIONING,COMMISSIONING GROUP,Advertising,0060115117,TMP (UK) LTD,435.00,24/10/2018
COMMISSIONING,COMMISSIONING GROUP,Advertising,0060115123,TMP (UK) LTD,444.00,24/10/2018
COMMISSIONING,COMMISSIONING GROUP,Advertising,0060115174,TMP (UK) LTD,332.00,24/10/2018
COMMISSIONING,COMMISSIONING GROUP,Advertising,0060115203,TMP (UK) LTD,345.50,24/10/2018
COMMISSIONING,COMMISSIONING GROUP,Building Repairs & Maintenance,0060115695,ADAMS ENVIRONMENTAL LTD,350.00,24/10/2018
COMMISSIONING,COMMISSIONING GROUP,Building Repairs & Maintenance,0010014272,BELLHOUSE PROPERTY SERVICES LTD,"2,670.98",17/10/2018
COMMISSIONING,COMMISSIONING GROUP,Building Repairs & Maintenance,0060113244,CWG ROOFING LTD,"50,616.29",04/10/2018
COMMISSIONING,COMMISSIONING GROUP,Building Repairs & Maintenance,0060116036,CWG ROOFING LTD,"27,107.99",31/10/2018
COMMISSIONING,COMMISSIONING GROUP,Building Repairs & Maintenance,0060112984,S W BRUCE & CO LTD,"22,458.10",04/10/2018
COMMISSIONING,COMMISSIONING GROUP,Building Repairs & Maintenance,0060113007,S W BRUCE & CO LTD,"7,861.78",04/10/2018
COMMISSIONING,COMMISSIONING GROUP,Building Repairs & Maintenance,0060113380,S W BRUCE & CO LTD,"1,675.00",11/10/2018
COMMISSIONING,COMMISSIONING GROUP,Building Repairs & Maintenance,0060113385,S W BRUCE & CO LTD,"51,691.19",11/10/2018
COMMISSIONING,COMMISSIONING GROUP,Building Repairs & Maintenance,0060113402,S W BRUCE & CO LTD,"4,332.88",11/10/2018
COMMISSIONING,COMMISSIONING GROUP,Building Repairs & Maintenance,0060113778,S W BRUCE & CO LTD,"16,444.14",18/10/2018
COMMISSIONING,COMMISSIONING GROUP,Building Repairs & Maintenance,0060113846,S W BRUCE & CO LTD,577.20,18/10/2018
COMMISSIONING,COMMISSIONING GROUP,Building Repairs & Maintenance,0060113858,S W BRUCE & CO LTD,"29,453.90",17/10/2018
COMMISSIONING,COMMISSIONING GROUP,Building Repairs & Maintenance,0060113878,S W BRUCE & CO LTD,"2,878.00",17/10/2018
COMMISSIONING,COMMISSIONING GROUP,Building Repairs & Maintenance,0060113905,S W BRUCE & CO LTD,"17,723.10",17/10/2018
COMMISSIONING,COMMISSIONING GROUP,Building Repairs & Maintenance,0060114987,S W BRUCE & CO LTD,"16,264.70",17/10/2018
COMMISSIONING,COMMISSIONING GROUP,Building Repairs & Maintenance,0060114991,S W BRUCE & CO LTD,"1,675.00",17/10/2018
COMMISSIONING,COMMISSIONING GROUP,Building Repairs & Maintenance,0060115018,S W BRUCE & CO LTD,"3,495.00",17/10/2018
COMMISSIONING,COMMISSIONING GROUP,Building Repairs & Maintenance,0060115030,S W BRUCE & CO LTD,"4,822.50",17/10/2018
COMMISSIONING,COMMISSIONING GROUP,Building Repairs & Maintenance,0060115728,S W BRUCE & CO LTD,"11,362.68",25/10/2018
COMMISSIONING,COMMISSIONING GROUP,Building Repairs & Maintenance,0060114059,UK ENERGY PARTNERS LTD,"127,480.20",23/10/2018
COMMISSIONING,COMMISSIONING GROUP,Building Repairs & Maintenance,0060115022,UK ENERGY PARTNERS LTD,"127,480.20",30/10/2018
COMMISSIONING,COMMISSIONING GROUP,Building Repairs & Maintenance,0060114561,WATES LIVING SPACE,"28,206.71",18/10/2018
COMMISSIONING,COMMISSIONING GROUP,Capital Construction and Works,0060114838,BOUYGUES E&S INFRASTRUCTURE UK LTD,"2,106.73",12/10/2018
COMMISSIONING,COMMISSIONING GROUP,Capital Construction and Works,0060114871,CONWAY AECOM LTD,"1,537.08",12/10/2018
COMMISSIONING,COMMISSIONING GROUP,Capital Construction and Works,0060114914,CONWAY AECOM LTD,"2,451.42",15/10/2018
COMMISSIONING,COMMISSIONING GROUP,Capital Construction and Works,0060114115,JOHN GRAHAM CONSTRUCTION LTD,"273,661.42",08/10/2018
COMMISSIONING,COMMISSIONING GROUP,Capital Construction and Works,0060114117,JOHN GRAHAM CONSTRUCTION LTD,"225,676.33",08/10/2018
COMMISSIONING,COMMISSIONING GROUP,Capital Construction and Works,0060114145,JOHN GRAHAM CONSTRUCTION LTD,"256,395.22",08/10/2018
COMMISSIONING,COMMISSIONING GROUP,Capital Construction and Works,0060114188,JOHN GRAHAM CONSTRUCTION LTD,"185,303.23",08/10/2018
COMMISSIONING,COMMISSIONING GROUP,Capital Construction and Works,0060115417,JOHN GRAHAM CONSTRUCTION LTD,"31,918.87",24/10/2018
COMMISSIONING,COMMISSIONING GROUP,Capital Construction and Works,0060112914,S W BRUCE & CO LTD,"3,605.31",22/10/2018
COMMISSIONING,COMMISSIONING GROUP,Capital Construction and Works,0060113720,S W BRUCE & CO LTD,"21,568.68",18/10/2018
COMMISSIONING,COMMISSIONING GROUP,Consultants Fees,0010014265,BEVAN BRITTAN LLP,"2,557.00",15/10/2018
COMMISSIONING,COMMISSIONING GROUP,Consultants Fees,0060114434,E-CAR CLUB,"2,827.02",25/10/2018
COMMISSIONING,COMMISSIONING GROUP,Consultants Fees,0010014356,GALLIFORD TRY,"225,372.78",30/10/2018
COMMISSIONING,COMMISSIONING GROUP,Consultants Fees,0060113423,WRITTLE FOREST LTD,975.00,11/10/2018
COMMISSIONING,COMMISSIONING GROUP,Consultants Fees,0060113425,WRITTLE FOREST LTD,375.00,11/10/2018
COMMISSIONING,COMMISSIONING GROUP,Equipment and Materials Purcha,0060113412,CHRIST'S COLLEGE FINCHLEY ACADEMY,"1,050.00",25/10/2018
COMMISSIONING,COMMISSIONING GROUP,Equipment and Materials Purcha,0060113777,JOHN GRAHAM CONSTRUCTION LTD,"435,281.76",02/10/2018
COMMISSIONING,COMMISSIONING GROUP,Equipment and Materials Purcha,0060114218,JOHN GRAHAM CONSTRUCTION LTD,"934,387.19",09/10/2018
COMMISSIONING,COMMISSIONING GROUP,Equipment and Materials Purcha,0060115745,JOHN GRAHAM CONSTRUCTION LTD,"503,470.88",26/10/2018
COMMISSIONING,COMMISSIONING GROUP,Equipment and Materials Purcha,0010014280,S W BRUCE & CO LTD,"72,307.86",18/10/2018
COMMISSIONING,COMMISSIONING GROUP,Equipment and Materials Purcha,0060102654,S W BRUCE & CO LTD,"7,680.95",05/10/2018
COMMISSIONING,COMMISSIONING GROUP,Equipment and Materials Purcha,0060105353,S W BRUCE & CO LTD,"5,912.31",03/10/2018
COMMISSIONING,COMMISSIONING GROUP,Equipment and Materials Purcha,0060112493,TRAFFIC SURVEY PARTNERS (TSP) LTD,340.00,25/10/2018
COMMISSIONING,COMMISSIONING GROUP,Other Agencies - Third Party P,0010014377,THE BARNETGROUP LIMITED,"3,362,000.00",31/10/2018
COMMISSIONING,COMMISSIONING GROUP,Other Agencies - Third Party P,0010014378,THE BARNETGROUP LIMITED,"5,140,881.33",31/10/2018
COMMISSIONING,COMMISSIONING GROUP,Other Agencies - Third Party P,0060113642,THE BARNETGROUP LIMITED,"2,000,000.00",04/10/2018
COMMISSIONING,COMMISSIONING GROUP,Other Agencies - Third Party P,0060113661,THE BARNETGROUP LIMITED,"2,776,482.00",04/10/2018
COMMISSIONING,COMMISSIONING GROUP,Other Services,0060114389,ARTS DEPOT PRODUCTIONS LTD,"5,680.00",09/10/2018
COMMISSIONING,COMMISSIONING GROUP,Other Services,0060111031,BOUYGUES E&S INFRASTRUCTURE UK LTD,303.35,29/10/2018
COMMISSIONING,COMMISSIONING GROUP,Other Services,0060111851,BOUYGUES E&S INFRASTRUCTURE UK LTD,"5,726.98",29/10/2018
COMMISSIONING,COMMISSIONING GROUP,Other Services,0060114865,BOUYGUES E&S INFRASTRUCTURE UK LTD,"9,616.91",12/10/2018
COMMISSIONING,COMMISSIONING GROUP,Other Services,0060115397,BOUYGUES E&S INFRASTRUCTURE UK LTD,578.96,24/10/2018
COMMISSIONING,COMMISSIONING GROUP,Other Services,0060115439,BOUYGUES E&S INFRASTRUCTURE UK LTD,"1,157.92",25/10/2018
COMMISSIONING,COMMISSIONING GROUP,Other Services,0060115031,BRITISH TELECOMMUNICATIONS PLC,247.50,17/10/2018
COMMISSIONING,COMMISSIONING GROUP,Other Services,0010014247,CONWAY AECOM LTD,"29,552.00",11/10/2018
COMMISSIONING,COMMISSIONING GROUP,Other Services,0010014248,CONWAY AECOM LTD,"27,144.55",11/10/2018
COMMISSIONING,COMMISSIONING GROUP,Other Services,0060058092,CONWAY AECOM LTD,"6,586.84",10/10/2018
COMMISSIONING,COMMISSIONING GROUP,Other Services,0060058109,CONWAY AECOM LTD,"3,697.83",10/10/2018
COMMISSIONING,COMMISSIONING GROUP,Other Services,0060103807,CONWAY AECOM LTD,35.57,24/10/2018
COMMISSIONING,COMMISSIONING GROUP,Other Services,0060103809,CONWAY AECOM LTD,39.97,29/10/2018
COMMISSIONING,COMMISSIONING GROUP,Other Services,0060112750,CONWAY AECOM LTD,"70,921.33",29/10/2018
COMMISSIONING,COMMISSIONING GROUP,Other Services,0060114102,CONWAY AECOM LTD,82.65,02/10/2018
COMMISSIONING,COMMISSIONING GROUP,Other Services,0060114103,CONWAY AECOM LTD,12.12,02/10/2018
COMMISSIONING,COMMISSIONING GROUP,Other Services,0060114104,CONWAY AECOM LTD,12.12,02/10/2018
COMMISSIONING,COMMISSIONING GROUP,Other Services,0060114105,CONWAY AECOM LTD,"20,427.58",03/10/2018
COMMISSIONING,COMMISSIONING GROUP,Other Services,0060114114,CONWAY AECOM LTD,34.72,02/10/2018
COMMISSIONING,COMMISSIONING GROUP,Other Services,0060114116,CONWAY AECOM LTD,161.58,02/10/2018
COMMISSIONING,COMMISSIONING GROUP,Other Services,0060114118,CONWAY AECOM LTD,161.58,02/10/2018
COMMISSIONING,COMMISSIONING GROUP,Other Services,0060114125,CONWAY AECOM LTD,"3,894.68",03/10/2018
COMMISSIONING,COMMISSIONING GROUP,Other Services,0060114126,CONWAY AECOM LTD,"14,084.51",03/10/2018
COMMISSIONING,COMMISSIONING GROUP,Other Services,0060114128,CONWAY AECOM LTD,"14,769.79",03/10/2018
COMMISSIONING,COMMISSIONING GROUP,Other Services,0060114137,CONWAY AECOM LTD,161.58,02/10/2018
COMMISSIONING,COMMISSIONING GROUP,Other Services,0060114140,CONWAY AECOM LTD,12.12,02/10/2018
COMMISSIONING,COMMISSIONING GROUP,Other Services,0060114148,CONWAY AECOM LTD,244.23,02/10/2018
COMMISSIONING,COMMISSIONING GROUP,Other Services,0060114150,CONWAY AECOM LTD,174.81,02/10/2018
COMMISSIONING,COMMISSIONING GROUP,Other Services,0060114155,CONWAY AECOM LTD,12.12,02/10/2018
COMMISSIONING,COMMISSIONING GROUP,Other Services,0060114156,CONWAY AECOM LTD,"8,298.08",03/10/2018
COMMISSIONING,COMMISSIONING GROUP,Other Services,0060114159,CONWAY AECOM LTD,"28,310.69",03/10/2018
COMMISSIONING,COMMISSIONING GROUP,Other Services,0060114160,CONWAY AECOM LTD,82.65,02/10/2018
COMMISSIONING,COMMISSIONING GROUP,Other Services,0060114162,CONWAY AECOM LTD,12.12,05/10/2018
COMMISSIONING,COMMISSIONING GROUP,Other Services,0060114165,CONWAY AECOM LTD,82.65,05/10/2018
COMMISSIONING,COMMISSIONING GROUP,Other Services,0060114166,CONWAY AECOM LTD,82.65,02/10/2018
COMMISSIONING,COMMISSIONING GROUP,Other Services,0060114168,CONWAY AECOM LTD,82.65,02/10/2018
COMMISSIONING,COMMISSIONING GROUP,Other Services,0060114169,CONWAY AECOM LTD,82.65,02/10/2018
COMMISSIONING,COMMISSIONING GROUP,Other Services,0060114171,CONWAY AECOM LTD,12.12,02/10/2018
COMMISSIONING,COMMISSIONING GROUP,Other Services,0060114173,CONWAY AECOM LTD,82.65,02/10/2018
COMMISSIONING,COMMISSIONING GROUP,Other Services,0060114174,CONWAY AECOM LTD,45.73,02/10/2018
COMMISSIONING,COMMISSIONING GROUP,Other Services,0060114176,CONWAY AECOM LTD,82.65,02/10/2018
COMMISSIONING,COMMISSIONING GROUP,Other Services,0060114177,CONWAY AECOM LTD,200.00,03/10/2018
COMMISSIONING,COMMISSIONING GROUP,Other Services,0060114178,CONWAY AECOM LTD,45.73,02/10/2018
COMMISSIONING,COMMISSIONING GROUP,Other Services,0060114180,CONWAY AECOM LTD,161.58,02/10/2018
COMMISSIONING,COMMISSIONING GROUP,Other Services,0060114181,CONWAY AECOM LTD,161.58,05/10/2018
COMMISSIONING,COMMISSIONING GROUP,Other Services,0060114182,CONWAY AECOM LTD,"25,503.49",03/10/2018
COMMISSIONING,COMMISSIONING GROUP,Other Services,0060114183,CONWAY AECOM LTD,161.58,02/10/2018
COMMISSIONING,COMMISSIONING GROUP,Other Services,0060114185,CONWAY AECOM LTD,45.73,02/10/2018
COMMISSIONING,COMMISSIONING GROUP,Other Services,0060114186,CONWAY AECOM LTD,161.58,02/10/2018
COMMISSIONING,COMMISSIONING GROUP,Other Services,0060114190,CONWAY AECOM LTD,14.33,02/10/2018
COMMISSIONING,COMMISSIONING GROUP,Other Services,0060114192,CONWAY AECOM LTD,12.12,02/10/2018
COMMISSIONING,COMMISSIONING GROUP,Other Services,0060114196,CONWAY AECOM LTD,"17,763.83",03/10/2018
COMMISSIONING,COMMISSIONING GROUP,Other Services,0060114199,CONWAY AECOM LTD,161.58,02/10/2018
COMMISSIONING,COMMISSIONING GROUP,Other Services,0060114201,CONWAY AECOM LTD,"28,660.31",03/10/2018
COMMISSIONING,COMMISSIONING GROUP,Other Services,0060114202,CONWAY AECOM LTD,"42,599.57",03/10/2018
COMMISSIONING,COMMISSIONING GROUP,Other Services,0060114205,CONWAY AECOM LTD,168.20,02/10/2018
COMMISSIONING,COMMISSIONING GROUP,Other Services,0060114208,CONWAY AECOM LTD,"31,395.12",03/10/2018
COMMISSIONING,COMMISSIONING GROUP,Other Services,0060114209,CONWAY AECOM LTD,14.33,02/10/2018
COMMISSIONING,COMMISSIONING GROUP,Other Services,0060114471,CONWAY AECOM LTD,"12,166.82",11/10/2018
COMMISSIONING,COMMISSIONING GROUP,Other Services,0060114549,CONWAY AECOM LTD,"20,229.75",11/10/2018
COMMISSIONING,COMMISSIONING GROUP,Other Services,0060114845,CONWAY AECOM LTD,"3,136.94",22/10/2018
COMMISSIONING,COMMISSIONING GROUP,Other Services,0060114886,CONWAY AECOM LTD,"14,856.24",12/10/2018
COMMISSIONING,COMMISSIONING GROUP,Other Services,0060115401,CONWAY AECOM LTD,"3,273.84",31/10/2018
COMMISSIONING,COMMISSIONING GROUP,Other Services,0060115435,CONWAY AECOM LTD,"4,751.75",31/10/2018
COMMISSIONING,COMMISSIONING GROUP,Other Services,0060115470,CONWAY AECOM LTD,"17,530.57",24/10/2018
COMMISSIONING,COMMISSIONING GROUP,Other Services,0060115596,CONWAY AECOM LTD,"14,751.30",24/10/2018
COMMISSIONING,COMMISSIONING GROUP,Other Services,0060115645,CONWAY AECOM LTD,"20,664.69",24/10/2018
COMMISSIONING,COMMISSIONING GROUP,Other Services,0060115708,CONWAY AECOM LTD,"67,356.30",24/10/2018
COMMISSIONING,COMMISSIONING GROUP,Other Services,0060115835,CONWAY AECOM LTD,"1,848.52",31/10/2018
COMMISSIONING,COMMISSIONING GROUP,Other Services,0060115221,CYCLE CONFIDENT LTD,"15,640.91",30/10/2018
COMMISSIONING,COMMISSIONING GROUP,Other Services,0060113453,NATIONWIDE DATA COLLECTION,"3,450.00",11/10/2018
COMMISSIONING,COMMISSIONING GROUP,Other Services,0060113809,S W BRUCE & CO LTD,422.18,17/10/2018
COMMISSIONING,COMMISSIONING GROUP,Other Services,0060106565,SUN HILL SURVEYS,"2,950.00",22/10/2018
COMMISSIONING,COMMISSIONING GROUP,Other Services,0060108907,SUN HILL SURVEYS,900.00,22/10/2018
COMMISSIONING,COMMISSIONING GROUP,Other Services,0060114129,SUSTRANS LTD,"35,000.00",18/10/2018
COMMISSIONING,COMMISSIONING GROUP,Other Services,0060114198,SUSTRANS LTD,"25,000.00",18/10/2018
COMMISSIONING,COMMISSIONING GROUP,Other Services,0060115023,THE RIOT ACT LIMITED,"4,760.00",23/10/2018
COMMISSIONING,COMMISSIONING GROUP,Other Services,0060112460,TRAFFIC SURVEY PARTNERS (TSP) LTD,240.00,26/10/2018
COMMISSIONING,COMMISSIONING GROUP,Other Services,0060112471,TRAFFIC SURVEY PARTNERS (TSP) LTD,360.00,26/10/2018
COMMISSIONING,COMMISSIONING GROUP,Other Services,0060112520,TRAFFIC SURVEY PARTNERS (TSP) LTD,450.00,25/10/2018
COMMISSIONING,COMMISSIONING GROUP,Other Services,0080020422,TRANSPORT FOR LONDON,"1,000,000.00",23/10/2018
COMMISSIONING,COMMISSIONING GROUP,Professional Services,0060114536,BARNET YOUTH ZONE,"1,000,000.00",15/10/2018
COMMISSIONING,COMMISSIONING GROUP,Professional Services,0060113945,ECT ENVIRONMENTAL LTD,450.00,10/10/2018
COMMISSIONING,COMMISSIONING GROUP,Professional Services,0060113988,THE BARNETGROUP LIMITED,"5,239.24",09/10/2018
COMMISSIONING,COMMISSIONING GROUP,Professional Services,0060102350,TMP (UK) LTD,530.00,15/10/2018
COMMISSIONING,COMMISSIONING GROUP,Professional Services,0060115066,WRITTLE FOREST LTD,"1,150.00",17/10/2018
COMMISSIONING,COMMISSIONING GROUP,Ttl IT & Comms,0060114144,JON MILLER IT LTD,850.00,18/10/2018
COMMISSIONING,COMMISSIONING GROUP,Ttl IT & Comms,0060109225,TROJAN CONSULTANTS LTD,761.00,04/10/2018
COMMISSIONING,COMMISSIONING GROUP,Ttl IT & Comms,0060111260,TROJAN CONSULTANTS LTD,"2,250.00",04/10/2018
COMMISSIONING,COMMISSIONING GROUP,Ttl IT & Comms,0060111307,TROJAN CONSULTANTS LTD,761.00,19/10/2018
COMMISSIONING,COMMISSIONING GROUP,Ttl IT & Comms,0060111310,TROJAN CONSULTANTS LTD,"2,090.00",04/10/2018
COMMISSIONING,COMMISSIONING GROUP,Ttl IT & Comms,0060111336,TROJAN CONSULTANTS LTD,"1,500.00",04/10/2018
COMMISSIONING,COMMISSIONING GROUP,Ttl IT & Comms,0060111356,TROJAN CONSULTANTS LTD,"2,310.00",04/10/2018
Corporate Accounting,Corporate Accounting,Advertising,0060113224,TMP (UK) LTD,664.50,09/10/2018
Corporate Accounting,Corporate Accounting,Advertising,0060113231,TMP (UK) LTD,332.00,09/10/2018
Corporate Accounting,Corporate Accounting,Advertising,0060113490,TMP (UK) LTD,570.00,12/10/2018
Corporate Accounting,Corporate Accounting,Advertising,0060114236,TMP (UK) LTD,817.50,04/10/2018
Corporate Accounting,Corporate Accounting,Advertising,0060114252,TMP (UK) LTD,301.00,12/10/2018
Corporate Accounting,Corporate Accounting,Advertising,0060114329,TMP (UK) LTD,381.00,12/10/2018
Corporate Accounting,Corporate Accounting,Advertising,0060115122,TMP (UK) LTD,660.00,24/10/2018
Corporate Accounting,Corporate Accounting,Advertising,0060115125,TMP (UK) LTD,332.00,24/10/2018
Corporate Accounting,Corporate Accounting,Advertising,0060115215,TMP (UK) LTD,426.00,24/10/2018
Corporate Accounting,Corporate Accounting,Advertising,0060115482,TMP (UK) LTD,570.00,24/10/2018
Corporate Accounting,Corporate Accounting,Consultants Fees,0060114241,TMP (UK) LTD,795.00,04/10/2018
Corporate Accounting,Corporate Accounting,Grant Payments,0080020160,RAVENS LAWN TENNIS CLUB,"2,230.00",12/10/2018
Corporate Accounting,Corporate Accounting,Grant Payments,0080020252,THE LAST CUPPA CIC,"3,542.00",12/10/2018
Corporate Accounting,Corporate Accounting,Other Establishments - Third P,0020039391,CLAREMONT PRIMARY SCHOOL ACADEMY,"9,504.00",19/10/2018
Corporate Accounting,Corporate Accounting,Other Establishments - Third P,0020039392,CLAREMONT PRIMARY SCHOOL ACADEMY,"2,986.56",19/10/2018
Corporate Accounting,Corporate Accounting,Other Establishments - Third P,0020039389,COPTHALL SCHOOL (ACADEMY),"8,431.90",19/10/2018
Corporate Accounting,Corporate Accounting,Other Establishments - Third P,0020039390,COPTHALL SCHOOL (ACADEMY),"3,696.00",19/10/2018
Corporate Accounting,Corporate Accounting,Other Establishments - Third P,0020039387,QUEEN ELIZABETH'S GIRLS ACADEMY,"12,144.00",19/10/2018
Corporate Accounting,Corporate Accounting,Other Establishments - Third P,0020039388,QUEEN ELIZABETH'S GIRLS ACADEMY,"3,527.50",19/10/2018
Corporate Accounting,Corporate Accounting,Other Establishments - Third P,0020039393,SUMMERSIDE PRIMARY ACADEMY,"10,926.05",19/10/2018
Corporate Accounting,Corporate Accounting,Other Establishments - Third P,0020039394,SUMMERSIDE PRIMARY ACADEMY,52.64,19/10/2018
Corporate Accounting,Corporate Accounting,Other Local Authorities - Thir,EBX0248328,GREATER LONDON AUTHORITY,"49,678.00",04/10/2018
Corporate Accounting,Corporate Accounting,Other Local Authorities - Thir,EBX0251180,GREATER LONDON AUTHORITY,"236,146.00",23/10/2018
Corporate Accounting,Corporate Accounting,Other Transfer Payments to Soc,0080020276,WIRECARD (FS INSTANT 2040880892973),"28,524.91",15/10/2018
Corporate Accounting,Corporate Accounting,Other Transfer Payments to Soc,0080020277,WIRECARD (FS ONGOING 2040881670310,"17,143.33",17/10/2018
Corporate Accounting,Corporate Accounting,Professional Services,0060106221,LONDON BOROUGH OF EALING,"2,500.00",19/10/2018
Corporate Accounting,Corporate Accounting,Professional Services,0080020259,TOUCH TYPING FOR KIDS LTD,510.00,15/10/2018
Delivery Units,Adults and Communities,Direct Transfer Payments to So,0090104283,REDACTED - PERSONAL DATA,"1,230.90",03/10/2018
Delivery Units,Adults and Communities,Direct Transfer Payments to So,0090105528,REDACTED - PERSONAL DATA,"2,027.36",04/10/2018
Delivery Units,Adults and Communities,Direct Transfer Payments to So,0090106363,REDACTED - PERSONAL DATA,640.00,04/10/2018
Delivery Units,Adults and Communities,Direct Transfer Payments to So,0090107249,REDACTED - PERSONAL DATA,-349.33,11/10/2018
Delivery Units,Adults and Communities,Direct Transfer Payments to So,0090110473,REDACTED - PERSONAL DATA,"1,600.00",03/10/2018
Delivery Units,Adults and Communities,Direct Transfer Payments to So,0090110475,REDACTED - PERSONAL DATA,"16,469.58",03/10/2018
Delivery Units,Adults and Communities,Direct Transfer Payments to So,0090110477,REDACTED - PERSONAL DATA,240.93,03/10/2018
Delivery Units,Adults and Communities,Direct Transfer Payments to So,0090111060,REDACTED - PERSONAL DATA,"2,280.52",04/10/2018
Delivery Units,Adults and Communities,Direct Transfer Payments to So,0090111407,REDACTED - PERSONAL DATA,"-1,687.20",11/10/2018
Delivery Units,Adults and Communities,Direct Transfer Payments to So,0090111408,REDACTED - PERSONAL DATA,"-2,528.16",11/10/2018
Delivery Units,Adults and Communities,Direct Transfer Payments to So,0090111409,REDACTED - PERSONAL DATA,"-5,430.95",11/10/2018
Delivery Units,Adults and Communities,Direct Transfer Payments to So,0090111412,REDACTED - PERSONAL DATA,"-8,251.91",11/10/2018
Delivery Units,Adults and Communities,Direct Transfer Payments to So,0090111415,REDACTED - PERSONAL DATA,250.00,05/10/2018
Delivery Units,Adults and Communities,Direct Transfer Payments to So,0090112551,REDACTED - PERSONAL DATA,817.36,11/10/2018
Delivery Units,Adults and Communities,Direct Transfer Payments to So,0090112553,REDACTED - PERSONAL DATA,"1,394.32",11/10/2018
Delivery Units,Adults and Communities,Direct Transfer Payments to So,0090112555,REDACTED - PERSONAL DATA,740.00,11/10/2018
Delivery Units,Adults and Communities,Direct Transfer Payments to So,0090112561,REDACTED - PERSONAL DATA,"2,005.04",11/10/2018
Delivery Units,Adults and Communities,Direct Transfer Payments to So,0090112565,REDACTED - PERSONAL DATA,478.64,11/10/2018
Delivery Units,Adults and Communities,Direct Transfer Payments to So,0090112569,REDACTED - PERSONAL DATA,"1,900.00",11/10/2018
Delivery Units,Adults and Communities,Direct Transfer Payments to So,0090112571,REDACTED - PERSONAL DATA,"2,400.00",11/10/2018
Delivery Units,Adults and Communities,Direct Transfer Payments to So,0090112573,REDACTED - PERSONAL DATA,"1,396.72",11/10/2018
Delivery Units,Adults and Communities,Direct Transfer Payments to So,0090112574,REDACTED - PERSONAL DATA,"1,360.00",11/10/2018
Delivery Units,Adults and Communities,Direct Transfer Payments to So,0090112579,REDACTED - PERSONAL DATA,961.60,11/10/2018
Delivery Units,Adults and Communities,Direct Transfer Payments to So,0090112580,REDACTED - PERSONAL DATA,"1,544.64",11/10/2018
Delivery Units,Adults and Communities,Direct Transfer Payments to So,0090112583,REDACTED - PERSONAL DATA,640.00,11/10/2018
Delivery Units,Adults and Communities,Direct Transfer Payments to So,0090112584,REDACTED - PERSONAL DATA,985.64,11/10/2018
Delivery Units,Adults and Communities,Direct Transfer Payments to So,0090112586,REDACTED - PERSONAL DATA,769.28,11/10/2018
Delivery Units,Adults and Communities,Direct Transfer Payments to So,0090112590,REDACTED - PERSONAL DATA,336.56,11/10/2018
Delivery Units,Adults and Communities,Direct Transfer Payments to So,0090112594,REDACTED - PERSONAL DATA,780.92,11/10/2018
Delivery Units,Adults and Communities,Direct Transfer Payments to So,0090112597,REDACTED - PERSONAL DATA,800.00,11/10/2018
Delivery Units,Adults and Communities,Direct Transfer Payments to So,0090112598,REDACTED - PERSONAL DATA,"1,000.00",11/10/2018
Delivery Units,Adults and Communities,Direct Transfer Payments to So,0090112601,REDACTED - PERSONAL DATA,"1,730.88",11/10/2018
Delivery Units,Adults and Communities,Direct Transfer Payments to So,0090112603,REDACTED - PERSONAL DATA,488.44,11/10/2018
Delivery Units,Adults and Communities,Direct Transfer Payments to So,0090112606,REDACTED - PERSONAL DATA,349.12,11/10/2018
Delivery Units,Adults and Communities,Direct Transfer Payments to So,0090112608,REDACTED - PERSONAL DATA,"1,081.80",11/10/2018
Delivery Units,Adults and Communities,Direct Transfer Payments to So,0090112611,REDACTED - PERSONAL DATA,933.24,11/10/2018
Delivery Units,Adults and Communities,Direct Transfer Payments to So,0090112613,REDACTED - PERSONAL DATA,187.00,11/10/2018
Delivery Units,Adults and Communities,Direct Transfer Payments to So,0090112615,REDACTED - PERSONAL DATA,785.12,11/10/2018
Delivery Units,Adults and Communities,Direct Transfer Payments to So,0090112616,REDACTED - PERSONAL DATA,673.12,11/10/2018
Delivery Units,Adults and Communities,Direct Transfer Payments to So,0090112617,REDACTED - PERSONAL DATA,288.48,11/10/2018
Delivery Units,Adults and Communities,Direct Transfer Payments to So,0090112618,REDACTED - PERSONAL DATA,708.00,11/10/2018
Delivery Units,Adults and Communities,Direct Transfer Payments to So,0090112619,REDACTED - PERSONAL DATA,999.28,11/10/2018
Delivery Units,Adults and Communities,Direct Transfer Payments to So,0090112627,REDACTED - PERSONAL DATA,"1,089.12",11/10/2018
Delivery Units,Adults and Communities,Direct Transfer Payments to So,0090112628,REDACTED - PERSONAL DATA,228.36,11/10/2018
Delivery Units,Adults and Communities,Direct Transfer Payments to So,0090112638,REDACTED - PERSONAL DATA,801.00,11/10/2018
Delivery Units,Adults and Communities,Direct Transfer Payments to So,0090112643,REDACTED - PERSONAL DATA,"1,525.44",11/10/2018
Delivery Units,Adults and Communities,Direct Transfer Payments to So,0090112647,REDACTED - PERSONAL DATA,"2,139.20",11/10/2018
Delivery Units,Adults and Communities,Direct Transfer Payments to So,0090112649,REDACTED - PERSONAL DATA,288.08,11/10/2018
Delivery Units,Adults and Communities,Direct Transfer Payments to So,0090112650,REDACTED - PERSONAL DATA,840.00,11/10/2018
Delivery Units,Adults and Communities,Direct Transfer Payments to So,0090112652,REDACTED - PERSONAL DATA,360.60,11/10/2018
Delivery Units,Adults and Communities,Direct Transfer Payments to So,0090112659,REDACTED - PERSONAL DATA,"7,616.00",11/10/2018
Delivery Units,Adults and Communities,Direct Transfer Payments to So,0090112660,REDACTED - PERSONAL DATA,282.80,11/10/2018
Delivery Units,Adults and Communities,Direct Transfer Payments to So,0090112661,REDACTED - PERSONAL DATA,520.00,11/10/2018
Delivery Units,Adults and Communities,Direct Transfer Payments to So,0090112662,REDACTED - PERSONAL DATA,700.00,11/10/2018
Delivery Units,Adults and Communities,Direct Transfer Payments to So,0090112663,REDACTED - PERSONAL DATA,"1,766.96",11/10/2018
Delivery Units,Adults and Communities,Direct Transfer Payments to So,0090112668,REDACTED - PERSONAL DATA,"2,536.20",11/10/2018
Delivery Units,Adults and Communities,Direct Transfer Payments to So,0090112671,REDACTED - PERSONAL DATA,348.48,11/10/2018
Delivery Units,Adults and Communities,Direct Transfer Payments to So,0090112672,REDACTED - PERSONAL DATA,601.00,11/10/2018
Delivery Units,Adults and Communities,Direct Transfer Payments to So,0090112674,REDACTED - PERSONAL DATA,528.88,11/10/2018
Delivery Units,Adults and Communities,Direct Transfer Payments to So,0090112675,REDACTED - PERSONAL DATA,480.80,11/10/2018
Delivery Units,Adults and Communities,Direct Transfer Payments to So,0090112677,REDACTED - PERSONAL DATA,800.00,11/10/2018
Delivery Units,Adults and Communities,Direct Transfer Payments to So,0090112681,REDACTED - PERSONAL DATA,"1,126.32",11/10/2018
Delivery Units,Adults and Communities,Direct Transfer Payments to So,0090112682,REDACTED - PERSONAL DATA,409.08,11/10/2018
Delivery Units,Adults and Communities,Direct Transfer Payments to So,0090112684,REDACTED - PERSONAL DATA,660.00,11/10/2018
Delivery Units,Adults and Communities,Direct Transfer Payments to So,0090112687,REDACTED - PERSONAL DATA,338.64,11/10/2018
Delivery Units,Adults and Communities,Direct Transfer Payments to So,0090112690,REDACTED - PERSONAL DATA,354.24,11/10/2018
Delivery Units,Adults and Communities,Direct Transfer Payments to So,0090112694,REDACTED - PERSONAL DATA,"1,130.00",11/10/2018
Delivery Units,Adults and Communities,Direct Transfer Payments to So,0090112695,REDACTED - PERSONAL DATA,588.24,11/10/2018
Delivery Units,Adults and Communities,Direct Transfer Payments to So,0090112696,REDACTED - PERSONAL DATA,"3,444.00",11/10/2018
Delivery Units,Adults and Communities,Direct Transfer Payments to So,0090112698,REDACTED - PERSONAL DATA,"2,200.00",11/10/2018
Delivery Units,Adults and Communities,Direct Transfer Payments to So,0090112702,REDACTED - PERSONAL DATA,350.84,11/10/2018
Delivery Units,Adults and Communities,Direct Transfer Payments to So,0090112708,REDACTED - PERSONAL DATA,770.40,11/10/2018
Delivery Units,Adults and Communities,Direct Transfer Payments to So,0090112713,REDACTED - PERSONAL DATA,"1,185.00",11/10/2018
Delivery Units,Adults and Communities,Direct Transfer Payments to So,0090112715,REDACTED - PERSONAL DATA,560.00,11/10/2018
Delivery Units,Adults and Communities,Direct Transfer Payments to So,0090112719,REDACTED - PERSONAL DATA,264.44,11/10/2018
Delivery Units,Adults and Communities,Direct Transfer Payments to So,0090112724,REDACTED - PERSONAL DATA,"2,828.00",11/10/2018
Delivery Units,Adults and Communities,Direct Transfer Payments to So,0090112726,REDACTED - PERSONAL DATA,"3,917.76",11/10/2018
Delivery Units,Adults and Communities,Direct Transfer Payments to So,0090112727,REDACTED - PERSONAL DATA,271.60,11/10/2018
Delivery Units,Adults and Communities,Direct Transfer Payments to So,0090112731,REDACTED - PERSONAL DATA,"1,660.80",11/10/2018
Delivery Units,Adults and Communities,Direct Transfer Payments to So,0090112732,REDACTED - PERSONAL DATA,"2,338.96",11/10/2018
Delivery Units,Adults and Communities,Direct Transfer Payments to So,0090112734,REDACTED - PERSONAL DATA,800.00,11/10/2018
Delivery Units,Adults and Communities,Direct Transfer Payments to So,0090112737,REDACTED - PERSONAL DATA,"3,451.44",11/10/2018
Delivery Units,Adults and Communities,Direct Transfer Payments to So,0090112743,REDACTED - PERSONAL DATA,"2,304.96",11/10/2018
Delivery Units,Adults and Communities,Direct Transfer Payments to So,0090112744,REDACTED - PERSONAL DATA,170.04,11/10/2018
Delivery Units,Adults and Communities,Direct Transfer Payments to So,0090112745,REDACTED - PERSONAL DATA,"1,300.00",11/10/2018
Delivery Units,Adults and Communities,Direct Transfer Payments to So,0090112747,REDACTED - PERSONAL DATA,950.60,11/10/2018
Delivery Units,Adults and Communities,Direct Transfer Payments to So,0090112750,REDACTED - PERSONAL DATA,390.00,11/10/2018
Delivery Units,Adults and Communities,Direct Transfer Payments to So,0090112755,REDACTED - PERSONAL DATA,"2,066.00",11/10/2018
Delivery Units,Adults and Communities,Direct Transfer Payments to So,0090112756,REDACTED - PERSONAL DATA,728.00,11/10/2018
Delivery Units,Adults and Communities,Direct Transfer Payments to So,0090112757,REDACTED - PERSONAL DATA,728.00,11/10/2018
Delivery Units,Adults and Communities,Direct Transfer Payments to So,0090112759,REDACTED - PERSONAL DATA,"2,518.48",11/10/2018
Delivery Units,Adults and Communities,Direct Transfer Payments to So,0090112761,REDACTED - PERSONAL DATA,"2,813.00",11/10/2018
Delivery Units,Adults and Communities,Direct Transfer Payments to So,0090112766,REDACTED - PERSONAL DATA,521.40,11/10/2018
Delivery Units,Adults and Communities,Direct Transfer Payments to So,0090112767,REDACTED - PERSONAL DATA,"1,143.16",11/10/2018
Delivery Units,Adults and Communities,Direct Transfer Payments to So,0090112771,REDACTED - PERSONAL DATA,975.36,11/10/2018
Delivery Units,Adults and Communities,Direct Transfer Payments to So,0090112776,REDACTED - PERSONAL DATA,628.00,11/10/2018
Delivery Units,Adults and Communities,Direct Transfer Payments to So,0090112778,REDACTED - PERSONAL DATA,355.76,11/10/2018
Delivery Units,Adults and Communities,Direct Transfer Payments to So,0090112779,REDACTED - PERSONAL DATA,"1,009.68",11/10/2018
Delivery Units,Adults and Communities,Direct Transfer Payments to So,0090112780,REDACTED - PERSONAL DATA,362.48,11/10/2018
Delivery Units,Adults and Communities,Direct Transfer Payments to So,0090112784,REDACTED - PERSONAL DATA,480.80,11/10/2018
Delivery Units,Adults and Communities,Direct Transfer Payments to So,0090112790,REDACTED - PERSONAL DATA,480.80,11/10/2018
Delivery Units,Adults and Communities,Direct Transfer Payments to So,0090112791,REDACTED - PERSONAL DATA,"1,972.00",11/10/2018
Delivery Units,Adults and Communities,Direct Transfer Payments to So,0090112792,REDACTED - PERSONAL DATA,"3,054.40",11/10/2018
Delivery Units,Adults and Communities,Direct Transfer Payments to So,0090112795,REDACTED - PERSONAL DATA,257.44,11/10/2018
Delivery Units,Adults and Communities,Direct Transfer Payments to So,0090112797,REDACTED - PERSONAL DATA,"2,233.00",11/10/2018
Delivery Units,Adults and Communities,Direct Transfer Payments to So,0090112798,REDACTED - PERSONAL DATA,"1,222.84",11/10/2018
Delivery Units,Adults and Communities,Direct Transfer Payments to So,0090112801,REDACTED - PERSONAL DATA,144.24,11/10/2018
Delivery Units,Adults and Communities,Direct Transfer Payments to So,0090112802,REDACTED - PERSONAL DATA,933.88,11/10/2018
Delivery Units,Adults and Communities,Direct Transfer Payments to So,0090112804,REDACTED - PERSONAL DATA,"2,686.00",11/10/2018
Delivery Units,Adults and Communities,Direct Transfer Payments to So,0090112807,REDACTED - PERSONAL DATA,"3,266.48",11/10/2018
Delivery Units,Adults and Communities,Direct Transfer Payments to So,0090112809,REDACTED - PERSONAL DATA,"2,211.80",11/10/2018
Delivery Units,Adults and Communities,Direct Transfer Payments to So,0090112814,REDACTED - PERSONAL DATA,563.16,11/10/2018
Delivery Units,Adults and Communities,Direct Transfer Payments to So,0090112815,REDACTED - PERSONAL DATA,240.00,11/10/2018
Delivery Units,Adults and Communities,Direct Transfer Payments to So,0090112819,REDACTED - PERSONAL DATA,24.60,11/10/2018
Delivery Units,Adults and Communities,Direct Transfer Payments to So,0090112821,REDACTED - PERSONAL DATA,930.44,11/10/2018
Delivery Units,Adults and Communities,Direct Transfer Payments to So,0090112822,REDACTED - PERSONAL DATA,"1,094.12",11/10/2018
Delivery Units,Adults and Communities,Direct Transfer Payments to So,0090112825,REDACTED - PERSONAL DATA,997.76,11/10/2018
Delivery Units,Adults and Communities,Direct Transfer Payments to So,0090112828,REDACTED - PERSONAL DATA,667.56,11/10/2018
Delivery Units,Adults and Communities,Direct Transfer Payments to So,0090112831,REDACTED - PERSONAL DATA,"3,654.08",11/10/2018
Delivery Units,Adults and Communities,Direct Transfer Payments to So,0090112834,REDACTED - PERSONAL DATA,851.20,11/10/2018
Delivery Units,Adults and Communities,Direct Transfer Payments to So,0090112838,REDACTED - PERSONAL DATA,142.12,11/10/2018
Delivery Units,Adults and Communities,Direct Transfer Payments to So,0090112839,REDACTED - PERSONAL DATA,625.28,11/10/2018
Delivery Units,Adults and Communities,Direct Transfer Payments to So,0090112843,REDACTED - PERSONAL DATA,"1,680.00",11/10/2018
Delivery Units,Adults and Communities,Direct Transfer Payments to So,0090112845,REDACTED - PERSONAL DATA,"1,370.28",11/10/2018
Delivery Units,Adults and Communities,Direct Transfer Payments to So,0090112849,REDACTED - PERSONAL DATA,228.00,11/10/2018
Delivery Units,Adults and Communities,Direct Transfer Payments to So,0090112854,REDACTED - PERSONAL DATA,"1,490.48",15/10/2018
Delivery Units,Adults and Communities,Direct Transfer Payments to So,0090112856,REDACTED - PERSONAL DATA,604.40,11/10/2018
Delivery Units,Adults and Communities,Direct Transfer Payments to So,0090112869,REDACTED - PERSONAL DATA,"8,821.04",11/10/2018
Delivery Units,Adults and Communities,Direct Transfer Payments to So,0090112871,REDACTED - PERSONAL DATA,295.68,11/10/2018
Delivery Units,Adults and Communities,Direct Transfer Payments to So,0090112872,REDACTED - PERSONAL DATA,"1,352.00",11/10/2018
Delivery Units,Adults and Communities,Direct Transfer Payments to So,0090112874,REDACTED - PERSONAL DATA,"2,869.48",11/10/2018
Delivery Units,Adults and Communities,Direct Transfer Payments to So,0090112876,REDACTED - PERSONAL DATA,"2,040.00",11/10/2018
Delivery Units,Adults and Communities,Direct Transfer Payments to So,0090112878,REDACTED - PERSONAL DATA,"1,202.00",11/10/2018
Delivery Units,Adults and Communities,Direct Transfer Payments to So,0090112879,REDACTED - PERSONAL DATA,"1,084.80",11/10/2018
Delivery Units,Adults and Communities,Direct Transfer Payments to So,0090112880,REDACTED - PERSONAL DATA,"1,009.68",11/10/2018
Delivery Units,Adults and Communities,Direct Transfer Payments to So,0090112881,REDACTED - PERSONAL DATA,152.16,11/10/2018
Delivery Units,Adults and Communities,Direct Transfer Payments to So,0090112889,REDACTED - PERSONAL DATA,288.48,11/10/2018
Delivery Units,Adults and Communities,Direct Transfer Payments to So,0090112890,REDACTED - PERSONAL DATA,144.24,11/10/2018
Delivery Units,Adults and Communities,Direct Transfer Payments to So,0090112894,REDACTED - PERSONAL DATA,"3,051.36",11/10/2018
Delivery Units,Adults and Communities,Direct Transfer Payments to So,0090112899,REDACTED - PERSONAL DATA,"2,847.00",11/10/2018
Delivery Units,Adults and Communities,Direct Transfer Payments to So,0090112903,REDACTED - PERSONAL DATA,384.64,11/10/2018
Delivery Units,Adults and Communities,Direct Transfer Payments to So,0090112904,REDACTED - PERSONAL DATA,"2,449.80",11/10/2018
Delivery Units,Adults and Communities,Direct Transfer Payments to So,0090112908,REDACTED - PERSONAL DATA,368.00,11/10/2018
Delivery Units,Adults and Communities,Direct Transfer Payments to So,0090112910,REDACTED - PERSONAL DATA,859.56,11/10/2018
Delivery Units,Adults and Communities,Direct Transfer Payments to So,0090112911,REDACTED - PERSONAL DATA,"1,514.52",11/10/2018
Delivery Units,Adults and Communities,Direct Transfer Payments to So,0090112914,REDACTED - PERSONAL DATA,"1,495.68",11/10/2018
Delivery Units,Adults and Communities,Direct Transfer Payments to So,0090112917,REDACTED - PERSONAL DATA,"1,104.00",11/10/2018
Delivery Units,Adults and Communities,Direct Transfer Payments to So,0090112919,REDACTED - PERSONAL DATA,"1,580.00",11/10/2018
Delivery Units,Adults and Communities,Direct Transfer Payments to So,0090112922,REDACTED - PERSONAL DATA,"1,015.00",11/10/2018
Delivery Units,Adults and Communities,Direct Transfer Payments to So,0090112923,REDACTED - PERSONAL DATA,"5,423.00",11/10/2018
Delivery Units,Adults and Communities,Direct Transfer Payments to So,0090112928,REDACTED - PERSONAL DATA,"3,964.00",11/10/2018
Delivery Units,Adults and Communities,Direct Transfer Payments to So,0090112930,REDACTED - PERSONAL DATA,"1,272.96",11/10/2018
Delivery Units,Adults and Communities,Direct Transfer Payments to So,0090112932,REDACTED - PERSONAL DATA,781.32,11/10/2018
Delivery Units,Adults and Communities,Direct Transfer Payments to So,0090112933,REDACTED - PERSONAL DATA,424.40,11/10/2018
Delivery Units,Adults and Communities,Direct Transfer Payments to So,0090112934,REDACTED - PERSONAL DATA,"3,834.44",11/10/2018
Delivery Units,Adults and Communities,Direct Transfer Payments to So,0090112942,REDACTED - PERSONAL DATA,837.68,11/10/2018
Delivery Units,Adults and Communities,Direct Transfer Payments to So,0090112944,REDACTED - PERSONAL DATA,"6,572.64",11/10/2018
Delivery Units,Adults and Communities,Direct Transfer Payments to So,0090112947,REDACTED - PERSONAL DATA,572.36,11/10/2018
Delivery Units,Adults and Communities,Direct Transfer Payments to So,0090112950,REDACTED - PERSONAL DATA,"2,931.20",11/10/2018
Delivery Units,Adults and Communities,Direct Transfer Payments to So,0090112952,REDACTED - PERSONAL DATA,816.68,11/10/2018
Delivery Units,Adults and Communities,Direct Transfer Payments to So,0090112953,REDACTED - PERSONAL DATA,732.72,11/10/2018
Delivery Units,Adults and Communities,Direct Transfer Payments to So,0090112957,REDACTED - PERSONAL DATA,416.00,11/10/2018
Delivery Units,Adults and Communities,Direct Transfer Payments to So,0090112959,REDACTED - PERSONAL DATA,368.00,11/10/2018
Delivery Units,Adults and Communities,Direct Transfer Payments to So,0090112961,REDACTED - PERSONAL DATA,409.08,11/10/2018
Delivery Units,Adults and Communities,Direct Transfer Payments to So,0090112964,REDACTED - PERSONAL DATA,455.20,11/10/2018
Delivery Units,Adults and Communities,Direct Transfer Payments to So,0090112972,REDACTED - PERSONAL DATA,"2,684.48",11/10/2018
Delivery Units,Adults and Communities,Direct Transfer Payments to So,0090112974,REDACTED - PERSONAL DATA,670.00,11/10/2018
Delivery Units,Adults and Communities,Direct Transfer Payments to So,0090112976,REDACTED - PERSONAL DATA,"1,905.28",11/10/2018
Delivery Units,Adults and Communities,Direct Transfer Payments to So,0090112978,REDACTED - PERSONAL DATA,"4,133.60",11/10/2018
Delivery Units,Adults and Communities,Direct Transfer Payments to So,0090112980,REDACTED - PERSONAL DATA,"6,721.20",11/10/2018
Delivery Units,Adults and Communities,Direct Transfer Payments to So,0090112982,REDACTED - PERSONAL DATA,"1,105.84",11/10/2018
Delivery Units,Adults and Communities,Direct Transfer Payments to So,0090112985,REDACTED - PERSONAL DATA,"1,248.16",11/10/2018
Delivery Units,Adults and Communities,Direct Transfer Payments to So,0090112986,REDACTED - PERSONAL DATA,699.64,11/10/2018
Delivery Units,Adults and Communities,Direct Transfer Payments to So,0090112987,REDACTED - PERSONAL DATA,899.36,11/10/2018
Delivery Units,Adults and Communities,Direct Transfer Payments to So,0090112989,REDACTED - PERSONAL DATA,"1,048.24",11/10/2018
Delivery Units,Adults and Communities,Direct Transfer Payments to So,0090112990,REDACTED - PERSONAL DATA,913.52,11/10/2018
Delivery Units,Adults and Communities,Direct Transfer Payments to So,0090112993,REDACTED - PERSONAL DATA,448.00,11/10/2018
Delivery Units,Adults and Communities,Direct Transfer Payments to So,0090113012,REDACTED - PERSONAL DATA,"1,249.52",11/10/2018
Delivery Units,Adults and Communities,Direct Transfer Payments to So,0090113014,REDACTED - PERSONAL DATA,"1,009.68",11/10/2018
Delivery Units,Adults and Communities,Direct Transfer Payments to So,0090113021,REDACTED - PERSONAL DATA,913.20,11/10/2018
Delivery Units,Adults and Communities,Direct Transfer Payments to So,0090113030,REDACTED - PERSONAL DATA,384.00,11/10/2018
Delivery Units,Adults and Communities,Direct Transfer Payments to So,0090113031,REDACTED - PERSONAL DATA,588.96,11/10/2018
Delivery Units,Adults and Communities,Direct Transfer Payments to So,0090113032,REDACTED - PERSONAL DATA,"3,727.68",11/10/2018
Delivery Units,Adults and Communities,Direct Transfer Payments to So,0090113035,REDACTED - PERSONAL DATA,"1,638.16",11/10/2018
Delivery Units,Adults and Communities,Direct Transfer Payments to So,0090113037,REDACTED - PERSONAL DATA,360.00,11/10/2018
Delivery Units,Adults and Communities,Direct Transfer Payments to So,0090113038,REDACTED - PERSONAL DATA,"5,344.00",11/10/2018
Delivery Units,Adults and Communities,Direct Transfer Payments to So,0090113039,REDACTED - PERSONAL DATA,"1,309.00",11/10/2018
Delivery Units,Adults and Communities,Direct Transfer Payments to So,0090113043,REDACTED - PERSONAL DATA,"2,976.00",11/10/2018
Delivery Units,Adults and Communities,Direct Transfer Payments to So,0090113044,REDACTED - PERSONAL DATA,"2,933.80",11/10/2018
Delivery Units,Adults and Communities,Direct Transfer Payments to So,0090113045,REDACTED - PERSONAL DATA,552.00,11/10/2018
Delivery Units,Adults and Communities,Direct Transfer Payments to So,0090113046,REDACTED - PERSONAL DATA,687.12,11/10/2018
Delivery Units,Adults and Communities,Direct Transfer Payments to So,0090113047,REDACTED - PERSONAL DATA,"1,472.32",11/10/2018
Delivery Units,Adults and Communities,Direct Transfer Payments to So,0090113056,REDACTED - PERSONAL DATA,364.00,11/10/2018
Delivery Units,Adults and Communities,Direct Transfer Payments to So,0090113086,REDACTED - PERSONAL DATA,409.00,11/10/2018
Delivery Units,Adults and Communities,Direct Transfer Payments to So,0090113088,REDACTED - PERSONAL DATA,153.84,11/10/2018
Delivery Units,Adults and Communities,Direct Transfer Payments to So,0090113101,REDACTED - PERSONAL DATA,480.76,11/10/2018
Delivery Units,Adults and Communities,Direct Transfer Payments to So,0090113102,REDACTED - PERSONAL DATA,408.00,11/10/2018
Delivery Units,Adults and Communities,Direct Transfer Payments to So,0090113201,REDACTED - PERSONAL DATA,700.00,11/10/2018
Delivery Units,Adults and Communities,Direct Transfer Payments to So,0090113202,REDACTED - PERSONAL DATA,360.00,11/10/2018
Delivery Units,Adults and Communities,Direct Transfer Payments to So,0090113205,REDACTED - PERSONAL DATA,649.08,11/10/2018
Delivery Units,Adults and Communities,Direct Transfer Payments to So,0090113207,REDACTED - PERSONAL DATA,"1,063.72",11/10/2018
Delivery Units,Adults and Communities,Direct Transfer Payments to So,0090113209,REDACTED - PERSONAL DATA,"2,240.00",11/10/2018
Delivery Units,Adults and Communities,Direct Transfer Payments to So,0090113212,REDACTED - PERSONAL DATA,202.00,11/10/2018
Delivery Units,Adults and Communities,Direct Transfer Payments to So,0090113214,REDACTED - PERSONAL DATA,560.00,11/10/2018
Delivery Units,Adults and Communities,Direct Transfer Payments to So,0090113218,REDACTED - PERSONAL DATA,"1,344.00",11/10/2018
Delivery Units,Adults and Communities,Direct Transfer Payments to So,0090113219,REDACTED - PERSONAL DATA,"2,436.00",11/10/2018
Delivery Units,Adults and Communities,Direct Transfer Payments to So,0090113224,REDACTED - PERSONAL DATA,442.88,11/10/2018
Delivery Units,Adults and Communities,Direct Transfer Payments to So,0090113227,REDACTED - PERSONAL DATA,218.24,11/10/2018
Delivery Units,Adults and Communities,Direct Transfer Payments to So,0090113229,REDACTED - PERSONAL DATA,280.00,11/10/2018
Delivery Units,Adults and Communities,Direct Transfer Payments to So,0090113232,REDACTED - PERSONAL DATA,"1,520.00",11/10/2018
Delivery Units,Adults and Communities,Direct Transfer Payments to So,0090113238,REDACTED - PERSONAL DATA,384.00,11/10/2018
Delivery Units,Adults and Communities,Direct Transfer Payments to So,0090113242,REDACTED - PERSONAL DATA,"1,243.00",11/10/2018
Delivery Units,Adults and Communities,Direct Transfer Payments to So,0090113244,REDACTED - PERSONAL DATA,"2,316.96",11/10/2018
Delivery Units,Adults and Communities,Direct Transfer Payments to So,0090113245,REDACTED - PERSONAL DATA,700.00,11/10/2018
Delivery Units,Adults and Communities,Direct Transfer Payments to So,0090113246,REDACTED - PERSONAL DATA,"1,400.00",11/10/2018
Delivery Units,Adults and Communities,Direct Transfer Payments to So,0090113248,REDACTED - PERSONAL DATA,870.00,11/10/2018
Delivery Units,Adults and Communities,Direct Transfer Payments to So,0090113249,REDACTED - PERSONAL DATA,200.00,11/10/2018
Delivery Units,Adults and Communities,Direct Transfer Payments to So,0090113252,REDACTED - PERSONAL DATA,"1,673.36",11/10/2018
Delivery Units,Adults and Communities,Direct Transfer Payments to So,0090113258,REDACTED - PERSONAL DATA,387.52,11/10/2018
Delivery Units,Adults and Communities,Direct Transfer Payments to So,0090113259,REDACTED - PERSONAL DATA,347.20,11/10/2018
Delivery Units,Adults and Communities,Direct Transfer Payments to So,0090113260,REDACTED - PERSONAL DATA,144.24,11/10/2018
Delivery Units,Adults and Communities,Direct Transfer Payments to So,0090113263,REDACTED - PERSONAL DATA,"2,092.96",11/10/2018
Delivery Units,Adults and Communities,Direct Transfer Payments to So,0090113266,REDACTED - PERSONAL DATA,772.32,11/10/2018
Delivery Units,Adults and Communities,Direct Transfer Payments to So,0090113271,REDACTED - PERSONAL DATA,279.12,11/10/2018
Delivery Units,Adults and Communities,Direct Transfer Payments to So,0090113273,REDACTED - PERSONAL DATA,569.08,11/10/2018
Delivery Units,Adults and Communities,Direct Transfer Payments to So,0090113274,REDACTED - PERSONAL DATA,"1,060.00",11/10/2018
Delivery Units,Adults and Communities,Direct Transfer Payments to So,0090113275,REDACTED - PERSONAL DATA,"1,061.96",11/10/2018
Delivery Units,Adults and Communities,Direct Transfer Payments to So,0090113281,REDACTED - PERSONAL DATA,675.80,11/10/2018
Delivery Units,Adults and Communities,Direct Transfer Payments to So,0090113282,REDACTED - PERSONAL DATA,"1,350.72",11/10/2018
Delivery Units,Adults and Communities,Direct Transfer Payments to So,0090113287,REDACTED - PERSONAL DATA,"5,556.00",11/10/2018
Delivery Units,Adults and Communities,Direct Transfer Payments to So,0090113288,REDACTED - PERSONAL DATA,160.00,11/10/2018
Delivery Units,Adults and Communities,Direct Transfer Payments to So,0090113290,REDACTED - PERSONAL DATA,"1,545.32",11/10/2018
Delivery Units,Adults and Communities,Direct Transfer Payments to So,0090113294,REDACTED - PERSONAL DATA,"3,279.20",11/10/2018
Delivery Units,Adults and Communities,Direct Transfer Payments to So,0090113296,REDACTED - PERSONAL DATA,128.00,11/10/2018
Delivery Units,Adults and Communities,Direct Transfer Payments to So,0090113301,REDACTED - PERSONAL DATA,"1,802.08",11/10/2018
Delivery Units,Adults and Communities,Direct Transfer Payments to So,0090113306,REDACTED - PERSONAL DATA,788.40,11/10/2018
Delivery Units,Adults and Communities,Direct Transfer Payments to So,0090113309,REDACTED - PERSONAL DATA,589.68,11/10/2018
Delivery Units,Adults and Communities,Direct Transfer Payments to So,0090113316,REDACTED - PERSONAL DATA,333.84,11/10/2018
Delivery Units,Adults and Communities,Direct Transfer Payments to So,0090113318,REDACTED - PERSONAL DATA,585.24,11/10/2018
Delivery Units,Adults and Communities,Direct Transfer Payments to So,0090113319,REDACTED - PERSONAL DATA,"1,113.44",11/10/2018
Delivery Units,Adults and Communities,Direct Transfer Payments to So,0090113322,REDACTED - PERSONAL DATA,486.20,11/10/2018
Delivery Units,Adults and Communities,Direct Transfer Payments to So,0090113323,REDACTED - PERSONAL DATA,"1,680.00",11/10/2018
Delivery Units,Adults and Communities,Direct Transfer Payments to So,0090113325,REDACTED - PERSONAL DATA,730.92,11/10/2018
Delivery Units,Adults and Communities,Direct Transfer Payments to So,0090113328,REDACTED - PERSONAL DATA,899.36,11/10/2018
Delivery Units,Adults and Communities,Direct Transfer Payments to So,0090113329,REDACTED - PERSONAL DATA,"1,226.10",11/10/2018
Delivery Units,Adults and Communities,Direct Transfer Payments to So,0090113330,REDACTED - PERSONAL DATA,"1,440.00",11/10/2018
Delivery Units,Adults and Communities,Direct Transfer Payments to So,0090113332,REDACTED - PERSONAL DATA,171.24,11/10/2018
Delivery Units,Adults and Communities,Direct Transfer Payments to So,0090113334,REDACTED - PERSONAL DATA,"3,942.56",11/10/2018
Delivery Units,Adults and Communities,Direct Transfer Payments to So,0090113339,REDACTED - PERSONAL DATA,"2,296.60",11/10/2018
Delivery Units,Adults and Communities,Direct Transfer Payments to So,0090113341,REDACTED - PERSONAL DATA,348.00,11/10/2018
Delivery Units,Adults and Communities,Direct Transfer Payments to So,0090113349,REDACTED - PERSONAL DATA,"1,281.28",11/10/2018
Delivery Units,Adults and Communities,Direct Transfer Payments to So,0090113350,REDACTED - PERSONAL DATA,"-1,716.54",11/10/2018
Delivery Units,Adults and Communities,Direct Transfer Payments to So,0090113390,REDACTED - PERSONAL DATA,-630.96,11/10/2018
Delivery Units,Adults and Communities,Direct Transfer Payments to So,0090113394,REDACTED - PERSONAL DATA,"23,056.93",11/10/2018
Delivery Units,Adults and Communities,Direct Transfer Payments to So,0090113515,REDACTED - PERSONAL DATA,"-14,242.89",11/10/2018
Delivery Units,Adults and Communities,Direct Transfer Payments to So,0090113516,REDACTED - PERSONAL DATA,0.37,11/10/2018
Delivery Units,Adults and Communities,Direct Transfer Payments to So,0090113517,REDACTED - PERSONAL DATA,972.00,11/10/2018
Delivery Units,Adults and Communities,Direct Transfer Payments to So,0090113519,REDACTED - PERSONAL DATA,"3,100.16",11/10/2018
Delivery Units,Adults and Communities,Direct Transfer Payments to So,0090113523,REDACTED - PERSONAL DATA,408.68,11/10/2018
Delivery Units,Adults and Communities,Direct Transfer Payments to So,0090113524,REDACTED - PERSONAL DATA,851.08,11/10/2018
Delivery Units,Adults and Communities,Direct Transfer Payments to So,0090113525,REDACTED - PERSONAL DATA,925.40,11/10/2018
Delivery Units,Adults and Communities,Direct Transfer Payments to So,0090113529,REDACTED - PERSONAL DATA,502.40,11/10/2018
Delivery Units,Adults and Communities,Direct Transfer Payments to So,0090113533,REDACTED - PERSONAL DATA,485.84,11/10/2018
Delivery Units,Adults and Communities,Direct Transfer Payments to So,0090113534,REDACTED - PERSONAL DATA,"1,161.92",11/10/2018
Delivery Units,Adults and Communities,Direct Transfer Payments to So,0090113538,REDACTED - PERSONAL DATA,709.20,11/10/2018
Delivery Units,Adults and Communities,Direct Transfer Payments to So,0090113541,REDACTED - PERSONAL DATA,456.76,11/10/2018
Delivery Units,Adults and Communities,Direct Transfer Payments to So,0090113547,REDACTED - PERSONAL DATA,"1,238.92",11/10/2018
Delivery Units,Adults and Communities,Direct Transfer Payments to So,0090113549,REDACTED - PERSONAL DATA,192.32,11/10/2018
Delivery Units,Adults and Communities,Direct Transfer Payments to So,0090113550,REDACTED - PERSONAL DATA,"1,185.32",11/10/2018
Delivery Units,Adults and Communities,Direct Transfer Payments to So,0090113559,REDACTED - PERSONAL DATA,264.08,11/10/2018
Delivery Units,Adults and Communities,Direct Transfer Payments to So,0090113560,REDACTED - PERSONAL DATA,"1,081.08",11/10/2018
Delivery Units,Adults and Communities,Direct Transfer Payments to So,0090113563,REDACTED - PERSONAL DATA,305.44,11/10/2018
Delivery Units,Adults and Communities,Direct Transfer Payments to So,0090113565,REDACTED - PERSONAL DATA,"1,545.48",11/10/2018
Delivery Units,Adults and Communities,Direct Transfer Payments to So,0090113567,REDACTED - PERSONAL DATA,"1,541.08",11/10/2018
Delivery Units,Adults and Communities,Direct Transfer Payments to So,0090113571,REDACTED - PERSONAL DATA,846.72,11/10/2018
Delivery Units,Adults and Communities,Direct Transfer Payments to So,0090113573,REDACTED - PERSONAL DATA,286.00,11/10/2018
Delivery Units,Adults and Communities,Direct Transfer Payments to So,0090113577,REDACTED - PERSONAL DATA,968.80,11/10/2018
Delivery Units,Adults and Communities,Direct Transfer Payments to So,0090113581,REDACTED - PERSONAL DATA,200.56,11/10/2018
Delivery Units,Adults and Communities,Direct Transfer Payments to So,0090113582,REDACTED - PERSONAL DATA,207.60,11/10/2018
Delivery Units,Adults and Communities,Direct Transfer Payments to So,0090113584,REDACTED - PERSONAL DATA,581.28,11/10/2018
Delivery Units,Adults and Communities,Direct Transfer Payments to So,0090113587,REDACTED - PERSONAL DATA,721.20,11/10/2018
Delivery Units,Adults and Communities,Direct Transfer Payments to So,0090113595,REDACTED - PERSONAL DATA,860.80,11/10/2018
Delivery Units,Adults and Communities,Direct Transfer Payments to So,0090113596,REDACTED - PERSONAL DATA,589.00,11/10/2018
Delivery Units,Adults and Communities,Direct Transfer Payments to So,0090113598,REDACTED - PERSONAL DATA,"3,713.28",11/10/2018
Delivery Units,Adults and Communities,Direct Transfer Payments to So,0090113599,REDACTED - PERSONAL DATA,700.00,11/10/2018
Delivery Units,Adults and Communities,Direct Transfer Payments to So,0090113600,REDACTED - PERSONAL DATA,"1,845.36",11/10/2018
Delivery Units,Adults and Communities,Direct Transfer Payments to So,0090113608,REDACTED - PERSONAL DATA,"1,020.00",11/10/2018
Delivery Units,Adults and Communities,Direct Transfer Payments to So,0090113609,REDACTED - PERSONAL DATA,"1,924.00",11/10/2018
Delivery Units,Adults and Communities,Direct Transfer Payments to So,0090113614,REDACTED - PERSONAL DATA,601.00,11/10/2018
Delivery Units,Adults and Communities,Direct Transfer Payments to So,0090113617,REDACTED - PERSONAL DATA,769.28,11/10/2018
Delivery Units,Adults and Communities,Direct Transfer Payments to So,0090113622,REDACTED - PERSONAL DATA,193.60,11/10/2018
Delivery Units,Adults and Communities,Direct Transfer Payments to So,0090113627,REDACTED - PERSONAL DATA,190.00,11/10/2018
Delivery Units,Adults and Communities,Direct Transfer Payments to So,0090113629,REDACTED - PERSONAL DATA,775.04,11/10/2018
Delivery Units,Adults and Communities,Direct Transfer Payments to So,0090113631,REDACTED - PERSONAL DATA,"2,048.44",11/10/2018
Delivery Units,Adults and Communities,Direct Transfer Payments to So,0090113634,REDACTED - PERSONAL DATA,926.68,11/10/2018
Delivery Units,Adults and Communities,Direct Transfer Payments to So,0090113639,REDACTED - PERSONAL DATA,679.60,11/10/2018
Delivery Units,Adults and Communities,Direct Transfer Payments to So,0090113645,REDACTED - PERSONAL DATA,927.84,11/10/2018
Delivery Units,Adults and Communities,Direct Transfer Payments to So,0090113646,REDACTED - PERSONAL DATA,426.96,11/10/2018
Delivery Units,Adults and Communities,Direct Transfer Payments to So,0090113647,REDACTED - PERSONAL DATA,728.00,11/10/2018
Delivery Units,Adults and Communities,Direct Transfer Payments to So,0090113648,REDACTED - PERSONAL DATA,"1,092.00",11/10/2018
Delivery Units,Adults and Communities,Direct Transfer Payments to So,0090113649,REDACTED - PERSONAL DATA,306.84,11/10/2018
Delivery Units,Adults and Communities,Direct Transfer Payments to So,0090113650,REDACTED - PERSONAL DATA,928.00,11/10/2018
Delivery Units,Adults and Communities,Direct Transfer Payments to So,0090113652,REDACTED - PERSONAL DATA,721.20,11/10/2018
Delivery Units,Adults and Communities,Direct Transfer Payments to So,0090113656,REDACTED - PERSONAL DATA,420.72,11/10/2018
Delivery Units,Adults and Communities,Direct Transfer Payments to So,0090113657,REDACTED - PERSONAL DATA,"1,353.04",11/10/2018
Delivery Units,Adults and Communities,Direct Transfer Payments to So,0090113660,REDACTED - PERSONAL DATA,420.00,11/10/2018
Delivery Units,Adults and Communities,Direct Transfer Payments to So,0090113661,REDACTED - PERSONAL DATA,"2,031.88",11/10/2018
Delivery Units,Adults and Communities,Direct Transfer Payments to So,0090113669,REDACTED - PERSONAL DATA,"1,500.00",11/10/2018
Delivery Units,Adults and Communities,Direct Transfer Payments to So,0090113670,REDACTED - PERSONAL DATA,547.08,11/10/2018
Delivery Units,Adults and Communities,Direct Transfer Payments to So,0090113671,REDACTED - PERSONAL DATA,"2,048.32",11/10/2018
Delivery Units,Adults and Communities,Direct Transfer Payments to So,0090113677,REDACTED - PERSONAL DATA,391.92,11/10/2018
Delivery Units,Adults and Communities,Direct Transfer Payments to So,0090113679,REDACTED - PERSONAL DATA,420.72,11/10/2018
Delivery Units,Adults and Communities,Direct Transfer Payments to So,0090113685,REDACTED - PERSONAL DATA,"3,584.00",11/10/2018
Delivery Units,Adults and Communities,Direct Transfer Payments to So,0090113687,REDACTED - PERSONAL DATA,392.00,11/10/2018
Delivery Units,Adults and Communities,Direct Transfer Payments to So,0090113689,REDACTED - PERSONAL DATA,889.48,11/10/2018
Delivery Units,Adults and Communities,Direct Transfer Payments to So,0090113690,REDACTED - PERSONAL DATA,231.40,11/10/2018
Delivery Units,Adults and Communities,Direct Transfer Payments to So,0090113694,REDACTED - PERSONAL DATA,966.84,11/10/2018
Delivery Units,Adults and Communities,Direct Transfer Payments to So,0090113695,REDACTED - PERSONAL DATA,"1,438.32",11/10/2018
Delivery Units,Adults and Communities,Direct Transfer Payments to So,0090113697,REDACTED - PERSONAL DATA,787.20,11/10/2018
Delivery Units,Adults and Communities,Direct Transfer Payments to So,0090113700,REDACTED - PERSONAL DATA,470.40,11/10/2018
Delivery Units,Adults and Communities,Direct Transfer Payments to So,0090113701,REDACTED - PERSONAL DATA,"1,092.00",11/10/2018
Delivery Units,Adults and Communities,Direct Transfer Payments to So,0090113702,REDACTED - PERSONAL DATA,"3,474.40",11/10/2018
Delivery Units,Adults and Communities,Direct Transfer Payments to So,0090113703,REDACTED - PERSONAL DATA,643.60,11/10/2018
Delivery Units,Adults and Communities,Direct Transfer Payments to So,0090113706,REDACTED - PERSONAL DATA,"1,440.00",11/10/2018
Delivery Units,Adults and Communities,Direct Transfer Payments to So,0090113707,REDACTED - PERSONAL DATA,"2,200.00",11/10/2018
Delivery Units,Adults and Communities,Direct Transfer Payments to So,0090113708,REDACTED - PERSONAL DATA,"1,560.72",11/10/2018
Delivery Units,Adults and Communities,Direct Transfer Payments to So,0090113709,REDACTED - PERSONAL DATA,321.80,11/10/2018
Delivery Units,Adults and Communities,Direct Transfer Payments to So,0090113710,REDACTED - PERSONAL DATA,136.00,11/10/2018
Delivery Units,Adults and Communities,Direct Transfer Payments to So,0090113711,REDACTED - PERSONAL DATA,528.88,11/10/2018
Delivery Units,Adults and Communities,Direct Transfer Payments to So,0090113712,REDACTED - PERSONAL DATA,"1,819.44",11/10/2018
Delivery Units,Adults and Communities,Direct Transfer Payments to So,0090113717,REDACTED - PERSONAL DATA,"2,300.00",11/10/2018
Delivery Units,Adults and Communities,Direct Transfer Payments to So,0090113719,REDACTED - PERSONAL DATA,615.12,11/10/2018
Delivery Units,Adults and Communities,Direct Transfer Payments to So,0090113723,REDACTED - PERSONAL DATA,536.00,11/10/2018
Delivery Units,Adults and Communities,Direct Transfer Payments to So,0090113725,REDACTED - PERSONAL DATA,"2,016.00",11/10/2018
Delivery Units,Adults and Communities,Direct Transfer Payments to So,0090113726,REDACTED - PERSONAL DATA,"1,312.64",11/10/2018
Delivery Units,Adults and Communities,Direct Transfer Payments to So,0090113729,REDACTED - PERSONAL DATA,720.00,11/10/2018
Delivery Units,Adults and Communities,Direct Transfer Payments to So,0090113734,REDACTED - PERSONAL DATA,"1,312.48",11/10/2018
Delivery Units,Adults and Communities,Direct Transfer Payments to So,0090113735,REDACTED - PERSONAL DATA,"1,035.24",11/10/2018
Delivery Units,Adults and Communities,Direct Transfer Payments to So,0090113737,REDACTED - PERSONAL DATA,384.00,11/10/2018
Delivery Units,Adults and Communities,Direct Transfer Payments to So,0090113739,REDACTED - PERSONAL DATA,696.68,11/10/2018
Delivery Units,Adults and Communities,Direct Transfer Payments to So,0090113740,REDACTED - PERSONAL DATA,"1,260.00",11/10/2018
Delivery Units,Adults and Communities,Direct Transfer Payments to So,0090113741,REDACTED - PERSONAL DATA,312.52,11/10/2018
Delivery Units,Adults and Communities,Direct Transfer Payments to So,0090113742,REDACTED - PERSONAL DATA,336.56,11/10/2018
Delivery Units,Adults and Communities,Direct Transfer Payments to So,0090113745,REDACTED - PERSONAL DATA,451.92,11/10/2018
Delivery Units,Adults and Communities,Direct Transfer Payments to So,0090113747,REDACTED - PERSONAL DATA,"4,093.84",11/10/2018
Delivery Units,Adults and Communities,Direct Transfer Payments to So,0090113749,REDACTED - PERSONAL DATA,347.20,11/10/2018
Delivery Units,Adults and Communities,Direct Transfer Payments to So,0090113752,REDACTED - PERSONAL DATA,840.00,11/10/2018
Delivery Units,Adults and Communities,Direct Transfer Payments to So,0090113754,REDACTED - PERSONAL DATA,825.44,11/10/2018
Delivery Units,Adults and Communities,Direct Transfer Payments to So,0090113759,REDACTED - PERSONAL DATA,160.00,11/10/2018
Delivery Units,Adults and Communities,Direct Transfer Payments to So,0090113763,REDACTED - PERSONAL DATA,800.00,11/10/2018
Delivery Units,Adults and Communities,Direct Transfer Payments to So,0090113765,REDACTED - PERSONAL DATA,944.40,11/10/2018
Delivery Units,Adults and Communities,Direct Transfer Payments to So,0090113766,REDACTED - PERSONAL DATA,"1,351.56",11/10/2018
Delivery Units,Adults and Communities,Direct Transfer Payments to So,0090113767,REDACTED - PERSONAL DATA,"1,689.44",11/10/2018
Delivery Units,Adults and Communities,Direct Transfer Payments to So,0090113769,REDACTED - PERSONAL DATA,969.00,11/10/2018
Delivery Units,Adults and Communities,Direct Transfer Payments to So,0090113771,REDACTED - PERSONAL DATA,"3,260.00",11/10/2018
Delivery Units,Adults and Communities,Direct Transfer Payments to So,0090113776,REDACTED - PERSONAL DATA,"1,346.24",11/10/2018
Delivery Units,Adults and Communities,Direct Transfer Payments to So,0090113778,REDACTED - PERSONAL DATA,960.00,11/10/2018
Delivery Units,Adults and Communities,Direct Transfer Payments to So,0090113779,REDACTED - PERSONAL DATA,"1,582.00",11/10/2018
Delivery Units,Adults and Communities,Direct Transfer Payments to So,0090113783,REDACTED - PERSONAL DATA,779.44,11/10/2018
Delivery Units,Adults and Communities,Direct Transfer Payments to So,0090113784,REDACTED - PERSONAL DATA,"2,520.00",11/10/2018
Delivery Units,Adults and Communities,Direct Transfer Payments to So,0090113792,REDACTED - PERSONAL DATA,"1,164.24",11/10/2018
Delivery Units,Adults and Communities,Direct Transfer Payments to So,0090113794,REDACTED - PERSONAL DATA,901.04,11/10/2018
Delivery Units,Adults and Communities,Direct Transfer Payments to So,0090114000,REDACTED - PERSONAL DATA,"1,791.32",12/10/2018
Delivery Units,Adults and Communities,Direct Transfer Payments to So,0090114004,REDACTED - PERSONAL DATA,770.88,12/10/2018
Delivery Units,Adults and Communities,Direct Transfer Payments to So,0090114010,REDACTED - PERSONAL DATA,239.14,12/10/2018
Delivery Units,Adults and Communities,Direct Transfer Payments to So,0090116053,REDACTED - PERSONAL DATA,198.84,19/10/2018
Delivery Units,Adults and Communities,Direct Transfer Payments to So,0090116054,REDACTED - PERSONAL DATA,"1,094.12",19/10/2018
Delivery Units,Adults and Communities,Direct Transfer Payments to So,0090116379,REDACTED - PERSONAL DATA,"2,047.00",22/10/2018
Delivery Units,Adults and Communities,Direct Transfer Payments to So,0090116380,REDACTED - PERSONAL DATA,250.00,22/10/2018
Delivery Units,Adults and Communities,Direct Transfer Payments to So,0090117074,REDACTED - PERSONAL DATA,700.00,23/10/2018
Delivery Units,Adults and Communities,Direct Transfer Payments to So,0090117172,REDACTED - PERSONAL DATA,"1,169.64",23/10/2018
Delivery Units,Adults and Communities,Direct Transfer Payments to So,0090118337,REDACTED - PERSONAL DATA,509.51,29/10/2018
Delivery Units,Adults and Communities,Direct Transfer Payments to So,0090118863,REDACTED - PERSONAL DATA,"1,046.86",30/10/2018
Delivery Units,Adults and Communities,Direct Transfer Payments to So,0090113000,WIRECARD - ADULT SERVICES,531.80,11/10/2018
Delivery Units,Adults and Communities,Direct Transfer Payments to So,0090113001,WIRECARD - ADULT SERVICES,230.40,11/10/2018
Delivery Units,Adults and Communities,Direct Transfer Payments to So,0090113006,WIRECARD - ADULT SERVICES,280.00,11/10/2018
Delivery Units,Adults and Communities,Direct Transfer Payments to So,0090113007,WIRECARD - ADULT SERVICES,144.24,11/10/2018
Delivery Units,Adults and Communities,Direct Transfer Payments to So,0090113008,WIRECARD - ADULT SERVICES,462.00,11/10/2018
Delivery Units,Adults and Communities,Direct Transfer Payments to So,0090113009,WIRECARD - ADULT SERVICES,26.20,11/10/2018
Delivery Units,Adults and Communities,Direct Transfer Payments to So,0090113057,WIRECARD - ADULT SERVICES,754.76,11/10/2018
Delivery Units,Adults and Communities,Direct Transfer Payments to So,0090113059,WIRECARD - ADULT SERVICES,384.64,11/10/2018
Delivery Units,Adults and Communities,Direct Transfer Payments to So,0090113060,WIRECARD - ADULT SERVICES,186.48,11/10/2018
Delivery Units,Adults and Communities,Direct Transfer Payments to So,0090113061,WIRECARD - ADULT SERVICES,192.00,11/10/2018
Delivery Units,Adults and Communities,Direct Transfer Payments to So,0090113070,WIRECARD - ADULT SERVICES,480.80,11/10/2018
Delivery Units,Adults and Communities,Direct Transfer Payments to So,0090113071,WIRECARD - ADULT SERVICES,184.60,11/10/2018
Delivery Units,Adults and Communities,Direct Transfer Payments to So,0090113075,WIRECARD - ADULT SERVICES,138.48,11/10/2018
Delivery Units,Adults and Communities,Direct Transfer Payments to So,0090113083,WIRECARD - ADULT SERVICES,192.00,11/10/2018
Delivery Units,Adults and Communities,Direct Transfer Payments to So,0090113085,WIRECARD - ADULT SERVICES,"1,200.00",11/10/2018
Delivery Units,Adults and Communities,Direct Transfer Payments to So,0090113091,WIRECARD - ADULT SERVICES,"2,548.00",11/10/2018
Delivery Units,Adults and Communities,Direct Transfer Payments to So,0090113092,WIRECARD - ADULT SERVICES,730.48,11/10/2018
Delivery Units,Adults and Communities,Direct Transfer Payments to So,0090113093,WIRECARD - ADULT SERVICES,792.88,11/10/2018
Delivery Units,Adults and Communities,Direct Transfer Payments to So,0090113094,WIRECARD - ADULT SERVICES,"10,584.00",11/10/2018
Delivery Units,Adults and Communities,Direct Transfer Payments to So,0090113095,WIRECARD - ADULT SERVICES,70.00,11/10/2018
Delivery Units,Adults and Communities,Direct Transfer Payments to So,0090113096,WIRECARD - ADULT SERVICES,218.64,11/10/2018
Delivery Units,Adults and Communities,Direct Transfer Payments to So,0090113097,WIRECARD - ADULT SERVICES,92.32,11/10/2018
Delivery Units,Adults and Communities,Direct Transfer Payments to So,0090113393,WIRECARD - ADULT SERVICES,284.48,11/10/2018
Delivery Units,Adults and Communities,Equipment and Materials Purcha,0060114219,MILLBROOK HEALTHCARE LTD,"259,002.21",18/10/2018
Delivery Units,Adults and Communities,Equipment and Materials Purcha,0060114245,MILLBROOK HEALTHCARE LTD,"245,757.07",18/10/2018
Delivery Units,Adults and Communities,Fees and Charges,0090104272,REDACTED - PERSONAL DATA,-0.04,03/10/2018
Delivery Units,Adults and Communities,Fees and Charges,0090104275,REDACTED - PERSONAL DATA,-0.04,03/10/2018
Delivery Units,Adults and Communities,Fees and Charges,0090104277,REDACTED - PERSONAL DATA,-0.04,03/10/2018
Delivery Units,Adults and Communities,Fees and Charges,0090104286,REDACTED - PERSONAL DATA,0.12,03/10/2018
Delivery Units,Adults and Communities,Fees and Charges,0090109387,REDACTED - PERSONAL DATA,"-2,380.98",19/10/2018
Delivery Units,Adults and Communities,Fees and Charges,0090109772,REDACTED - PERSONAL DATA,"-2,755.11",02/10/2018
Delivery Units,Adults and Communities,Fees and Charges,0090110072,REDACTED - PERSONAL DATA,130.02,03/10/2018
Delivery Units,Adults and Communities,Fees and Charges,0090110073,REDACTED - PERSONAL DATA,0.20,03/10/2018
Delivery Units,Adults and Communities,Fees and Charges,0090111405,REDACTED - PERSONAL DATA,-97.00,11/10/2018
Delivery Units,Adults and Communities,Fees and Charges,0090111419,REDACTED - PERSONAL DATA,0.12,05/10/2018
Delivery Units,Adults and Communities,Fees and Charges,0090111420,REDACTED - PERSONAL DATA,-858.26,05/10/2018
Delivery Units,Adults and Communities,Fees and Charges,0090112965,REDACTED - PERSONAL DATA,-157.16,11/10/2018
Delivery Units,Adults and Communities,Fees and Charges,0090112966,REDACTED - PERSONAL DATA,-132.00,11/10/2018
Delivery Units,Adults and Communities,Fees and Charges,0090112994,REDACTED - PERSONAL DATA,-165.20,11/10/2018
Delivery Units,Adults and Communities,Fees and Charges,0090112995,REDACTED - PERSONAL DATA,-132.24,11/10/2018
Delivery Units,Adults and Communities,Fees and Charges,0090112996,REDACTED - PERSONAL DATA,-58.40,11/10/2018
Delivery Units,Adults and Communities,Fees and Charges,0090112997,REDACTED - PERSONAL DATA,-175.56,11/10/2018
Delivery Units,Adults and Communities,Fees and Charges,0090112998,REDACTED - PERSONAL DATA,-161.88,11/10/2018
Delivery Units,Adults and Communities,Fees and Charges,0090113004,REDACTED - PERSONAL DATA,-257.96,11/10/2018
Delivery Units,Adults and Communities,Fees and Charges,0090113005,REDACTED - PERSONAL DATA,-262.12,11/10/2018
Delivery Units,Adults and Communities,Fees and Charges,0090113010,REDACTED - PERSONAL DATA,-387.20,11/10/2018
Delivery Units,Adults and Communities,Fees and Charges,0090113013,REDACTED - PERSONAL DATA,-351.80,11/10/2018
Delivery Units,Adults and Communities,Fees and Charges,0090113048,REDACTED - PERSONAL DATA,-229.04,11/10/2018
Delivery Units,Adults and Communities,Fees and Charges,0090113050,REDACTED - PERSONAL DATA,-195.08,11/10/2018
Delivery Units,Adults and Communities,Fees and Charges,0090113051,REDACTED - PERSONAL DATA,-245.20,11/10/2018
Delivery Units,Adults and Communities,Fees and Charges,0090113052,REDACTED - PERSONAL DATA,-245.20,11/10/2018
Delivery Units,Adults and Communities,Fees and Charges,0090113053,REDACTED - PERSONAL DATA,-47.00,11/10/2018
Delivery Units,Adults and Communities,Fees and Charges,0090113054,REDACTED - PERSONAL DATA,-73.28,11/10/2018
Delivery Units,Adults and Communities,Fees and Charges,0090113064,REDACTED - PERSONAL DATA,-103.20,11/10/2018
Delivery Units,Adults and Communities,Fees and Charges,0090113066,REDACTED - PERSONAL DATA,-208.08,11/10/2018
Delivery Units,Adults and Communities,Fees and Charges,0090113067,REDACTED - PERSONAL DATA,-305.20,11/10/2018
Delivery Units,Adults and Communities,Fees and Charges,0090113068,REDACTED - PERSONAL DATA,-171.72,11/10/2018
Delivery Units,Adults and Communities,Fees and Charges,0090113069,REDACTED - PERSONAL DATA,-87.20,11/10/2018
Delivery Units,Adults and Communities,Fees and Charges,0090113076,REDACTED - PERSONAL DATA,-200.40,11/10/2018
Delivery Units,Adults and Communities,Fees and Charges,0090113077,REDACTED - PERSONAL DATA,-197.20,11/10/2018
Delivery Units,Adults and Communities,Fees and Charges,0090113080,REDACTED - PERSONAL DATA,-85.96,11/10/2018
Delivery Units,Adults and Communities,Fees and Charges,0090113081,REDACTED - PERSONAL DATA,-149.00,11/10/2018
Delivery Units,Adults and Communities,Fees and Charges,0090113082,REDACTED - PERSONAL DATA,-82.00,11/10/2018
Delivery Units,Adults and Communities,Fees and Charges,0090113089,REDACTED - PERSONAL DATA,-66.04,11/10/2018
Delivery Units,Adults and Communities,Fees and Charges,0090113099,REDACTED - PERSONAL DATA,-79.60,11/10/2018
Delivery Units,Adults and Communities,Fees and Charges,0090113104,REDACTED - PERSONAL DATA,-80.20,11/10/2018
Delivery Units,Adults and Communities,Fees and Charges,0090113345,REDACTED - PERSONAL DATA,-164.60,11/10/2018
Delivery Units,Adults and Communities,Fees and Charges,0090113346,REDACTED - PERSONAL DATA,-77.40,11/10/2018
Delivery Units,Adults and Communities,Fees and Charges,0090113348,REDACTED - PERSONAL DATA,-286.80,11/10/2018
Delivery Units,Adults and Communities,Fees and Charges,0090113391,REDACTED - PERSONAL DATA,730.80,11/10/2018
Delivery Units,Adults and Communities,Fees and Charges,0090113392,REDACTED - PERSONAL DATA,-123.00,11/10/2018
Delivery Units,Adults and Communities,Fees and Charges,0090113651,REDACTED - PERSONAL DATA,-216.40,11/10/2018
Delivery Units,Adults and Communities,Fees and Charges,0090113999,REDACTED - PERSONAL DATA,0.05,12/10/2018
Delivery Units,Adults and Communities,Fees and Charges,0090114007,REDACTED - PERSONAL DATA,-364.00,12/10/2018
Delivery Units,Adults and Communities,Fees and Charges,0090114013,REDACTED - PERSONAL DATA,472.80,12/10/2018
Delivery Units,Adults and Communities,Fees and Charges,0090114017,REDACTED - PERSONAL DATA,304.00,12/10/2018
Delivery Units,Adults and Communities,Fees and Charges,0090117075,REDACTED - PERSONAL DATA,-481.78,23/10/2018
Delivery Units,Adults and Communities,Fees and Charges,0090117076,REDACTED - PERSONAL DATA,"-1,480.82",23/10/2018
Delivery Units,Adults and Communities,Fees and Charges,0090118522,REDACTED - PERSONAL DATA,"1,341.84",29/10/2018
Delivery Units,Adults and Communities,Fees and Charges,0090118524,REDACTED - PERSONAL DATA,159.88,29/10/2018
Delivery Units,Adults and Communities,Food Costs,0060113967,MULLER MILK & INGREDIENTS,0.88,05/10/2018
Delivery Units,Adults and Communities,Food Costs,0060114392,MULLER MILK & INGREDIENTS,0.88,19/10/2018
Delivery Units,Adults and Communities,Food Costs,0060114400,MULLER MILK & INGREDIENTS,0.88,19/10/2018
Delivery Units,Adults and Communities,Food Costs,0060115524,MULLER MILK & INGREDIENTS,0.88,26/10/2018
Delivery Units,Adults and Communities,Gas,0060114371,KENT COUNTY COUNCIL (KCS),91.34,09/10/2018
Delivery Units,Adults and Communities,General Office Expenses,0040003053,OFFICE DEPOT UK LTD,2.70,25/10/2018
Delivery Units,Adults and Communities,General Office Expenses,0040003055,OFFICE DEPOT UK LTD,19.24,25/10/2018
Delivery Units,Adults and Communities,General Office Expenses,0040003085,OFFICE DEPOT UK LTD,7.85,25/10/2018
Delivery Units,Adults and Communities,Other Agencies - Third Party P,0090118720,3A CARE (LONDON) LTD,"10,038.86",31/10/2018
Delivery Units,Adults and Communities,Other Agencies - Third Party P,0090110453,AARANDALE MANOR CARE HOME,"7,200.00",03/10/2018
Delivery Units,Adults and Communities,Other Agencies - Third Party P,0090116024,AARANDALE MANOR CARE HOME,"4,428.57",17/10/2018
Delivery Units,Adults and Communities,Other Agencies - Third Party P,0090116025,AARANDALE MANOR CARE HOME,"2,570.56",17/10/2018
Delivery Units,Adults and Communities,Other Agencies - Third Party P,0090116026,AARANDALE MANOR CARE HOME,"2,655.55",17/10/2018
Delivery Units,Adults and Communities,Other Agencies - Third Party P,0090117319,AARANDALE MANOR CARE HOME,"1,400.00",23/10/2018
Delivery Units,Adults and Communities,Other Agencies - Third Party P,0090110139,ABBEY RAVENSCROFT PARK NURSING HOME,"2,698.37",03/10/2018
Delivery Units,Adults and Communities,Other Agencies - Third Party P,0090110159,ABBEY RAVENSCROFT PARK NURSING HOME,"3,321.43",03/10/2018
Delivery Units,Adults and Communities,Other Agencies - Third Party P,0090110160,ABBEY RAVENSCROFT PARK NURSING HOME,"3,214.29",03/10/2018
Delivery Units,Adults and Communities,Other Agencies - Third Party P,0090110161,ABBEY RAVENSCROFT PARK NURSING HOME,"2,698.37",03/10/2018
Delivery Units,Adults and Communities,Other Agencies - Third Party P,0090110162,ABBEY RAVENSCROFT PARK NURSING HOME,"3,214.29",03/10/2018
Delivery Units,Adults and Communities,Other Agencies - Third Party P,0090114637,ABBEY RAVENSCROFT PARK NURSING HOME,"2,892.86",17/10/2018
Delivery Units,Adults and Communities,Other Agencies - Third Party P,0090115885,ABBEY RAVENSCROFT PARK NURSING HOME,"3,321.43",17/10/2018
Delivery Units,Adults and Communities,Other Agencies - Third Party P,0090115886,ABBEY RAVENSCROFT PARK NURSING HOME,"3,100.00",17/10/2018
Delivery Units,Adults and Communities,Other Agencies - Third Party P,0090115887,ABBEY RAVENSCROFT PARK NURSING HOME,"2,788.32",17/10/2018
Delivery Units,Adults and Communities,Other Agencies - Third Party P,0090115888,ABBEY RAVENSCROFT PARK NURSING HOME,"3,321.43",17/10/2018
Delivery Units,Adults and Communities,Other Agencies - Third Party P,0090115889,ABBEY RAVENSCROFT PARK NURSING HOME,"3,321.43",17/10/2018
Delivery Units,Adults and Communities,Other Agencies - Third Party P,0090115890,ABBEY RAVENSCROFT PARK NURSING HOME,"3,321.43",17/10/2018
Delivery Units,Adults and Communities,Other Agencies - Third Party P,0090115891,ABBEY RAVENSCROFT PARK NURSING HOME,"3,255.00",17/10/2018
Delivery Units,Adults and Communities,Other Agencies - Third Party P,0090115892,ABBEY RAVENSCROFT PARK NURSING HOME,"3,801.88",17/10/2018
Delivery Units,Adults and Communities,Other Agencies - Third Party P,0090115893,ABBEY RAVENSCROFT PARK NURSING HOME,"2,788.32",17/10/2018
Delivery Units,Adults and Communities,Other Agencies - Third Party P,0090115894,ABBEY RAVENSCROFT PARK NURSING HOME,"3,542.86",17/10/2018
Delivery Units,Adults and Communities,Other Agencies - Third Party P,0090115895,ABBEY RAVENSCROFT PARK NURSING HOME,"3,255.00",17/10/2018
Delivery Units,Adults and Communities,Other Agencies - Third Party P,0090115896,ABBEY RAVENSCROFT PARK NURSING HOME,"3,542.86",17/10/2018
Delivery Units,Adults and Communities,Other Agencies - Third Party P,0090115897,ABBEY RAVENSCROFT PARK NURSING HOME,"3,100.00",17/10/2018
Delivery Units,Adults and Communities,Other Agencies - Third Party P,0090115898,ABBEY RAVENSCROFT PARK NURSING HOME,"3,255.00",17/10/2018
Delivery Units,Adults and Communities,Other Agencies - Third Party P,0090115899,ABBEY RAVENSCROFT PARK NURSING HOME,"3,321.43",17/10/2018
Delivery Units,Adults and Communities,Other Agencies - Third Party P,0090115900,ABBEY RAVENSCROFT PARK NURSING HOME,"2,788.32",17/10/2018
Delivery Units,Adults and Communities,Other Agencies - Third Party P,0090115901,ABBEY RAVENSCROFT PARK NURSING HOME,"3,542.86",17/10/2018
Delivery Units,Adults and Communities,Other Agencies - Third Party P,0090115902,ABBEY RAVENSCROFT PARK NURSING HOME,"2,788.32",17/10/2018
Delivery Units,Adults and Communities,Other Agencies - Third Party P,0090115903,ABBEY RAVENSCROFT PARK NURSING HOME,"2,788.32",17/10/2018
Delivery Units,Adults and Communities,Other Agencies - Third Party P,0090115904,ABBEY RAVENSCROFT PARK NURSING HOME,"3,321.43",17/10/2018
Delivery Units,Adults and Communities,Other Agencies - Third Party P,0090115905,ABBEY RAVENSCROFT PARK NURSING HOME,"3,764.29",17/10/2018
Delivery Units,Adults and Communities,Other Agencies - Third Party P,0090115906,ABBEY RAVENSCROFT PARK NURSING HOME,"3,321.43",17/10/2018
Delivery Units,Adults and Communities,Other Agencies - Third Party P,0090115907,ABBEY RAVENSCROFT PARK NURSING HOME,"3,321.43",17/10/2018
Delivery Units,Adults and Communities,Other Agencies - Third Party P,0090115908,ABBEY RAVENSCROFT PARK NURSING HOME,"3,321.43",17/10/2018
Delivery Units,Adults and Communities,Other Agencies - Third Party P,0090116121,ABOUT ME CARE & SUPPORT LTD,"1,365.84",19/10/2018
Delivery Units,Adults and Communities,Other Agencies - Third Party P,0090116122,ABOUT ME CARE & SUPPORT LTD,"1,365.84",19/10/2018
Delivery Units,Adults and Communities,Other Agencies - Third Party P,0090116123,ABOUT ME CARE & SUPPORT LTD,"1,365.84",19/10/2018
Delivery Units,Adults and Communities,Other Agencies - Third Party P,0090116124,ABOUT ME CARE & SUPPORT LTD,"1,406.88",19/10/2018
Delivery Units,Adults and Communities,Other Agencies - Third Party P,0090116125,ABOUT ME CARE & SUPPORT LTD,"1,406.88",19/10/2018
Delivery Units,Adults and Communities,Other Agencies - Third Party P,0090116126,ABOUT ME CARE & SUPPORT LTD,"1,406.88",19/10/2018
Delivery Units,Adults and Communities,Other Agencies - Third Party P,0090118726,ABOUT ME CARE & SUPPORT LTD,"1,406.88",30/10/2018
Delivery Units,Adults and Communities,Other Agencies - Third Party P,0090110754,ACCEDO CARE LTD,"2,220.12",03/10/2018
Delivery Units,Adults and Communities,Other Agencies - Third Party P,0090118081,ACCEDO CARE LTD,"2,046.53",26/10/2018
Delivery Units,Adults and Communities,Other Agencies - Third Party P,0090118298,ACCEDO CARE LTD,"2,220.12",26/10/2018
Delivery Units,Adults and Communities,Other Agencies - Third Party P,0090113473,ACTION ON HEARING LOSS,"5,267.36",11/10/2018
Delivery Units,Adults and Communities,Other Agencies - Third Party P,0090113499,ACTION ON HEARING LOSS,"5,442.94",11/10/2018
Delivery Units,Adults and Communities,Other Agencies - Third Party P,0090113501,ACTION ON HEARING LOSS,"5,267.36",11/10/2018
Delivery Units,Adults and Communities,Other Agencies - Third Party P,0090113502,ACTION ON HEARING LOSS,"5,442.94",11/10/2018
Delivery Units,Adults and Communities,Other Agencies - Third Party P,0090113503,ACTION ON HEARING LOSS,"5,267.36",11/10/2018
Delivery Units,Adults and Communities,Other Agencies - Third Party P,0090114641,ACTION ON HEARING LOSS,"4,916.20",17/10/2018
Delivery Units,Adults and Communities,Other Agencies - Third Party P,0090114642,ACTION ON HEARING LOSS,"5,442.94",17/10/2018
Delivery Units,Adults and Communities,Other Agencies - Third Party P,0090114643,ACTION ON HEARING LOSS,"5,442.94",17/10/2018
Delivery Units,Adults and Communities,Other Agencies - Third Party P,0090118718,ADARA HEALTHCARE LTD,"3,400.00",30/10/2018
Delivery Units,Adults and Communities,Other Agencies - Third Party P,0090118719,ADARA HEALTHCARE LTD,"3,400.00",30/10/2018
Delivery Units,Adults and Communities,Other Agencies - Third Party P,0090110469,AGUDAS ISRAEL HOUSING ASSCTN LTD,"2,947.44",03/10/2018
Delivery Units,Adults and Communities,Other Agencies - Third Party P,0090111386,AGUDAS ISRAEL HOUSING ASSCTN LTD,"4,684.29",15/10/2018
Delivery Units,Adults and Communities,Other Agencies - Third Party P,0090111387,AGUDAS ISRAEL HOUSING ASSCTN LTD,"2,648.57",15/10/2018
Delivery Units,Adults and Communities,Other Agencies - Third Party P,0090116736,AGUDAS ISRAEL HOUSING ASSCTN LTD,"3,663.00",22/10/2018
Delivery Units,Adults and Communities,Other Agencies - Third Party P,0090111368,ALEXANDRA HOUSE (RUNWOOD HOMES),"2,189.70",05/10/2018
Delivery Units,Adults and Communities,Other Agencies - Third Party P,0090110405,ALLIED HEALTHCARE LTD,989.96,03/10/2018
Delivery Units,Adults and Communities,Other Agencies - Third Party P,0090110406,ALLIED HEALTHCARE LTD,291.41,03/10/2018
Delivery Units,Adults and Communities,Other Agencies - Third Party P,0090110407,ALLIED HEALTHCARE LTD,64.75,03/10/2018
Delivery Units,Adults and Communities,Other Agencies - Third Party P,0090110408,ALLIED HEALTHCARE LTD,356.16,03/10/2018
Delivery Units,Adults and Communities,Other Agencies - Third Party P,0090110409,ALLIED HEALTHCARE LTD,647.50,03/10/2018
Delivery Units,Adults and Communities,Other Agencies - Third Party P,0090110410,ALLIED HEALTHCARE LTD,74.00,03/10/2018
Delivery Units,Adults and Communities,Other Agencies - Third Party P,0090110411,ALLIED HEALTHCARE LTD,41.64,03/10/2018
Delivery Units,Adults and Communities,Other Agencies - Third Party P,0090110412,ALLIED HEALTHCARE LTD,92.50,03/10/2018
Delivery Units,Adults and Communities,Other Agencies - Third Party P,0090110413,ALLIED HEALTHCARE LTD,129.50,03/10/2018
Delivery Units,Adults and Communities,Other Agencies - Third Party P,0090110414,ALLIED HEALTHCARE LTD,124.91,03/10/2018
Delivery Units,Adults and Communities,Other Agencies - Third Party P,0090110415,ALLIED HEALTHCARE LTD,259.00,03/10/2018
Delivery Units,Adults and Communities,Other Agencies - Third Party P,0090110416,ALLIED HEALTHCARE LTD,"1,110.00",03/10/2018
Delivery Units,Adults and Communities,Other Agencies - Third Party P,0090110417,ALLIED HEALTHCARE LTD,194.25,03/10/2018
Delivery Units,Adults and Communities,Other Agencies - Third Party P,0090110418,ALLIED HEALTHCARE LTD,226.66,03/10/2018
Delivery Units,Adults and Communities,Other Agencies - Third Party P,0090110419,ALLIED HEALTHCARE LTD,129.50,03/10/2018
Delivery Units,Adults and Communities,Other Agencies - Third Party P,0090110420,ALLIED HEALTHCARE LTD,78.63,03/10/2018
Delivery Units,Adults and Communities,Other Agencies - Third Party P,0090110421,ALLIED HEALTHCARE LTD,263.66,03/10/2018
Delivery Units,Adults and Communities,Other Agencies - Third Party P,0090110422,ALLIED HEALTHCARE LTD,129.50,03/10/2018
Delivery Units,Adults and Communities,Other Agencies - Third Party P,0090110423,ALLIED HEALTHCARE LTD,309.91,03/10/2018
Delivery Units,Adults and Communities,Other Agencies - Third Party P,0090110424,ALLIED HEALTHCARE LTD,249.78,03/10/2018
Delivery Units,Adults and Communities,Other Agencies - Third Party P,0090110425,ALLIED HEALTHCARE LTD,18.50,03/10/2018
Delivery Units,Adults and Communities,Other Agencies - Third Party P,0090110426,ALLIED HEALTHCARE LTD,226.65,03/10/2018
Delivery Units,Adults and Communities,Other Agencies - Third Party P,0090110427,ALLIED HEALTHCARE LTD,194.25,03/10/2018
Delivery Units,Adults and Communities,Other Agencies - Third Party P,0090110428,ALLIED HEALTHCARE LTD,180.44,03/10/2018
Delivery Units,Adults and Communities,Other Agencies - Third Party P,0090110429,ALLIED HEALTHCARE LTD,83.25,03/10/2018
Delivery Units,Adults and Communities,Other Agencies - Third Party P,0090110430,ALLIED HEALTHCARE LTD,60.13,03/10/2018
Delivery Units,Adults and Communities,Other Agencies - Third Party P,0090110431,ALLIED HEALTHCARE LTD,101.78,03/10/2018
Delivery Units,Adults and Communities,Other Agencies - Third Party P,0090110432,ALLIED HEALTHCARE LTD,37.00,03/10/2018
Delivery Units,Adults and Communities,Other Agencies - Third Party P,0090110433,ALLIED HEALTHCARE LTD,194.25,03/10/2018
Delivery Units,Adults and Communities,Other Agencies - Third Party P,0090110434,ALLIED HEALTHCARE LTD,161.91,03/10/2018
Delivery Units,Adults and Communities,Other Agencies - Third Party P,0090110435,ALLIED HEALTHCARE LTD,309.91,03/10/2018
Delivery Units,Adults and Communities,Other Agencies - Third Party P,0090110436,ALLIED HEALTHCARE LTD,194.32,03/10/2018
Delivery Units,Adults and Communities,Other Agencies - Third Party P,0090110437,ALLIED HEALTHCARE LTD,129.50,03/10/2018
Delivery Units,Adults and Communities,Other Agencies - Third Party P,0090110438,ALLIED HEALTHCARE LTD,27.76,03/10/2018
Delivery Units,Adults and Communities,Other Agencies - Third Party P,0090110439,ALLIED HEALTHCARE LTD,161.91,03/10/2018
Delivery Units,Adults and Communities,Other Agencies - Third Party P,0090110440,ALLIED HEALTHCARE LTD,9.25,03/10/2018
Delivery Units,Adults and Communities,Other Agencies - Third Party P,0090110441,ALLIED HEALTHCARE LTD,203.50,03/10/2018
Delivery Units,Adults and Communities,Other Agencies - Third Party P,0090110442,ALLIED HEALTHCARE LTD,148.00,03/10/2018
Delivery Units,Adults and Communities,Other Agencies - Third Party P,0090110443,ALLIED HEALTHCARE LTD,37.00,03/10/2018
Delivery Units,Adults and Communities,Other Agencies - Third Party P,0090110444,ALLIED HEALTHCARE LTD,143.41,03/10/2018
Delivery Units,Adults and Communities,Other Agencies - Third Party P,0090110445,ALLIED HEALTHCARE LTD,97.16,03/10/2018
Delivery Units,Adults and Communities,Other Agencies - Third Party P,0090110446,ALLIED HEALTHCARE LTD,171.16,03/10/2018
Delivery Units,Adults and Communities,Other Agencies - Third Party P,0090110447,ALLIED HEALTHCARE LTD,92.50,03/10/2018
Delivery Units,Adults and Communities,Other Agencies - Third Party P,0090110448,ALLIED HEALTHCARE LTD,194.25,03/10/2018
Delivery Units,Adults and Communities,Other Agencies - Third Party P,0090110449,ALLIED HEALTHCARE LTD,37.00,03/10/2018
Delivery Units,Adults and Communities,Other Agencies - Third Party P,0090110450,ALLIED HEALTHCARE LTD,531.94,03/10/2018
Delivery Units,Adults and Communities,Other Agencies - Third Party P,0090111446,ALLIED HEALTHCARE LTD,980.61,08/10/2018
Delivery Units,Adults and Communities,Other Agencies - Third Party P,0090111447,ALLIED HEALTHCARE LTD,194.25,08/10/2018
Delivery Units,Adults and Communities,Other Agencies - Third Party P,0090111448,ALLIED HEALTHCARE LTD,87.89,08/10/2018
Delivery Units,Adults and Communities,Other Agencies - Third Party P,0090111449,ALLIED HEALTHCARE LTD,129.50,08/10/2018
Delivery Units,Adults and Communities,Other Agencies - Third Party P,0090111450,ALLIED HEALTHCARE LTD,83.25,08/10/2018
Delivery Units,Adults and Communities,Other Agencies - Third Party P,0090111451,ALLIED HEALTHCARE LTD,50.88,08/10/2018
Delivery Units,Adults and Communities,Other Agencies - Third Party P,0090111452,ALLIED HEALTHCARE LTD,120.28,08/10/2018
Delivery Units,Adults and Communities,Other Agencies - Third Party P,0090111453,ALLIED HEALTHCARE LTD,106.41,08/10/2018
Delivery Units,Adults and Communities,Other Agencies - Third Party P,0090111454,ALLIED HEALTHCARE LTD,37.00,08/10/2018
Delivery Units,Adults and Communities,Other Agencies - Third Party P,0090111455,ALLIED HEALTHCARE LTD,194.25,08/10/2018
Delivery Units,Adults and Communities,Other Agencies - Third Party P,0090111456,ALLIED HEALTHCARE LTD,309.91,08/10/2018
Delivery Units,Adults and Communities,Other Agencies - Third Party P,0090111457,ALLIED HEALTHCARE LTD,194.32,08/10/2018
Delivery Units,Adults and Communities,Other Agencies - Third Party P,0090111458,ALLIED HEALTHCARE LTD,23.13,08/10/2018
Delivery Units,Adults and Communities,Other Agencies - Third Party P,0090111459,ALLIED HEALTHCARE LTD,161.91,08/10/2018
Delivery Units,Adults and Communities,Other Agencies - Third Party P,0090111460,ALLIED HEALTHCARE LTD,203.51,08/10/2018
Delivery Units,Adults and Communities,Other Agencies - Third Party P,0090111461,ALLIED HEALTHCARE LTD,37.00,08/10/2018
Delivery Units,Adults and Communities,Other Agencies - Third Party P,0090111462,ALLIED HEALTHCARE LTD,143.41,08/10/2018
Delivery Units,Adults and Communities,Other Agencies - Third Party P,0090111463,ALLIED HEALTHCARE LTD,129.50,08/10/2018
Delivery Units,Adults and Communities,Other Agencies - Third Party P,0090111464,ALLIED HEALTHCARE LTD,175.80,08/10/2018
Delivery Units,Adults and Communities,Other Agencies - Third Party P,0090111465,ALLIED HEALTHCARE LTD,194.25,08/10/2018
Delivery Units,Adults and Communities,Other Agencies - Third Party P,0090111466,ALLIED HEALTHCARE LTD,37.00,08/10/2018
Delivery Units,Adults and Communities,Other Agencies - Third Party P,0090111467,ALLIED HEALTHCARE LTD,309.91,08/10/2018
Delivery Units,Adults and Communities,Other Agencies - Third Party P,0090111468,ALLIED HEALTHCARE LTD,161.91,08/10/2018
Delivery Units,Adults and Communities,Other Agencies - Third Party P,0090111469,ALLIED HEALTHCARE LTD,291.41,08/10/2018
Delivery Units,Adults and Communities,Other Agencies - Third Party P,0090111470,ALLIED HEALTHCARE LTD,64.75,08/10/2018
Delivery Units,Adults and Communities,Other Agencies - Third Party P,0090111471,ALLIED HEALTHCARE LTD,291.41,08/10/2018
Delivery Units,Adults and Communities,Other Agencies - Third Party P,0090111472,ALLIED HEALTHCARE LTD,18.50,08/10/2018
Delivery Units,Adults and Communities,Other Agencies - Third Party P,0090111473,ALLIED HEALTHCARE LTD,356.16,08/10/2018
Delivery Units,Adults and Communities,Other Agencies - Third Party P,0090111474,ALLIED HEALTHCARE LTD,226.66,08/10/2018
Delivery Units,Adults and Communities,Other Agencies - Third Party P,0090111475,ALLIED HEALTHCARE LTD,647.50,08/10/2018
Delivery Units,Adults and Communities,Other Agencies - Third Party P,0090111476,ALLIED HEALTHCARE LTD,74.00,08/10/2018
Delivery Units,Adults and Communities,Other Agencies - Third Party P,0090111477,ALLIED HEALTHCARE LTD,41.64,08/10/2018
Delivery Units,Adults and Communities,Other Agencies - Third Party P,0090111478,ALLIED HEALTHCARE LTD,194.32,08/10/2018
Delivery Units,Adults and Communities,Other Agencies - Third Party P,0090111479,ALLIED HEALTHCARE LTD,259.00,08/10/2018
Delivery Units,Adults and Communities,Other Agencies - Third Party P,0090111480,ALLIED HEALTHCARE LTD,"1,110.00",08/10/2018
Delivery Units,Adults and Communities,Other Agencies - Third Party P,0090111481,ALLIED HEALTHCARE LTD,129.50,08/10/2018
Delivery Units,Adults and Communities,Other Agencies - Third Party P,0090111482,ALLIED HEALTHCARE LTD,194.25,08/10/2018
Delivery Units,Adults and Communities,Other Agencies - Third Party P,0090111483,ALLIED HEALTHCARE LTD,226.66,08/10/2018
Delivery Units,Adults and Communities,Other Agencies - Third Party P,0090111484,ALLIED HEALTHCARE LTD,78.63,08/10/2018
Delivery Units,Adults and Communities,Other Agencies - Third Party P,0090111485,ALLIED HEALTHCARE LTD,97.16,08/10/2018
Delivery Units,Adults and Communities,Other Agencies - Third Party P,0090111486,ALLIED HEALTHCARE LTD,263.66,08/10/2018
Delivery Units,Adults and Communities,Other Agencies - Third Party P,0090111487,ALLIED HEALTHCARE LTD,129.50,08/10/2018
Delivery Units,Adults and Communities,Other Agencies - Third Party P,0090111488,ALLIED HEALTHCARE LTD,582.82,08/10/2018
Delivery Units,Adults and Communities,Other Agencies - Third Party P,0090111489,ALLIED HEALTHCARE LTD,64.75,08/10/2018
Delivery Units,Adults and Communities,Other Agencies - Third Party P,0090111490,ALLIED HEALTHCARE LTD,18.50,08/10/2018
Delivery Units,Adults and Communities,Other Agencies - Third Party P,0090111491,ALLIED HEALTHCARE LTD,194.25,08/10/2018
Delivery Units,Adults and Communities,Other Agencies - Third Party P,0090111492,ALLIED HEALTHCARE LTD,83.26,08/10/2018
Delivery Units,Adults and Communities,Other Agencies - Third Party P,0090111493,ALLIED HEALTHCARE LTD,129.50,08/10/2018
Delivery Units,Adults and Communities,Other Agencies - Third Party P,0090111494,ALLIED HEALTHCARE LTD,194.32,08/10/2018
Delivery Units,Adults and Communities,Other Agencies - Third Party P,0090111495,ALLIED HEALTHCARE LTD,83.25,08/10/2018
Delivery Units,Adults and Communities,Other Agencies - Third Party P,0090111496,ALLIED HEALTHCARE LTD,78.64,08/10/2018
Delivery Units,Adults and Communities,Other Agencies - Third Party P,0090111497,ALLIED HEALTHCARE LTD,37.00,08/10/2018
Delivery Units,Adults and Communities,Other Agencies - Third Party P,0090111498,ALLIED HEALTHCARE LTD,161.91,08/10/2018
Delivery Units,Adults and Communities,Other Agencies - Third Party P,0090111499,ALLIED HEALTHCARE LTD,309.91,08/10/2018
Delivery Units,Adults and Communities,Other Agencies - Third Party P,0090111500,ALLIED HEALTHCARE LTD,194.32,08/10/2018
Delivery Units,Adults and Communities,Other Agencies - Third Party P,0090111501,ALLIED HEALTHCARE LTD,27.76,08/10/2018
Delivery Units,Adults and Communities,Other Agencies - Third Party P,0090111502,ALLIED HEALTHCARE LTD,161.91,08/10/2018
Delivery Units,Adults and Communities,Other Agencies - Third Party P,0090111503,ALLIED HEALTHCARE LTD,203.50,08/10/2018
Delivery Units,Adults and Communities,Other Agencies - Third Party P,0090111504,ALLIED HEALTHCARE LTD,240.50,08/10/2018
Delivery Units,Adults and Communities,Other Agencies - Third Party P,0090111505,ALLIED HEALTHCARE LTD,37.00,08/10/2018
Delivery Units,Adults and Communities,Other Agencies - Third Party P,0090111506,ALLIED HEALTHCARE LTD,143.41,08/10/2018
Delivery Units,Adults and Communities,Other Agencies - Third Party P,0090111507,ALLIED HEALTHCARE LTD,129.50,08/10/2018
Delivery Units,Adults and Communities,Other Agencies - Third Party P,0090111508,ALLIED HEALTHCARE LTD,97.16,08/10/2018
Delivery Units,Adults and Communities,Other Agencies - Third Party P,0090111509,ALLIED HEALTHCARE LTD,161.91,08/10/2018
Delivery Units,Adults and Communities,Other Agencies - Third Party P,0090111510,ALLIED HEALTHCARE LTD,129.50,08/10/2018
Delivery Units,Adults and Communities,Other Agencies - Third Party P,0090111511,ALLIED HEALTHCARE LTD,194.25,08/10/2018
Delivery Units,Adults and Communities,Other Agencies - Third Party P,0090111512,ALLIED HEALTHCARE LTD,37.00,08/10/2018
Delivery Units,Adults and Communities,Other Agencies - Third Party P,0090111513,ALLIED HEALTHCARE LTD,309.91,08/10/2018
Delivery Units,Adults and Communities,Other Agencies - Third Party P,0090111514,ALLIED HEALTHCARE LTD,989.96,08/10/2018
Delivery Units,Adults and Communities,Other Agencies - Third Party P,0090111515,ALLIED HEALTHCARE LTD,291.41,08/10/2018
Delivery Units,Adults and Communities,Other Agencies - Third Party P,0090111516,ALLIED HEALTHCARE LTD,291.41,08/10/2018
Delivery Units,Adults and Communities,Other Agencies - Third Party P,0090111517,ALLIED HEALTHCARE LTD,356.16,08/10/2018
Delivery Units,Adults and Communities,Other Agencies - Third Party P,0090111518,ALLIED HEALTHCARE LTD,226.66,08/10/2018
Delivery Units,Adults and Communities,Other Agencies - Third Party P,0090111519,ALLIED HEALTHCARE LTD,647.50,08/10/2018
Delivery Units,Adults and Communities,Other Agencies - Third Party P,0090111520,ALLIED HEALTHCARE LTD,74.00,08/10/2018
Delivery Units,Adults and Communities,Other Agencies - Third Party P,0090111521,ALLIED HEALTHCARE LTD,41.64,08/10/2018
Delivery Units,Adults and Communities,Other Agencies - Third Party P,0090111522,ALLIED HEALTHCARE LTD,64.75,08/10/2018
Delivery Units,Adults and Communities,Other Agencies - Third Party P,0090111523,ALLIED HEALTHCARE LTD,124.91,08/10/2018
Delivery Units,Adults and Communities,Other Agencies - Third Party P,0090111524,ALLIED HEALTHCARE LTD,194.25,08/10/2018
Delivery Units,Adults and Communities,Other Agencies - Third Party P,0090111525,ALLIED HEALTHCARE LTD,259.00,08/10/2018
Delivery Units,Adults and Communities,Other Agencies - Third Party P,0090111526,ALLIED HEALTHCARE LTD,"1,110.00",08/10/2018
Delivery Units,Adults and Communities,Other Agencies - Third Party P,0090111527,ALLIED HEALTHCARE LTD,129.50,08/10/2018
Delivery Units,Adults and Communities,Other Agencies - Third Party P,0090111528,ALLIED HEALTHCARE LTD,194.25,08/10/2018
Delivery Units,Adults and Communities,Other Agencies - Third Party P,0090111529,ALLIED HEALTHCARE LTD,226.66,08/10/2018
Delivery Units,Adults and Communities,Other Agencies - Third Party P,0090111530,ALLIED HEALTHCARE LTD,78.63,08/10/2018
Delivery Units,Adults and Communities,Other Agencies - Third Party P,0090111531,ALLIED HEALTHCARE LTD,263.66,08/10/2018
Delivery Units,Adults and Communities,Other Agencies - Third Party P,0090111532,ALLIED HEALTHCARE LTD,582.82,08/10/2018
Delivery Units,Adults and Communities,Other Agencies - Third Party P,0090111731,ALLIED HEALTHCARE LTD,"1,045.33",08/10/2018
Delivery Units,Adults and Communities,Other Agencies - Third Party P,0090111732,ALLIED HEALTHCARE LTD,23.13,08/10/2018
Delivery Units,Adults and Communities,Other Agencies - Third Party P,0090111733,ALLIED HEALTHCARE LTD,208.18,08/10/2018
Delivery Units,Adults and Communities,Other Agencies - Third Party P,0090111734,ALLIED HEALTHCARE LTD,92.50,08/10/2018
Delivery Units,Adults and Communities,Other Agencies - Third Party P,0090111735,ALLIED HEALTHCARE LTD,131.84,08/10/2018
Delivery Units,Adults and Communities,Other Agencies - Third Party P,0090111736,ALLIED HEALTHCARE LTD,108.71,08/10/2018
Delivery Units,Adults and Communities,Other Agencies - Third Party P,0090111737,ALLIED HEALTHCARE LTD,18.50,08/10/2018
Delivery Units,Adults and Communities,Other Agencies - Third Party P,0090111738,ALLIED HEALTHCARE LTD,277.55,08/10/2018
Delivery Units,Adults and Communities,Other Agencies - Third Party P,0090111739,ALLIED HEALTHCARE LTD,339.98,08/10/2018
Delivery Units,Adults and Communities,Other Agencies - Third Party P,0090111740,ALLIED HEALTHCARE LTD,208.18,08/10/2018
Delivery Units,Adults and Communities,Other Agencies - Third Party P,0090111741,ALLIED HEALTHCARE LTD,27.76,08/10/2018
Delivery Units,Adults and Communities,Other Agencies - Third Party P,0090111742,ALLIED HEALTHCARE LTD,18.50,08/10/2018
Delivery Units,Adults and Communities,Other Agencies - Third Party P,0090111743,ALLIED HEALTHCARE LTD,208.13,08/10/2018
Delivery Units,Adults and Communities,Other Agencies - Third Party P,0090111744,ALLIED HEALTHCARE LTD,173.47,08/10/2018
Delivery Units,Adults and Communities,Other Agencies - Third Party P,0090111745,ALLIED HEALTHCARE LTD,217.39,08/10/2018
Delivery Units,Adults and Communities,Other Agencies - Third Party P,0090111746,ALLIED HEALTHCARE LTD,346.89,08/10/2018
Delivery Units,Adults and Communities,Other Agencies - Third Party P,0090111747,ALLIED HEALTHCARE LTD,37.00,08/10/2018
Delivery Units,Adults and Communities,Other Agencies - Third Party P,0090111748,ALLIED HEALTHCARE LTD,117.97,08/10/2018
Delivery Units,Adults and Communities,Other Agencies - Third Party P,0090111749,ALLIED HEALTHCARE LTD,138.75,08/10/2018
Delivery Units,Adults and Communities,Other Agencies - Third Party P,0090111750,ALLIED HEALTHCARE LTD,83.26,08/10/2018
Delivery Units,Adults and Communities,Other Agencies - Third Party P,0090111751,ALLIED HEALTHCARE LTD,279.85,08/10/2018
Delivery Units,Adults and Communities,Other Agencies - Third Party P,0090111752,ALLIED HEALTHCARE LTD,173.47,08/10/2018
Delivery Units,Adults and Communities,Other Agencies - Third Party P,0090111753,ALLIED HEALTHCARE LTD,203.51,08/10/2018
Delivery Units,Adults and Communities,Other Agencies - Third Party P,0090111754,ALLIED HEALTHCARE LTD,55.50,08/10/2018
Delivery Units,Adults and Communities,Other Agencies - Third Party P,0090111755,ALLIED HEALTHCARE LTD,312.23,08/10/2018
Delivery Units,Adults and Communities,Other Agencies - Third Party P,0090111756,ALLIED HEALTHCARE LTD,69.38,08/10/2018
Delivery Units,Adults and Communities,Other Agencies - Third Party P,0090111757,ALLIED HEALTHCARE LTD,312.22,08/10/2018
Delivery Units,Adults and Communities,Other Agencies - Third Party P,0090111758,ALLIED HEALTHCARE LTD,381.60,08/10/2018
Delivery Units,Adults and Communities,Other Agencies - Third Party P,0090111759,ALLIED HEALTHCARE LTD,242.85,08/10/2018
Delivery Units,Adults and Communities,Other Agencies - Third Party P,0090111760,ALLIED HEALTHCARE LTD,693.78,08/10/2018
Delivery Units,Adults and Communities,Other Agencies - Third Party P,0090111761,ALLIED HEALTHCARE LTD,208.13,08/10/2018
Delivery Units,Adults and Communities,Other Agencies - Third Party P,0090111762,ALLIED HEALTHCARE LTD,74.00,08/10/2018
Delivery Units,Adults and Communities,Other Agencies - Third Party P,0090111763,ALLIED HEALTHCARE LTD,48.57,08/10/2018
Delivery Units,Adults and Communities,Other Agencies - Third Party P,0090111764,ALLIED HEALTHCARE LTD,97.13,08/10/2018
Delivery Units,Adults and Communities,Other Agencies - Third Party P,0090111765,ALLIED HEALTHCARE LTD,138.76,08/10/2018
Delivery Units,Adults and Communities,Other Agencies - Third Party P,0090111766,ALLIED HEALTHCARE LTD,69.38,08/10/2018
Delivery Units,Adults and Communities,Other Agencies - Third Party P,0090111767,ALLIED HEALTHCARE LTD,208.13,08/10/2018
Delivery Units,Adults and Communities,Other Agencies - Third Party P,0090111768,ALLIED HEALTHCARE LTD,277.51,08/10/2018
Delivery Units,Adults and Communities,Other Agencies - Third Party P,0090111769,ALLIED HEALTHCARE LTD,"1,110.00",08/10/2018
Delivery Units,Adults and Communities,Other Agencies - Third Party P,0090111770,ALLIED HEALTHCARE LTD,173.47,08/10/2018
Delivery Units,Adults and Communities,Other Agencies - Third Party P,0090111771,ALLIED HEALTHCARE LTD,138.75,08/10/2018
Delivery Units,Adults and Communities,Other Agencies - Third Party P,0090111772,ALLIED HEALTHCARE LTD,242.84,08/10/2018
Delivery Units,Adults and Communities,Other Agencies - Third Party P,0090111773,ALLIED HEALTHCARE LTD,104.09,08/10/2018
Delivery Units,Adults and Communities,Other Agencies - Third Party P,0090111774,ALLIED HEALTHCARE LTD,138.75,08/10/2018
Delivery Units,Adults and Communities,Other Agencies - Third Party P,0090111775,ALLIED HEALTHCARE LTD,339.97,08/10/2018
Delivery Units,Adults and Communities,Other Agencies - Third Party P,0090111776,ALLIED HEALTHCARE LTD,624.44,08/10/2018
Delivery Units,Adults and Communities,Other Agencies - Third Party P,0090114225,ALLIED HEALTHCARE LTD,772.45,15/10/2018
Delivery Units,Adults and Communities,Other Agencies - Third Party P,0090114226,ALLIED HEALTHCARE LTD,291.41,15/10/2018
Delivery Units,Adults and Communities,Other Agencies - Third Party P,0090114227,ALLIED HEALTHCARE LTD,18.50,15/10/2018
Delivery Units,Adults and Communities,Other Agencies - Third Party P,0090114228,ALLIED HEALTHCARE LTD,351.53,15/10/2018
Delivery Units,Adults and Communities,Other Agencies - Third Party P,0090114229,ALLIED HEALTHCARE LTD,226.66,15/10/2018
Delivery Units,Adults and Communities,Other Agencies - Third Party P,0090114230,ALLIED HEALTHCARE LTD,78.63,15/10/2018
Delivery Units,Adults and Communities,Other Agencies - Third Party P,0090114231,ALLIED HEALTHCARE LTD,129.50,15/10/2018
Delivery Units,Adults and Communities,Other Agencies - Third Party P,0090114232,ALLIED HEALTHCARE LTD,194.32,15/10/2018
Delivery Units,Adults and Communities,Other Agencies - Third Party P,0090114233,ALLIED HEALTHCARE LTD,97.16,15/10/2018
Delivery Units,Adults and Communities,Other Agencies - Third Party P,0090114234,ALLIED HEALTHCARE LTD,37.00,15/10/2018
Delivery Units,Adults and Communities,Other Agencies - Third Party P,0090114235,ALLIED HEALTHCARE LTD,263.70,15/10/2018
Delivery Units,Adults and Communities,Other Agencies - Third Party P,0090114236,ALLIED HEALTHCARE LTD,309.91,15/10/2018
Delivery Units,Adults and Communities,Other Agencies - Third Party P,0090114237,ALLIED HEALTHCARE LTD,194.32,15/10/2018
Delivery Units,Adults and Communities,Other Agencies - Third Party P,0090114238,ALLIED HEALTHCARE LTD,161.91,15/10/2018
Delivery Units,Adults and Communities,Other Agencies - Third Party P,0090114239,ALLIED HEALTHCARE LTD,194.25,15/10/2018
Delivery Units,Adults and Communities,Other Agencies - Third Party P,0090114240,ALLIED HEALTHCARE LTD,323.75,15/10/2018
Delivery Units,Adults and Communities,Other Agencies - Third Party P,0090114241,ALLIED HEALTHCARE LTD,37.00,15/10/2018
Delivery Units,Adults and Communities,Other Agencies - Third Party P,0090114242,ALLIED HEALTHCARE LTD,148.03,15/10/2018
Delivery Units,Adults and Communities,Other Agencies - Third Party P,0090114243,ALLIED HEALTHCARE LTD,129.50,15/10/2018
Delivery Units,Adults and Communities,Other Agencies - Third Party P,0090114244,ALLIED HEALTHCARE LTD,97.16,15/10/2018
Delivery Units,Adults and Communities,Other Agencies - Third Party P,0090114245,ALLIED HEALTHCARE LTD,69.39,15/10/2018
Delivery Units,Adults and Communities,Other Agencies - Third Party P,0090114246,ALLIED HEALTHCARE LTD,129.50,15/10/2018
Delivery Units,Adults and Communities,Other Agencies - Third Party P,0090114247,ALLIED HEALTHCARE LTD,92.50,15/10/2018
Delivery Units,Adults and Communities,Other Agencies - Third Party P,0090114248,ALLIED HEALTHCARE LTD,194.25,15/10/2018
Delivery Units,Adults and Communities,Other Agencies - Third Party P,0090114249,ALLIED HEALTHCARE LTD,37.00,15/10/2018
Delivery Units,Adults and Communities,Other Agencies - Third Party P,0090114250,ALLIED HEALTHCARE LTD,291.41,15/10/2018
Delivery Units,Adults and Communities,Other Agencies - Third Party P,0090114251,ALLIED HEALTHCARE LTD,64.75,15/10/2018
Delivery Units,Adults and Communities,Other Agencies - Third Party P,0090114252,ALLIED HEALTHCARE LTD,647.50,15/10/2018
Delivery Units,Adults and Communities,Other Agencies - Third Party P,0090114253,ALLIED HEALTHCARE LTD,194.25,15/10/2018
Delivery Units,Adults and Communities,Other Agencies - Third Party P,0090114254,ALLIED HEALTHCARE LTD,74.00,15/10/2018
Delivery Units,Adults and Communities,Other Agencies - Third Party P,0090114255,ALLIED HEALTHCARE LTD,41.64,15/10/2018
Delivery Units,Adults and Communities,Other Agencies - Third Party P,0090114256,ALLIED HEALTHCARE LTD,74.00,15/10/2018
Delivery Units,Adults and Communities,Other Agencies - Third Party P,0090114257,ALLIED HEALTHCARE LTD,64.75,15/10/2018
Delivery Units,Adults and Communities,Other Agencies - Third Party P,0090114258,ALLIED HEALTHCARE LTD,124.91,15/10/2018
Delivery Units,Adults and Communities,Other Agencies - Third Party P,0090114259,ALLIED HEALTHCARE LTD,194.25,15/10/2018
Delivery Units,Adults and Communities,Other Agencies - Third Party P,0090114260,ALLIED HEALTHCARE LTD,259.00,15/10/2018
Delivery Units,Adults and Communities,Other Agencies - Third Party P,0090114261,ALLIED HEALTHCARE LTD,161.91,15/10/2018
Delivery Units,Adults and Communities,Other Agencies - Third Party P,0090114262,ALLIED HEALTHCARE LTD,129.50,15/10/2018
Delivery Units,Adults and Communities,Other Agencies - Third Party P,0090114263,ALLIED HEALTHCARE LTD,27.76,15/10/2018
Delivery Units,Adults and Communities,Other Agencies - Third Party P,0090114264,ALLIED HEALTHCARE LTD,194.25,15/10/2018
